{"text_format":"1","workbook":"xlsx","n_sheets":13,"sheets":["README","purpose_code","TOSSD","SDG_focus","Currency","recipient_country","Modality","tossd codelist","type_of_finance","Mobilisation","channel_codes","examples","MOB_validation"],"not_rendered":{"charts":0,"images":1,"macros":1,"external_links":0,"defined_names":101,"comments":0,"pivot_tables":0},"unopened":[],"bounds":{"document_bytes":16777216,"sheet_cells":100000,"rows_first":2000,"rows_last":500,"rows_between":2000,"halvings":0,"cell_chars":16384,"cell_head_chars":4096},"cells_cut":0,"cells_raw":0,"read":"whole","date_system":"1900"}

{"sheet":"README","index":0,"n_rows":0,"n_cols":0,"rows_kept":0,"cut":false,"hidden":false,"merged":[]}

{"sheet":"purpose_code","index":1,"n_rows":304,"n_cols":4,"rows_kept":304,"cut":false,"hidden":false,"merged":[]}
["code","code name e",null,"P&S"]
[11110,"Education policy and administrative management",null,15200]
[11120,"Education facilities and training",null,15210]
[11130,"Teacher training",null,15220]
[11182,"Educational research",null,15230]
[11220,"Primary education",null,15240]
[11230,"Basic life skills for adults",null,15250]
[11231,"Basic life skills for youth",null,15261]
[11232,"Primary education equivalent for adults",null,1513010]
[11240,"Early childhood education",null,1513020]
[11250,"School feeding",null,1513030]
[11260,"Lower secondary education",null,1516010]
[11320,"Upper Secondary Education (modified and includes data from 11322)",null,1516020]
[11330,"Vocational training",null,1520010]
[11420,"Higher education",null,1520020]
[11430,"Advanced technical and managerial training"]
[12110,"Health policy and administrative management"]
[12181,"Medical education/training"]
[12182,"Medical research"]
[12191,"Medical services"]
[12196,"Health statistics and data"]
[12220,"Basic health care"]
[12230,"Basic health infrastructure"]
[12240,"Basic nutrition"]
[12250,"Infectious disease control"]
[12261,"Health education"]
[12262,"Malaria control"]
[12263,"Tuberculosis control"]
[12264,"COVID-19 control"]
[12281,"Health personnel development"]
[12310,"NCDs control, general"]
[12320,"Tobacco use control"]
[12330,"Control of harmful use of alcohol and drugs"]
[12340,"Promotion of mental health and well-being"]
[12350,"Other prevention and treatment of NCDs"]
[12382,"Research for prevention and control of NCDs"]
[13010,"Population policy and administrative management"]
[13020,"Reproductive health care"]
[13030,"Family planning"]
[13040,"STD control including HIV/AIDS"]
[13081,"Personnel development for population and reproductive health"]
[13096,"Population statistics and data"]
[14010,"Water sector policy and administrative management"]
[14015,"Water resources conservation (including data collection)"]
[14020,"Water supply and sanitation - large systems"]
[14021,"Water supply - large systems"]
[14022,"Sanitation - large systems"]
[14030,"Basic drinking water supply and basic sanitation"]
[14031,"Basic drinking water supply"]
[14032,"Basic sanitation"]
[14040,"River basins development"]
[14050,"Waste management/disposal"]
[14081,"Education and training in water supply and sanitation"]
[15110,"Public sector policy and administrative management"]
[15111,"Public finance management (PFM)"]
[15112,"Decentralisation and support to subnational government"]
[15113,"Anti-corruption organisations and institutions"]
[15114,"Domestic revenue mobilisation"]
[15116,"Tax collection"]
[15117,"Budget planning"]
[15118,"National audit"]
[15119,"Debt and aid management"]
[15121,"Foreign affairs"]
[15122,"Diplomatic missions"]
[15123,"Administration of developing countries' foreign aid"]
[15124,"General personnel services"]
[15125,"Public Procurement"]
[15126,"Other general public services"]
[15127,"National monitoring and evaluation"]
[15128,"Local government finance"]
[15129,"Other central transfers to institutions"]
[15130,"Legal and judicial development"]
[15131,"Justice, law and order policy, planning and administration"]
[15132,"Police"]
[15133,"Fire and rescue services"]
[15134,"Judicial affairs"]
[15135,"Ombudsman"]
[15136,"Immigration"]
[15137,"Prisons"]
[15142,"Macroeconomic policy"]
[15143,"Meteorological services"]
[15144,"National standards development"]
[15150,"Democratic participation and civil society"]
[15151,"Elections"]
[15152,"Legislatures and political parties"]
[15153,"Media and free flow of information"]
[15154,"Executive office"]
[15155,"Tax policy and administration support"]
[15156,"Other non-tax revenue mobilisation"]
[15160,"Human rights"]
[15170,"Women's rights organisations and movements, and government institutions"]
[15180,"Ending violence against women and girls"]
[15185,"Local government administration"]
[15190,"Facilitation of orderly, safe, regular and responsible migration and mobility"]
[15196,"Government and civil society statistics and data"]
[15210,"Security system management and reform"]
[15220,"Civilian peace-building, conflict prevention and resolution"]
[15230,"Participation in international peacekeeping operations"]
[15240,"Reintegration and SALW control"]
[15250,"Removal of land mines and explosive remnants of war"]
[15261,"Child soldiers (prevention and demobilisation)"]
[16010,"Social Protection"]
[16011,"Social protection and welfare services policy, planning and administration"]
[16012,"Social security (excl pensions)"]
[16013,"General pensions"]
[16014,"Civil service pensions"]
[16015,"Social services (incl youth development and women+ children)"]
[16020,"Employment creation"]
[16030,"Housing policy and administrative management"]
[16040,"Low-cost housing"]
[16050,"Multisector aid for basic social services"]
[16061,"Culture and cultural diversity"]
[16062,"Statistical capacity building"]
[16063,"Narcotics control"]
[16064,"Social mitigation of HIV/AIDS"]
[16065,"Recreation and sport"]
[16066,"Culture"]
[16070,"Labour rights"]
[16080,"Social dialogue"]
[21010,"Transport policy and administrative management"]
[21011,"Transport policy, planning and administration"]
[21012,"Public transport services"]
[21013,"Transport regulation"]
[21020,"Road transport"]
[21021,"Feeder road construction"]
[21022,"Feeder road maintenance"]
[21023,"National road construction"]
[21024,"National road maintenance"]
[21030,"Rail transport"]
[21040,"Water transport"]
[21050,"Air transport"]
[21061,"Storage"]
[21081,"Education and training in transport and storage"]
[22010,"Communications policy and administrative management"]
[22011,"Communications policy, planning and administration"]
[22012,"Postal services"]
[22013,"Information services"]
[22020,"Telecommunications"]
[22030,"Radio, television, print and online media"]
[22040,"Information and communication technology (ICT)"]
[22081,"Education and training in ICT, telecommunications and media"]
[23110,"Energy policy and administrative management"]
[23111,"Energy sector policy, planning and administration"]
[23112,"Energy regulation"]
[23181,"Energy education/training"]
[23182,"Energy research"]
[23183,"Energy conservation and demand-side efficiency"]
[23210,"Energy generation, renewable sources - multiple technologies"]
[23220,"Hydro-electric power plants"]
[23230,"Solar energy for centralised grids"]
[23231,"Solar energy for isolated grids and standalone systems"]
[23232,"Solar energy - thermal applications"]
[23240,"Wind energy"]
[23250,"Marine energy"]
[23260,"Geothermal energy"]
[23270,"Biofuel-fired power plants"]
[23310,"Energy generation, non-renewable sources, unspecified"]
[23320,"Coal-fired electric power plants"]
[23330,"Oil-fired electric power plants"]
[23340,"Natural gas-fired electric power plants"]
[23350,"Fossil fuel electric power plants with carbon capture and storage (CCS)"]
[23360,"Non-renewable waste-fired electric power plants"]
[23410,"Hybrid energy electric power plants"]
[23510,"Nuclear energy electric power plants and nuclear safety"]
[23610,"Heat plants"]
[23620,"District heating and cooling"]
[23630,"Electric power transmission and distribution (centralised grids)"]
[23631,"Electric power transmission and distribution (isolated mini-grids)"]
[23640,"Retail gas distribution"]
[23641,"Retail distribution of liquid or solid fossil fuels"]
[23642,"Electric mobility infrastructures"]
[24010,"Financial policy and administrative management"]
[24020,"Monetary institutions"]
[24030,"Formal sector financial intermediaries"]
[24040,"Informal/semi-formal financial intermediaries"]
[24050,"Remittance facilitation, promotion and optimisation"]
[24081,"Education/training in banking and financial services"]
[25010,"Business policy and administration"]
[25020,"Privatisation"]
[25030,"Business development services"]
[25040,"Responsible business conduct"]
[31110,"Agricultural policy and administrative management"]
[31120,"Agricultural development"]
[31130,"Agricultural land resources"]
[31140,"Agricultural water resources"]
[31150,"Agricultural inputs"]
[31161,"Food crop production"]
[31162,"Industrial crops/export crops"]
[31163,"Livestock"]
[31164,"Agrarian reform"]
[31165,"Agricultural alternative development"]
[31166,"Agricultural extension"]
[31181,"Agricultural education/training"]
[31182,"Agricultural research"]
[31191,"Agricultural services"]
[31192,"Plant and post-harvest protection and pest control"]
[31193,"Agricultural financial services"]
[31194,"Agricultural co-operatives"]
[31195,"Livestock/veterinary services"]
[31210,"Forestry policy and administrative management"]
[31220,"Forestry development"]
[31261,"Fuelwood/charcoal"]
[31281,"Forestry education/training"]
[31282,"Forestry research"]
[31291,"Forestry services"]
[31310,"Fishing policy and administrative management"]
[31320,"Fishery development"]
[31381,"Fishery education/training"]
[31382,"Fishery research"]
[31391,"Fishery services"]
[32110,"Industrial policy and administrative management"]
[32120,"Industrial development"]
[32130,"Small and medium-sized enterprises (SME) development"]
[32140,"Cottage industries and handicraft"]
[32161,"Agro-industries"]
[32162,"Forest industries"]
[32163,"Textiles, leather and substitutes"]
[32164,"Chemicals"]
[32165,"Fertilizer plants"]
[32166,"Cement/lime/plaster"]
[32167,"Energy manufacturing (fossil fuels)"]
[32168,"Pharmaceutical production"]
[32169,"Basic metal industries"]
[32170,"Non-ferrous metal industries"]
[32171,"Engineering"]
[32172,"Transport equipment industry"]
[32173,"Modern biofuels manufacturing"]
[32174,"Clean cooking appliances manufacturing, market development and distribution"]
[32182,"Technological research and development"]
[32210,"Mineral/mining policy and administrative management"]
[32220,"Mineral prospection and exploration"]
[32261,"Coal"]
[32262,"Oil and gas (upstream)"]
[32263,"Ferrous metals"]
[32264,"Nonferrous metals"]
[32265,"Precious metals/materials"]
[32266,"Industrial minerals"]
[32267,"Fertilizer minerals"]
[32268,"Offshore minerals"]
[32310,"Construction policy and administrative management"]
[33110,"Trade policy and administrative management"]
[33120,"Trade facilitation"]
[33130,"Regional trade agreements (RTAs)"]
[33140,"Multilateral trade negotiations"]
[33150,"Trade-related adjustment"]
[33181,"Trade education/training"]
[33210,"Tourism policy and administrative management"]
[41010,"Environmental policy and administrative management"]
[41020,"Biosphere protection"]
[41030,"Biodiversity"]
[41040,"Site preservation"]
[41081,"Environmental education/training"]
[41082,"Environmental research"]
[43010,"Multisector aid"]
[43030,"Urban development and management"]
[43031,"Urban land policy and management"]
[43032,"Urban development"]
[43040,"Rural development"]
[43041,"Rural land policy and management"]
[43042,"Rural development"]
[43050,"Non-agricultural alternative development"]
[43060,"Disaster Risk Reduction"]
[43071,"Food security policy and administrative management"]
[43072,"Household food security programmes"]
[43073,"Food safety and quality"]
[43081,"Multisector education/training"]
[43082,"Research/scientific institutions"]
[51010,"General budget support-related aid"]
[52010,"Food assistance"]
[53030,"Import support (capital goods)"]
[53040,"Import support (commodities)"]
[60010,"Action relating to debt"]
[60020,"Debt forgiveness"]
[60030,"Relief of multilateral debt"]
[60040,"Rescheduling and refinancing"]
[60061,"Debt for development swap"]
[60062,"Other debt swap"]
[60063,"Debt buy-back"]
[72010,"Material relief assistance and services "]
[72011,"Basic Health Care Services in Emergencies"]
[72012,"Education in emergencies"]
[72040,"Emergency food assistance"]
[72050,"Relief co-ordination and support services"]
[73010,"Immediate post-emergency reconstruction and rehabilitation"]
[74020,"Multi-hazard response preparedness"]
[91010,"Administrative costs (non-sector allocable)"]
[93010,"Refugees/asylum seekers  in donor countries (non-sector allocable)"]
[93011,"Refugees/asylum seekers in donor countries - food and shelter "]
[93012,"Refugees/asylum seekers in donor countries - training"]
[93013,"Refugees/asylum seekers in donor countries - health"]
[93014,"Refugees/asylum seekers in donor countries - other temporary sustenance"]
[93015,"Refugees/asylum seekers in donor countries - voluntary repatriation"]
[93016,"Refugees/asylum seekers in donor countries - transport"]
[93017,"Refugees/asylum seekers in donor countries - rescue at sea"]
[93018,"Refugees/asylum seekers in donor countries - administrative costs"]
[99810,"Sectors not specified"]
[99820,"Promotion of development awareness (non-sector allocable)"]
[1513010,"Fight against transnational organised crime"]
[1513020,"Countering violent extremism"]
[1513030,"Cyber security"]
[1516010,"Transitional justice"]
[1516020,"International criminal justice"]
[1520010,"Disarmament of Weapons of Mass Destruction (WMD)"]
[1520020,"Prevention of Violent Extremism"]

{"sheet":"TOSSD","index":2,"n_rows":4,"n_cols":32,"rows_kept":4,"cut":false,"hidden":false,"merged":[[0,0,0,4],[0,20,0,24],[0,5,0,17]]}
["A Identification data",null,null,null,null,"B. Basic data",null,null,null,null,null,null,null,null,null,null,null,null,null,null,"C. Volume data",null,null,null,null,"For in-kind technical co-operation","For loans only",null,"For mobilisation only"]
["1.Reporting year","2.Provider country/institution","3.Provider agency","4.Provider project number","5.TOSSD ID Number","6.TOSSD recipient","7.Project title","8.Description","9.External link","10a.SDG focus","10b.Keyword","11.Sector","12.Channelcode","13.Channel name","13b. Other partner entities and/or organisations","14.Modality","15.Financial instrument","16. Financing arrangement","17. Framework of collaboration","18. TOSSD pillar","19. Currency","20.   Amount committed (thousand)","21.   Amount disbursed (thousand)","22.   Reflows to the provider (thousand)","23.Amount mobilised  (thousand)","24. Salary cost (thousand)","25. Concessionality","26.Maturity (in months)","27.Leveraging mechanism","28.Origin of the funds mobilised","29. SSC-specific information","Notes"]
[1,2,3,4,5,6,7,8,9,10,14,11,12,13,null,14,15,16,17,18,19,20,21,22,23,24,25,26,27,28,29]
["Required item.\nCalendar year for which data are reported. \n","Required item.\nUnique code identifying the reporting country or institution. The list of codes is available in Excel (TOSSD code list at www.tossd.org). If you don’t find a code for your country/institution, please indicate the name in letters.\n","Unique code identifying the agency within the provider country that has budget responsibility and controls the activity for its own account. The provider agency is the government entity (central, state or local government agency or department) financing the activity from its own budget. For multilateral organisations, the code identifies the department or fund financing the activity within the institution. The list of codes is available in Excel (TOSSD code list at www.tossd.org). If you don’t find a code for a particular agency, please indicate the name in letters.","Unique code for identifying the project in the provider’s internal databases. Leave empty if the project is not identified by a code in your systems at present.","Unique code for identifying the project in the TOSSD database. Format is a 10-digit number starting by year.","Required item.\nUnique code identifying the country/region receiving the TOSSD cross-border flow, or benefiting from the in-kind technical co-operation. Each TOSSD recipient country/region has its own code. Consult the Secretariat about the possibility of using alternative regional classifications, such as the M49 UNSD classification.\n","Required item.\nFree text indicating the official project title in English, French or Spanish (size limit = 300 characters). If the project title is only available in another language, please provide it as such and the TOSSD Task Force Secretariat will make best efforts to translate it.\n","Free text describing the activity, including its objectives, planned outputs and outcomes, time frame, and budget (size limit = 8000 characters). The text should be provided in English, French or Spanish. Over time, the aspiration will be to collect this information in all UN languages. As indicated above for the project title, if the description is only available in another language only, please provide it as such.","Digital Object Identifier (DOI) or link to a web page (of the provider, implementing partner or recipient) containing detailed information on the activity.","Required item.\nMultiple codes identifying the target(s) in the UN list of SDG targets (e.g. 2.1, 3.3). The list of codes is available in Excel (TOSSD code list at www.tossd.org). Report the values separated by a “;”. \n\nIn case no direct link can be found to an SDG Target, report the goal as “x.0”, for example “2.0” for Goal 2 and provide an appropriate justification in the “notes” field at the end of the TOSSD data file. (See Reporting Instructions, paragraphs 47-49.)  Only report the targets that the activity directly and significantly contributes to. It is expected that, for most projects, the number of SDG targets should not exceed ten. Only the first ten SDG targets (and/or goals) reported per activity will be disseminated.\n","Multiple keywords to identify activities of particular policy interest, e.g.:\n#ADAPTATION\n#MITIGATION\n#COVID-19\n#NON-17.3.1\nUser-defined keywords (not preceded by the symbol #) can also be reported spontaneously by the data reporters.","Multiple codes identifying the sector(s) that the resource transfer is intended to foster. Reporting is based on either the OECD Creditor Reporting System purpose codes classification or the latest International Standard Industrial Classification maintained by the UN Statistics Division. Data reported in ISIC will be converted to the OECD CRS classification by the Secretariat using conversion tables. The list of codes for both classifications is available in Excel (TOSSD code list available at www.tossd.org). In the case where the activity benefits several sectors, a maximum of 10 sector codes can be assigned. The share of the contribution corresponding to each code should be reported with the percentages adding up to 100. Use one of the following formats: \n• a string that can be easily parsed such as: “23110:40|32262:30|15114:20|15160:10”; or\n• an XML string such as: “<sectors><sector code=\"23110\" percentage=\"40\"/><sector code=\"32262\" percentage=\"30\"/><sector code=\"15114\" percentage=\"20\" /><sector code=\"15160\" percentage=\"10\" /></sectors>”.\nIf details are not available, report one main sector only.\n","The channel of delivery is the first implementing partner. It has implementing responsibility over the funds and is normally accountable to the provider agency by a contract or other binding agreement. Indicate the code identifying the institution through which the activity is implemented. The list of codes is available in Excel (TOSSD code list available at www.tossd.org). In case the institution through which the activity is implemented does not have a channel of delivery code, indicate if possible a category. The channels of delivery classification includes six main categories as follows: \n• 10000: Public sector institutions include central, state or local government departments (e.g. municipalities) and public corporations in provider or recipient countries. \n• 20000: Non-governmental organisations (NGOs) and civil society. \n• 30000: Public-private partnerships (PPPs) and networks.\n• 40000: Multilateral organisations are international institutions with governmental membership. \n• 51000: Universities, colleges or other teaching institutions, including research institutes or think-thanks. \n• 60000: Private sector institutions, including all “for-profit” institutions, consultants and consultancy firms that do not meet the definition of a public sector institution.\n","Free text indicating the full name of the institution implementing the activity. If the institution has a channel of delivery code, this field is empty. ","Free text indicating, when applicable, the full names of additional entities or organisations involved in\nthe implementation of the activity, including in the context of triangular/trilateral co-operation (size limit = 500 characters). Use semicolons to separate each name. ","Unique code specifying the modality of co-operation used to implement the activity. The various modalities used in the context of TOSSD are as follows:\n• A00: BUDGET SUPPORT – Identifies contributions from the provider to the government budget of a recipient country, which has exclusive responsibility for the use of and accountability for the funds. Budget support can be generic (not sector allocated) or sectoral (e.g. energy, agriculture). \n• B01: CORE SUPPORT TO NGOS, OTHER PRIVATE BODIES, PPPS AND RESEARCH INSTITUTES\n• B02: CORE CONTRIBUTIONS TO MULTILATERAL INSTITUTIONS\n• B02a: ASSESSED CONTRIBUTIONS TO MULTILATERAL INSTITUTIONS\n• B02b: VOLUNTARY CORE CONTRIBUTIONS TO MULTILATERAL INSTITUTIONS\n• B03: CONTRIBUTIONS TO SPECIFIC PURPOSE PROGRAMMES AND FUNDS MANAGED BY IMPLEMENTING PARTNERS (EXCLUDING SELF-BENEFIT)\n• C01: PROJECTS – Identifies specific inputs, activities and outputs supported by a TOSSD provider, to reach specific objectives/outcomes within a defined time frame, with a defined budget and a defined geographical area.  \n• D01: IN-KIND TECHNICAL CO-OPERATION EXPERTS – Identifies technical co-operation implemented using public officials of the reporting country. Technical co-operation already embedded in the projects described above is not included, nor are experts hired on the market. \n• D02: OTHER TECHNICAL CO-OPERATION – Includes the provision of technical co-operation using internationally or locally recruited experts, beyond technical co-operation already embedded in the projects described above and beyond in-kind technical co-operation. All non-salary costs of experts (including those of public officials of the reporting country) such as flights, per-diem, accommodation, internal transportation within the recipient country and training, are also included. This category also covers training and research as well as various capacity building activities such as conferences, seminars, workshops, exchange visits.\n• E01: SCHOLARSHIPS/TRAINING IN PROVIDER COUNTRY– Includes financial awards for individual students, contributions to trainees in provider countries to nationals of TOSSD recipient countries.\n• E02: IMPUTED STUDENT COSTS – Includes indirect (“imputed”) costs of tuition in provider countries to nationals of TOSSD recipient countries. \n• F01: DEBT RELIEF - PRINCIPAL (ORIGINAL LOAN PREVIOUSLY RECORDED IN TOSSD).\n• F02: DEBT RELIEF - PRINCIPAL (ORIGINAL LOAN NOT RECORDED IN TOSSD).\n• F03: DEBT RELIEF – INTEREST.\n• G01: ADMINISTRATIVE COSTS – Includes administrative costs of delivering TOSSD activities, not included elsewhere.  When the exact amount cannot be identified, reporters may estimate these costs as follows: i) take as a starting point the total administrative costs of development co-operation agencies and other official entities involved in the delivery of TOSSD activities; and ii) do a pro-rata calculation, reflecting the share of TOSSD-eligible activities and countries in total expenditures of the institution. Administrative costs are included in Pillar II, but the costs of country or regional offices may be reported against the code of the country or region in which the activities are conducted.\n• H00: EXPENDITURES IN THE PROVIDER COUNTRY NOT REPORTED ELSEWHERE.\n• I01: SUPPORT TO REFUGEES/PROTECTED PERSONS IN THE PROVIDER COUNTRY (UP TO 12 MONTHS OF THEIR STAY). \n• I02: SUPPORT TO REFUGEES/PROTECTED PERSONS IN THE PROVIDER COUNTRY (BEYOND THE 12-MONTH PERIOD).\n• I03: SUPPORT TO REFUGEES/PROTECTED PERSONS - IN OTHER COUNTRIES OF ASYLUM.\n• I04: SUPPORT TO REFUGEES/PROTECTED PERSONS - VOLUNTARY RETURNS.\n• I05: SUPPORT TO REFUGEES/PROTECTED PERSONS/MIGRANTS FOR THEIR INTEGRATION IN THE ECONOMY OF PROVIDER COUNTRIES.","Required item.\nUnique code specifying the financial instrument used to fund the activity. The list of codes is available in Excel (TOSSD code list available at https://tossd.org/methodology/). The main categories of financial instruments are: grants, debt instruments, mezzanine finance instruments, equity and shares in collective investment vehicles, guarantees and other unfunded contingent liabilities, direct provider spending, and subsidies and similar transfers.\nClarification on officially-supported export credits: TOSSD financial instruments may include officially-supported export credits extended in association with development finance or explicitly designed to contribute to sustainable development objectives.\n","Multiple codes identifying specific characteristics of the financial arrangement:\n• FA01: BLENDED FINANCE – the strategic use of development finance for the mobilisation of additional finance towards sustainable development. \n• FA02: ISLAMIC FINANCE – sharia-compliant finance (the Islamic finance instruments are included in the financial instruments classification in the relevant categories).\n• FA03: CO-FINANCING ARRANGEMENTS INVOLVING RECIPIENT COUNTERPART FUNDS – the co-financing by the recipient country public institutions. \n• FA04: OFFICIALLY-SUPPORTED EXPORT CREDITS – credits extended by government-owned or controlled specialised export-financing agencies or institutions (ECAs) for commercial purposes to finance a specific purchase of goods or services from within the creditor country. They include both official direct export credits (i.e.  loans extended  by  ECAs to facilitate exports to developing countries) and officially-guaranteed/insured export credits (i.e. loans extended by the private sector, but guaranteed/insured by ECAs to finance an export transaction).\n","Multiple codes identifying specific frameworks of collaboration:\n• FC01: SOUTH-SOUTH CO-OPERATION – a broad framework of collaboration among countries of the South in the political, economic, social, cultural, environmental and technical domains. Involving two or more TOSSD recipient countries, it can take place on a bilateral, regional, intraregional or interregional basis. TOSSD recipients share knowledge, skills, expertise and resources to meet their development goals through concerted efforts. \n• FC02: TRIANGULAR CO-OPERATION – (also referred to as trilateral co-operation) involves a partnership among at least three partners, where three main roles can be identified as follows:\no The beneficiary partner, which is a TOSSD recipient country that requests support to tackle a specific development challenge.\no The pivotal partner that has relevant domestic experience  in addressing the issue in a context similar to that of the beneficiary country, and that shares its financial resources, knowledge and expertise to help others do the same. \no The facilitating partner that helps connect the other partners, and supports the partnership financially and/or with technical expertise. \n","Required item.\nA binary code indicating whether the activity falls under Pillar I or Pillar II of TOSSD. Pillar I (code 1) identifies cross-border resources extended to TOSSD recipients in support of sustainable development and also includes in-kind technical co-operation. Pillar II (code 2) identifies regional and global expenditures (that do not involve cross-border flows to TOSSD recipient countries) to support the provision of international public goods, promote development enablers and address global challenges. See Annex 2 for guidance on reporting on Pillar II.\n","Required item\nISO code for the currency in which the transaction has been undertaken. The list of codes is available in Excel (TOSSD code list available at www.tossd.org).  If you don’t find a code for your currency, please indicate the name in letters.\n","Required item.\nIn thousands of units (millions for Yen). \nNew amount committed contractually by the provider during the reporting year, i.e. the face value of the activity. \n","Required item.\nIn thousands of units (millions for Yen). \nAmount disbursed (expenditure) by the provider during the reporting year.  \n","Required item.\nIn thousands of units (millions for Yen).\nAmount paid back to the provider during the reporting year and related to recoveries on grants, amortisation of loans and gains or losses from equity sales. \n","In thousands of units (millions for Yen). \nTOSSD measures the resources mobilised by official development finance interventions from private sources, where a causal link between the provision of the private finance and the official intervention can be documented. Transactions are classified as official or private according to who owns or controls the financing entity (see paragraph 13 in the Reporting Instructions). Any resources mobilised from public entities should be excluded from the mobilisation measure. See also items 27 and 28. Please complete the supplementary data fields contained in the separate tab, for checking purposes at Secretariat’s end.\n\nSee paragraphs 58-63 and Annex F in the Reporting Instructions for details on the methodology.\n","In thousands of units (millions for Yen).\nSalary paid to the public official of the reporting country. Where salary costs are reported, all volume data should be reported in national currency. Given the differences in salary levels of public officials across countries, the value of in-kind technical co-operation in TOSSD will be calculated by applying the purchasing power parity (PPP) conversion factor for private consumption to the salary costs. (See paragraph 58 of the Reporting Instructions.) Please indicate the salary without applying the PPP factor, the Secretariat will apply the factor.\n","A binary “Yes” or “No” code indicating the concessionality of the loan according to the IMF definition. Concessional loans convey a grant element of at least 35%, currently calculated at a uniform rate of discount of 5%. Loans are considered non-concessional if they do not meet this IMF and WB definition of concessionality. To calculate the grant element of a loan, please use this link: https://www.imf.org/external/np/pdr/conc/calculator/ or reach out to the Secretariat. \nFor interest-free loans (in the context of the SSC co-operation conceptual framework only) concessionality = 2.\n","Interval (number of months) from commitment date to the date of the last payment of amortisation.","Unique code indicating the leveraging instrument used: \n1 = Syndicated loan, arranger\n2 = Syndicated loan, participant\n3 = Common shares in flat collective investment vehicle\n4 = Shares in the riskiest tranche of structured collective investment vehicle, first loss share and other (e.g. lock up share)\n5 = Shares in the mezzanine/senior tranche of structured CIV\n6 = Guarantee/insurance\n7 = Direct investment in companies, equity\n8 = Direct investment in companies, mezzanine/senior debt\n9 = Credit lines\n10 = Simple co-financing\n","Multiple codes identifying the origin of the funds mobilised:\n1 = provider country\n2 = recipient country\n3 = third high-income OECD country\n4 = other third country\n5 = multiple origins.\n","Information related to South-South co-operation in the context of pilot testing of the conceptual framework of SSC for SDG Indicator 17.3.1. (See Annex I of the Reporting Instructions). Include here the grant element of loans, non-monetary SSC inputs and/or outputs, as well as any SSC specific information useful in the context of the pilot study."]

{"sheet":"SDG_focus","index":3,"n_rows":205,"n_cols":2,"rows_kept":205,"cut":false,"hidden":true,"merged":[]}
["target","NameE"]
["0","activity screened but does not aim to contribute directly to any of the SDGs"]
["1","End poverty in all its forms everywhere"]
["1.1","By 2030, eradicate extreme poverty for all people everywhere, currently measured as people living on less than $1.25 a day"]
["1.2","By 2030, reduce at least by half the proportion of men, women and children of all ages living in poverty in all its dimensions according to national definitions"]
["1.3","Implement nationally appropriate social protection systems and measures for all, including floors, and by 2030 achieve substantial coverage of the poor and the vulnerable"]
["1.4","By 2030, ensure that all men and women, in particular the poor and the vulnerable, have equal rights to economic resources, as well as access to basic services, ownership and control over land and other forms of property, inheritance, natural resources, appropriate new technology and financial services, including microfinance"]
["1.5","By 2030, build the resilience of the poor and those in vulnerable situations and reduce their exposure and vulnerability to climate-related extreme events and other economic, social and environmental shocks and disasters"]
["1.a","Ensure significant mobilization of resources from a variety of sources, including through enhanced development cooperation, in order to provide adequate and predictable means for developing countries, in particular least developed countries, to implement programmes and policies to end poverty in all its dimensions"]
["1.b","Create sound policy frameworks at the national, regional and international levels, based on pro-poor and gender-sensitive development strategies, to support accelerated investment in poverty eradication actions"]
["2","End hunger, achieve food security and improved nutrition and promote sustainable agriculture"]
["2.1","By 2030, end hunger and ensure access by all people, in particular the poor and people in vulnerable situations, including infants, to safe, nutritious and sufficient food all year round"]
["2.2","By 2030, end all forms of malnutrition, including achieving, by 2025, the internationally agreed targets on stunting and wasting in children under 5 years of age, and address the nutritional needs of adolescent girls, pregnant and lactating women and older persons"]
["2.3","By 2030, double the agricultural productivity and incomes of small-scale food producers, in particular women, indigenous peoples, family farmers, pastoralists and fishers, including through secure and equal access to land, other productive resources and inputs, knowledge, financial services, markets and opportunities for value addition and non-farm employment"]
["2.4","By 2030, ensure sustainable food production systems and implement resilient agricultural practices that increase productivity and production, that help maintain ecosystems, that strengthen capacity for adaptation to climate change, extreme weather, drought, flooding and other disasters and that progressively improve land and soil quality"]
["2.5","By 2020, maintain the genetic diversity of seeds, cultivated plants and farmed and domesticated animals and their related wild species, including through soundly managed and diversified seed and plant banks at the national, regional and international levels, and promote access to and fair and equitable sharing of benefits arising from the utilization of genetic resources and associated traditional knowledge, as internationally agreed"]
["2.a","Increase investment, including through enhanced international cooperation, in rural infrastructure, agricultural research and extension services, technology development and plant and livestock gene banks in order to enhance agricultural productive capacity in developing countries, in particular least developed countries"]
["2.b","Correct and prevent trade restrictions and distortions in world agricultural markets, including through the parallel elimination of all forms of agricultural export subsidies and all export measures with equivalent effect, in accordance with the mandate of the Doha Development Round"]
["2.c","Adopt measures to ensure the proper functioning of food commodity markets and their derivatives and facilitate timely access to market information, including on food reserves, in order to help limit extreme food price volatility"]
["3","Ensure healthy lives and promote well-being for all at all ages"]
["3.1","By 2030, reduce the global maternal mortality ratio to less than 70 per 100,000 live births"]
["3.2","By 2030, end preventable deaths of newborns and children under 5 years of age, with all countries aiming to reduce neonatal mortality to at least as low as 12 per 1,000 live births and under-5 mortality to at least as low as 25 per 1,000 live births"]
["3.3","By 2030, end the epidemics of AIDS, tuberculosis, malaria and neglected tropical diseases and combat hepatitis, water-borne diseases and other communicable diseases"]
["3.4","By 2030, reduce by one third premature mortality from non-communicable diseases through prevention and treatment and promote mental health and well-being"]
["3.5","Strengthen the prevention and treatment of substance abuse, including narcotic drug abuse and harmful use of alcohol"]
["3.6","By 2020, halve the number of global deaths and injuries from road traffic accidents"]
["3.7","By 2030, ensure universal access to sexual and reproductive health-care services, including for family planning, information and education, and the integration of reproductive health into national strategies and programmes"]
["3.8","Achieve universal health coverage, including financial risk protection, access to quality essential health-care services and access to safe, effective, quality and affordable essential medicines and vaccines for all"]
["3.9","By 2030, substantially reduce the number of deaths and illnesses from hazardous chemicals and air, water and soil pollution and contamination"]
["3.a","Strengthen the implementation of the World Health Organization Framework Convention on Tobacco Control in all countries, as appropriate"]
["3.b","Support the research and development of vaccines and medicines for the communicable and non-communicable diseases that primarily affect developing countries, provide access to affordable essential medicines and vaccines, in accordance with the Doha Declaration on the TRIPS Agreement and Public Health, which affirms the right of developing countries to use to the full the provisions in the Agreement on Trade-Related Aspects of Intellectual Property Rights regarding flexibilities to protect public health, and, in particular, provide access to medicines for all"]
["3.c","Substantially increase health financing and the recruitment, development, training and retention of the health workforce in developing countries, especially in least developed countries and small island developing States"]
["3.d","Strengthen the capacity of all countries, in particular developing countries, for early warning, risk reduction and management of national and global health risks"]
["4","Ensure inclusive and equitable quality education and promote lifelong learning opportunities for all"]
["4.1","By 2030, ensure that all girls and boys complete free, equitable and quality primary and secondary education leading to relevant and effective learning outcomes"]
["4.2","By 2030, ensure that all girls and boys have access to quality early childhood development, care and pre-primary education so that they are ready for primary education"]
["4.3","By 2030, ensure equal access for all women and men to affordable and quality technical, vocational and tertiary education, including university"]
["4.4","By 2030, substantially increase the number of youth and adults who have relevant skills, including technical and vocational skills, for employment, decent jobs and entrepreneurship"]
["4.5","By 2030, eliminate gender disparities in education and ensure equal access to all levels of education and vocational training for the vulnerable, including persons with disabilities, indigenous peoples and children in vulnerable situations"]
["4.6","By 2030, ensure that all youth and a substantial proportion of adults, both men and women, achieve literacy and numeracy"]
["4.7","By 2030, ensure that all learners acquire the knowledge and skills needed to promote sustainable development, including, among others, through education for sustainable development and sustainable lifestyles, human rights, gender equality, promotion of a culture of peace and non-violence, global citizenship and appreciation of cultural diversity and of culture’s contribution to sustainable development"]
["4.a","Build and upgrade education facilities that are child, disability and gender sensitive and provide safe, non-violent, inclusive and effective learning environments for all"]
["4.b","By 2020, substantially expand globally the number of scholarships available to developing countries, in particular least developed countries, small island developing States and African countries, for enrolment in higher education, including vocational training and information and communications technology, technical, engineering and scientific programmes, in developed countries and other developing countries"]
["4.c","By 2030, substantially increase the supply of qualified teachers, including through international cooperation for teacher training in developing countries, especially least developed countries and small island developing States"]
["5","Achieve gender equality and empower all women and girls"]
["5.1","End all forms of discrimination against all women and girls everywhere"]
["5.2","Eliminate all forms of violence against all women and girls in the public and private spheres, including trafficking and sexual and other types of exploitation"]
["5.3","Eliminate all harmful practices, such as child, early and forced marriage and female genital mutilation"]
["5.4","Recognize and value unpaid care and domestic work through the provision of public services, infrastructure and social protection policies and the promotion of shared responsibility within the household and the family as nationally appropriate"]
["5.5","Ensure women’s full and effective participation and equal opportunities for leadership at all levels of decision-making in political, economic and public life"]
["5.6","Ensure universal access to sexual and reproductive health and reproductive rights as agreed in accordance with the Programme of Action of the International Conference on Population and Development and the Beijing Platform for Action and the outcome documents of their review conferences"]
["5.a","Undertake reforms to give women equal rights to economic resources, as well as access to ownership and control over land and other forms of property, financial services, inheritance and natural resources, in accordance with national laws"]
["5.b","Enhance the use of enabling technology, in particular information and communications technology, to promote the empowerment of women"]
["5.c","Adopt and strengthen sound policies and enforceable legislation for the promotion of gender equality and the empowerment of all women and girls at all levels"]
["6","Ensure availability and sustainable management of water and sanitation for all"]
["6.1","By 2030, achieve universal and equitable access to safe and affordable drinking water for all"]
["6.2","By 2030, achieve access to adequate and equitable sanitation and hygiene for all and end open defecation, paying special attention to the needs of women and girls and those in vulnerable situations"]
["6.3","By 2030, improve water quality by reducing pollution, eliminating dumping and minimizing release of hazardous chemicals and materials, halving the proportion of untreated wastewater and substantially increasing recycling and safe reuse globally"]
["6.4","By 2030, substantially increase water-use efficiency across all sectors and ensure sustainable withdrawals and supply of freshwater to address water scarcity and substantially reduce the number of people suffering from water scarcity"]
["6.5","By 2030, implement integrated water resources management at all levels, including through transboundary cooperation as appropriate"]
["6.6","By 2020, protect and restore water-related ecosystems, including mountains, forests, wetlands, rivers, aquifers and lakes"]
["6.a","By 2030, expand international cooperation and capacity-building support to developing countries in water- and sanitation-related activities and programmes, including water harvesting, desalination, water efficiency, wastewater treatment, recycling and reuse technologies"]
["6.b","Support and strengthen the participation of local communities in improving water and sanitation management"]
["7","Ensure access to affordable, reliable, sustainable and modern energy for all"]
["7.1","By 2030, ensure universal access to affordable, reliable and modern energy services"]
["7.2","By 2030, increase substantially the share of renewable energy in the global energy mix"]
["7.3","By 2030, double the global rate of improvement in energy efficiency"]
["7.a","By 2030, enhance international cooperation to facilitate access to clean energy research and technology, including renewable energy, energy efficiency and advanced and cleaner fossil-fuel technology, and promote investment in energy infrastructure and clean energy technology"]
["7.b","By 2030, expand infrastructure and upgrade technology for supplying modern and sustainable energy services for all in developing countries, in particular least developed countries, small island developing States and landlocked developing countries, in accordance with their respective programmes of support"]
["8","Promote sustained, inclusive and sustainable economic growth, full and productive employment and decent work for all"]
["8.1","Sustain per capita economic growth in accordance with national circumstances and, in particular, at least 7 per cent gross domestic product growth per annum in the least developed countries"]
["8.2","Achieve higher levels of economic productivity through diversification, technological upgrading and innovation, including through a focus on high-value added and labour-intensive sectors"]
["8.3","Promote development-oriented policies that support productive activities, decent job creation, entrepreneurship, creativity and innovation, and encourage the formalization and growth of micro-, small- and medium-sized enterprises, including through access to financial services"]
["8.4","Improve progressively, through 2030, global resource efficiency in consumption and production and endeavour to decouple economic growth from environmental degradation, in accordance with the 10-Year Framework of Programmes on Sustainable Consumption and Production, with developed countries taking the lead"]
["8.5","By 2030, achieve full and productive employment and decent work for all women and men, including for young people and persons with disabilities, and equal pay for work of equal value"]
["8.6","By 2020, substantially reduce the proportion of youth not in employment, education or training"]
["8.7","Take immediate and effective measures to eradicate forced labour, end modern slavery and human trafficking and secure the prohibition and elimination of the worst forms of child labour, including recruitment and use of child soldiers, and by 2025 end child labour in all its forms "]
["8.8","Protect labour rights and promote safe and secure working environments for all workers, including migrant workers, in particular women migrants, and those in precarious employment"]
["8.9","By 2030, devise and implement policies to promote sustainable tourism that creates jobs and promotes local culture and products"]
["8.10","Strengthen the capacity of domestic financial institutions to encourage and expand access to banking, insurance and financial services for all"]
["8.a","Increase Aid for Trade support for developing countries, in particular least developed countries, including through the Enhanced Integrated Framework for Trade-related Technical Assistance to Least Developed Countries"]
["8.b","By 2020, develop and operationalize a global strategy for youth employment and implement the Global Jobs Pact of the International Labour Organization"]
["9","Build resilient infrastructure, promote inclusive and sustainable industrialization and foster innovation"]
["9.1","Develop quality, reliable, sustainable and resilient infrastructure, including regional and transborder infrastructure, to support economic development and human well-being, with a focus on affordable and equitable access for all"]
["9.2","Promote inclusive and sustainable industrialization and, by 2030, significantly raise industry’s share of employment and gross domestic product, in line with national circumstances, and double its share in least developed countries"]
["9.3","Increase the access of small-scale industrial and other enterprises, in particular in developing countries, to financial services, including affordable credit, and their integration into value chains and markets"]
["9.4","By 2030, upgrade infrastructure and retrofit industries to make them sustainable, with increased resource-use efficiency and greater adoption of clean and environmentally sound technologies and industrial processes, with all countries taking action in accordance with their respective capabilities"]
["9.5","Enhance scientific research, upgrade the technological capabilities of industrial sectors in all countries, in particular developing countries, including, by 2030, encouraging innovation and substantially increasing the number of research and development workers per 1 million people and public and private research and development spending"]
["9.a","Facilitate sustainable and resilient infrastructure development in developing countries through enhanced financial, technological and technical support to African countries, least developed countries, landlocked developing countries and small island developing States"]
["9.b","Support domestic technology development, research and innovation in developing countries, including by ensuring a conducive policy environment for, inter alia, industrial diversification and value addition to commodities"]
["9.c","Significantly increase access to information and communications technology and strive to provide universal and affordable access to the Internet in least developed countries by 2020"]
["10","Reduce inequality within and among countries"]
["10.1","By 2030, progressively achieve and sustain income growth of the bottom 40 per cent of the population at a rate higher than the national average"]
["10.2","By 2030, empower and promote the social, economic and political inclusion of all, irrespective of age, sex, disability, race, ethnicity, origin, religion or economic or other status"]
["10.3","Ensure equal opportunity and reduce inequalities of outcome, including by eliminating discriminatory laws, policies and practices and promoting appropriate legislation, policies and action in this regard"]
["10.4","Adopt policies, especially fiscal, wage and social protection policies, and progressively achieve greater equality"]
["10.5","Improve the regulation and monitoring of global financial markets and institutions and strengthen the implementation of such regulations"]
["10.6","Ensure enhanced representation and voice for developing countries in decision-making in global international economic and financial institutions in order to deliver more effective, credible, accountable and legitimate institutions"]
["10.7","Facilitate orderly, safe, regular and responsible migration and mobility of people, including through the implementation of planned and well-managed migration policies"]
["10.a","Implement the principle of special and differential treatment for developing countries, in particular least developed countries, in accordance with World Trade Organization agreements"]
["10.b","Encourage official development assistance and financial flows, including foreign direct investment, to States where the need is greatest, in particular least developed countries, African countries, small island developing States and landlocked developing countries, in accordance with their national plans and programmes"]
["10.c","By 2030, reduce to less than 3 per cent the transaction costs of migrant remittances and eliminate remittance corridors with costs higher than 5 per cent"]
["11","Make cities and human settlements inclusive, safe, resilient and sustainable"]
["11.1","By 2030, ensure access for all to adequate, safe and affordable housing and basic services and upgrade slums"]
["11.2","By 2030, provide access to safe, affordable, accessible and sustainable transport systems for all, improving road safety, notably by expanding public transport, with special attention to the needs of those in vulnerable situations, women, children, persons with disabilities and older persons"]
["11.3","By 2030, enhance inclusive and sustainable urbanization and capacity for participatory, integrated and sustainable human settlement planning and management in all countries"]
["11.4","Strengthen efforts to protect and safeguard the world’s cultural and natural heritage"]
["11.5","By 2030, significantly reduce the number of deaths and the number of people affected and substantially decrease the direct economic losses relative to global gross domestic product caused by disasters, including water-related disasters, with a focus on protecting the poor and people in vulnerable situations"]
["11.6","By 2030, reduce the adverse per capita environmental impact of cities, including by paying special attention to air quality and municipal and other waste management"]
["11.7","By 2030, provide universal access to safe, inclusive and accessible, green and public spaces, in particular for women and children, older persons and persons with disabilities"]
["11.a","Support positive economic, social and environmental links between urban, peri-urban and rural areas by strengthening national and regional development planning"]
["11.b","By 2020, substantially increase the number of cities and human settlements adopting and implementing integrated policies and plans towards inclusion, resource efficiency, mitigation and adaptation to climate change, resilience to disasters, and develop and implement, in line with the Sendai Framework for Disaster Risk Reduction 2015–2030, holistic disaster risk management at all levels"]
["11.c","Support least developed countries, including through financial and technical assistance, in building sustainable and resilient buildings utilizing local materials"]
["12","Ensure sustainable consumption and production patterns"]
["12.1","Implement the 10-Year Framework of Programmes on Sustainable Consumption and Production Patterns, all countries taking action, with developed countries taking the lead, taking into account the development and capabilities of developing countries"]
["12.2","By 2030, achieve the sustainable management and efficient use of natural resources"]
["12.3","By 2030, halve per capita global food waste at the retail and consumer levels and reduce food losses along production and supply chains, including post-harvest losses"]
["12.4","By 2020, achieve the environmentally sound management of chemicals and all wastes throughout their life cycle, in accordance with agreed international frameworks, and significantly reduce their release to air, water and soil in order to minimize their adverse impacts on human health and the environment"]
["12.5","By 2030, substantially reduce waste generation through prevention, reduction, recycling and reuse"]
["12.6","Encourage companies, especially large and transnational companies, to adopt sustainable practices and to integrate sustainability information into their reporting cycle"]
["12.7","Promote public procurement practices that are sustainable, in accordance with national policies and priorities"]
["12.8","By 2030, ensure that people everywhere have the relevant information and awareness for sustainable development and lifestyles in harmony with nature"]
["12.a","Support developing countries to strengthen their scientific and technological capacity to move towards more sustainable patterns of consumption and production"]
["12.b","Develop and implement tools to monitor sustainable development impacts for sustainable tourism that creates jobs and promotes local culture and products"]
["12.c","Rationalize inefficient fossil-fuel subsidies that encourage wasteful consumption by removing market distortions, in accordance with national circumstances, including by restructuring taxation and phasing out those harmful subsidies, where they exist, to reflect their environmental impacts, taking fully into account the specific needs and conditions of developing countries and minimizing the possible adverse impacts on their development in a manner that protects the poor and the affected communities"]
["13","Take urgent action to combat climate change and its impacts"]
["13.1","Strengthen resilience and adaptive capacity to climate-related hazards and natural disasters in all countries"]
["13.2","Integrate climate change measures into national policies, strategies and planning"]
["13.3","Improve education, awareness-raising and human and institutional capacity on climate change mitigation, adaptation, impact reduction and early warning"]
["13.a","Implement the commitment undertaken by developed-country parties to the United Nations Framework Convention on Climate Change to a goal of mobilizing jointly $100 billion annually by 2020 from all sources to address the needs of developing countries in the context of meaningful mitigation actions and transparency on implementation and fully operationalize the Green Climate Fund through its capitalization as soon as possible"]
["13.b","Promote mechanisms for raising capacity for effective climate change-related planning and management in least developed countries and small island developing States, including focusing on women, youth and local and marginalized communities"]
["14","Conserve and sustainably use the oceans, seas and marine resources for sustainable development"]
["14.1","By 2025, prevent and significantly reduce marine pollution of all kinds, in particular from land-based activities, including marine debris and nutrient pollution"]
["14.2","By 2020, sustainably manage and protect marine and coastal ecosystems to avoid significant adverse impacts, including by strengthening their resilience, and take action for their restoration in order to achieve healthy and productive oceans"]
["14.3","Minimize and address the impacts of ocean acidification, including through enhanced scientific cooperation at all levels"]
["14.4","By 2020, effectively regulate harvesting and end overfishing, illegal, unreported and unregulated fishing and destructive fishing practices and implement science-based management plans, in order to restore fish stocks in the shortest time feasible, at least to levels that can produce maximum sustainable yield as determined by their biological characteristics"]
["14.5","By 2020, conserve at least 10 per cent of coastal and marine areas, consistent with national and international law and based on the best available scientific information"]
["14.6","By 2020, prohibit certain forms of fisheries subsidies which contribute to overcapacity and overfishing, eliminate subsidies that contribute to illegal, unreported and unregulated fishing and refrain from introducing new such subsidies, recognizing that appropriate and effective special and differential treatment for developing and least developed countries should be an integral part of the World Trade Organization fisheries subsidies negotiation3"]
["14.7","By 2030, increase the economic benefits to small island developing States and least developed countries from the sustainable use of marine resources, including through sustainable management of fisheries, aquaculture and tourism"]
["14.a","Increase scientific knowledge, develop research capacity and transfer marine technology, taking into account the Intergovernmental Oceanographic Commission Criteria and Guidelines on the Transfer of Marine Technology, in order to improve ocean health and to enhance the contribution of marine biodiversity to the development of developing countries, in particular small island developing States and least developed countries"]
["14.b","Provide access for small-scale artisanal fishers to marine resources and markets"]
["14.c","Enhance the conservation and sustainable use of oceans and their resources by implementing international law as reflected in the United Nations Convention on the Law of the Sea, which provides the legal framework for the conservation and sustainable use of oceans and their resources, as recalled in paragraph 158 of “The future we want”"]
["15","Protect, restore and promote sustainable use of terrestrial ecosystems, sustainably manage forests, combat desertification, and halt and reverse land degradation and halt biodiversity loss"]
["15.1","By 2020, ensure the conservation, restoration and sustainable use of terrestrial and inland freshwater ecosystems and their services, in particular forests, wetlands, mountains and drylands, in line with obligations under international agreements"]
["15.2","By 2020, promote the implementation of sustainable management of all types of forests, halt deforestation, restore degraded forests and substantially increase afforestation and reforestation globally"]
["15.3","By 2030, combat desertification, restore degraded land and soil, including land affected by desertification, drought and floods, and strive to achieve a land degradation-neutral world"]
["15.4","By 2030, ensure the conservation of mountain ecosystems, including their biodiversity, in order to enhance their capacity to provide benefits that are essential for sustainable development"]
["15.5","Take urgent and significant action to reduce the degradation of natural habitats, halt the loss of biodiversity and, by 2020, protect and prevent the extinction of threatened species"]
["15.6","Promote fair and equitable sharing of the benefits arising from the utilization of genetic resources and promote appropriate access to such resources, as internationally agreed"]
["15.7","Take urgent action to end poaching and trafficking of protected species of flora and fauna and address both demand and supply of illegal wildlife products"]
["15.8","By 2020, introduce measures to prevent the introduction and significantly reduce the impact of invasive alien species on land and water ecosystems and control or eradicate the priority species"]
["15.9","By 2020, integrate ecosystem and biodiversity values into national and local planning, development processes, poverty reduction strategies and accounts"]
["15.a","Mobilize and significantly increase financial resources from all sources to conserve and sustainably use biodiversity and ecosystems"]
["15.b","Mobilize significant resources from all sources and at all levels to finance sustainable forest management and provide adequate incentives to developing countries to advance such management, including for conservation and reforestation"]
["15.c","Enhance global support for efforts to combat poaching and trafficking of protected species, including by increasing the capacity of local communities to pursue sustainable livelihood opportunities"]
["16","Promote peaceful and inclusive societies for sustainable development, provide access to justice for all and build effective, accountable and inclusive institutions at all levels"]
["16.1","Significantly reduce all forms of violence and related death rates everywhere"]
["16.2","End abuse, exploitation, trafficking and all forms of violence against and torture of children"]
["16.3","Promote the rule of law at the national and international levels and ensure equal access to justice for all"]
["16.4","By 2030, significantly reduce illicit financial and arms flows, strengthen the recovery and return of stolen assets and combat all forms of organized crime"]
["16.5","Substantially reduce corruption and bribery in all their forms"]
["16.6","Develop effective, accountable and transparent institutions at all levels"]
["16.7","Ensure responsive, inclusive, participatory and representative decision-making at all levels"]
["16.8","Broaden and strengthen the participation of developing countries in the institutions of global governance"]
["16.9","By 2030, provide legal identity for all, including birth registration"]
["16.10","Ensure public access to information and protect fundamental freedoms, in accordance with national legislation and international agreements"]
["16.a","Strengthen relevant national institutions, including through international cooperation, for building capacity at all levels, in particular in developing countries, to prevent violence and combat terrorism and crime"]
["16.b","Promote and enforce non-discriminatory laws and policies for sustainable development"]
["17","Strengthen the means of implementation and revitalize the global partnership for sustainable development"]
["17.1","Strengthen domestic resource mobilization, including through international support to developing countries, to improve domestic capacity for tax and other revenue collection"]
["17.2","Developed countries to implement fully their official development assistance commitments, including the commitment by many developed countries to achieve the target of 0.7 per cent of gross national income for official development assistance (ODA/GNI) to developing countries and 0.15 to 0.20 per cent of ODA/GNI to least developed countries; ODA providers are encouraged to consider setting a target to provide at least 0.20 per cent of ODA/GNI to least developed countries"]
["17.3","Mobilize additional financial resources for developing countries from multiple sources"]
["17.4","Assist developing countries in attaining long-term debt sustainability through coordinated policies aimed at fostering debt financing, debt relief and debt restructuring, as appropriate, and address the external debt of highly indebted poor countries to reduce debt distress"]
["17.5","Adopt and implement investment promotion regimes for least developed countries"]
["17.6","Enhance North-South, South-South and triangular regional and international cooperation on and access to science, technology and innovation and enhance knowledge-sharing on mutually agreed terms, including through improved coordination among existing mechanisms, in particular at the United Nations level, and through a global technology facilitation mechanism"]
["17.7","Promote the development, transfer, dissemination and diffusion of environmentally sound technologies to developing countries on favourable terms, including on concessional and preferential terms, as mutually agreed"]
["17.8","Fully operationalize the technology bank and science, technology and innovation capacity-building mechanism for least developed countries by 2017 and enhance the use of enabling technology, in particular information and communications technology"]
["17.9","Enhance international support for implementing effective and targeted capacity-building in developing countries to support national plans to implement all the Sustainable Development Goals, including through North-South, South-South and triangular cooperation"]
["17.10","Promote a universal, rules-based, open, non-discriminatory and equitable multilateral trading system under the World Trade Organization, including through the conclusion of negotiations under its Doha Development Agenda"]
["17.11","Significantly increase the exports of developing countries, in particular with a view to doubling the least developed countries’ share of global exports by 2020"]
["17.12","Realize timely implementation of duty-free and quota-free market access on a lasting basis for all least developed countries, consistent with World Trade Organization decisions, including by ensuring that preferential rules of origin applicable to imports from least developed countries are transparent and simple, and contribute to facilitating market access"]
["17.13","Enhance global macroeconomic stability, including through policy coordination and policy coherence"]
["17.14","Enhance policy coherence for sustainable development"]
["17.15","Respect each country’s policy space and leadership to establish and implement policies for poverty eradication and sustainable development"]
["17.16","Enhance the Global Partnership for Sustainable Development, complemented by multi-stakeholder partnerships that mobilize and share knowledge, expertise, technology and financial resources, to support the achievement of the Sustainable Development Goals in all countries, in particular developing countries"]
["17.17","Encourage and promote effective public, public-private and civil society partnerships, building on the experience and resourcing strategies of partnerships"]
["17.18","By 2020, enhance capacity-building support to developing countries, including for least developed countries and small island developing States, to increase significantly the availability of high-quality, timely and reliable data disaggregated by income, gender, age, race, ethnicity, migratory status, disability, geographic location and other characteristics relevant in national contexts"]
["17.19","By 2030, build on existing initiatives to develop measurements of progress on sustainable development that complement gross domestic product, and support statistical capacity-building in developing countries"]
["1.0"]
["2.0"]
["3.0"]
["4.0"]
["5.0"]
["6.0"]
["7.0"]
["8.0"]
["9.0"]
["10.0"]
["11.0"]
["12.0"]
["13.0"]
["14.0"]
["15.0"]
["16.0"]
["17.0"]

{"sheet":"Currency","index":4,"n_rows":61,"n_cols":3,"rows_kept":61,"cut":false,"hidden":true,"merged":[]}
["code","iso3","name_e"]
[3,"DKK","Danish krone"]
[8,"NOK","Norwegian krone"]
[10,"SEK","Swedish krona"]
[11,"CHF","Swiss franc"]
[12,"GBP","Pound sterling"]
[20,"ISK","Icelandic króna"]
[55,"TRY","Turkish lira"]
[62,"HRV","Croatian kuna"]
[68,"CZK","Czech koruna"]
[70,"CHF","Swiss franc"]
[72,"BGN","Bulgarian lev"]
[75,"HUF","Hungarian forint"]
[76,"PLN","Polish zloty"]
[77,"RON","Romanian leu"]
[87,"RUB","Russian ruble"]
[130,"DZD","Algerian dinar"]
[133,"LYD","Libyan dinar"]
[218,"ZAR","South African rand"]
[241,"GHS","Ghanaian cedi"]
[243,"GNF","Guinean franc"]
[252,"MGA","Malagasy ariary"]
[256,"MRO","Mauritanian ouguiya"]
[261,"NGN","Naira"]
[274,"DJF","Djiboutian franc"]
[301,"CAD","Canadian dollar"]
[302,"USD","United States dollar"]
[336,"CRC","Costa Rica colon"]
[358,"MXN","Mexican peso"]
[425,"ARS","Argentine peso"]
[431,"BRL","Brazilian real"]
[434,"CLP","Chilean peso"]
[454,"PEN","Peruvian Sol"]
[540,"IRR","Iranian rial "]
[543,"IQD","Iraqi dinar"]
[546,"ILS","Israeli new shekel"]
[552,"KWD","Kuwaiti dinar"]
[558,"OMR","Omani rial"]
[561,"QAR","Qatari riyal"]
[566,"SAR","Saudi riyal"]
[576,"AED","UAE dirham"]
[611,"AZN","Azerbaijani manat"]
[613,"KZT","Kazakhstani tenge"]
[645,"INR","Indian rupee"]
[701,"JPY","Japanese yen"]
[730,"CNY","Chinese yuan"]
[732,"TWD","New Taiwan dollar"]
[735,"HKD","Hong Kong dollar"]
[738,"IDR","Indonesian rupiah"]
[742,"KRW","South Korean won"]
[751,"MYR","Malaysian ringgit"]
[755,"PHP","Philippine peso"]
[761,"SGD","Singapore dollar"]
[764,"THB","Thai baht"]
[765,"USD","United States dollar"]
[801,"AUD","Australian dollar"]
[820,"NZD","New Zealand dollar"]
[854,"VUV","Vanuatu vatu"]
[914,"UA","Unit of Account"]
[918,"EUR","Euro"]
[943,"XDR","Special Drawing Rights"]

{"sheet":"recipient_country","index":5,"n_rows":178,"n_cols":7,"rows_kept":178,"cut":false,"hidden":true,"merged":[]}
["Recipient code","Recipient name (EN)",null,null,null,null,"region"]
[55,"Türkiye",null,null,null,null,89]
[57,"Kosovo",null,null,null,null,189]
[63,"Serbia",null,null,null,null,289]
[64,"Bosnia and Herzegovina",null,null,null,null,298]
[65,"Montenegro",null,null,null,null,389]
[66,"North Macedonia",null,null,null,null,489]
[71,"Albania",null,null,null,null,498]
[85,"Ukraine",null,null,null,null,589]
[86,"Belarus",null,null,null,null,619]
[88,"States Ex-Yugoslavia unspecified",null,null,null,null,679]
[89,"Europe, regional",null,null,null,null,689]
[93,"Moldova",null,null,null,null,789]
[130,"Algeria",null,null,null,null,798]
[133,"Libya",null,null,null,null,889]
[136,"Morocco",null,null,null,null,998]
[139,"Tunisia",null,null,null,null,999]
[142,"Egypt",null,null,null,null,1027]
[189,"North of Sahara, regional",null,null,null,null,1028]
[218,"South Africa",null,null,null,null,1029]
[225,"Angola",null,null,null,null,1030]
[227,"Botswana",null,null,null,null,1031]
[228,"Burundi",null,null,null,null,1032]
[229,"Cameroon",null,null,null,null,1033]
[230,"Cabo Verde",null,null,null,null,1034]
[231,"Central African Republic",null,null,null,null,1035]
[232,"Chad"]
[233,"Comoros"]
[234,"Congo"]
[235,"Democratic Republic of the Congo"]
[236,"Benin"]
[238,"Ethiopia"]
[239,"Gabon"]
[240,"Gambia"]
[241,"Ghana"]
[243,"Guinea"]
[244,"Guinea-Bissau"]
[245,"Equatorial Guinea"]
[247,"Côte d'Ivoire"]
[248,"Kenya"]
[249,"Lesotho"]
[251,"Liberia"]
[252,"Madagascar"]
[253,"Malawi"]
[255,"Mali"]
[256,"Mauritania"]
[257,"Mauritius"]
[259,"Mozambique"]
[260,"Niger"]
[261,"Nigeria"]
[265,"Zimbabwe"]
[266,"Rwanda"]
[268,"Sao Tome and Principe"]
[269,"Senegal"]
[270,"Seychelles"]
[271,"Eritrea"]
[272,"Sierra Leone"]
[273,"Somalia"]
[274,"Djibouti"]
[275,"Namibia"]
[276,"Saint Helena"]
[278,"Sudan"]
[279,"South Sudan"]
[280,"Eswatini"]
[282,"Tanzania"]
[283,"Togo"]
[285,"Uganda"]
[287,"Burkina Faso"]
[288,"Zambia"]
[289,"South of Sahara, regional"]
[298,"Africa, regional"]
[328,"Bahamas"]
[329,"Barbados"]
[336,"Costa Rica"]
[338,"Cuba"]
[340,"Dominican Republic"]
[342,"El Salvador"]
[347,"Guatemala"]
[349,"Haiti"]
[351,"Honduras"]
[352,"Belize"]
[354,"Jamaica"]
[358,"Mexico"]
[364,"Nicaragua"]
[366,"Panama"]
[375,"Trinidad and Tobago"]
[377,"Antigua and Barbuda"]
[378,"Dominica"]
[381,"Grenada"]
[382,"Saint Kitts and Nevis"]
[383,"Saint Lucia"]
[384,"Saint Vincent and the Grenadines"]
[385,"Montserrat"]
[389,"Caribbean & Central America, regional"]
[425,"Argentina"]
[428,"Bolivia"]
[431,"Brazil"]
[434,"Chile"]
[437,"Colombia"]
[440,"Ecuador"]
[446,"Guyana"]
[451,"Paraguay"]
[454,"Peru"]
[457,"Suriname"]
[460,"Uruguay"]
[463,"Venezuela"]
[489,"South America, regional"]
[498,"America, regional"]
[540,"Iran"]
[543,"Iraq"]
[549,"Jordan"]
[550,"West Bank and Gaza Strip"]
[555,"Lebanon"]
[573,"Syrian Arab Republic"]
[580,"Yemen"]
[589,"Middle East, regional"]
[610,"Armenia"]
[611,"Azerbaijan"]
[612,"Georgia"]
[613,"Kazakhstan"]
[614,"Kyrgyzstan"]
[615,"Tajikistan"]
[616,"Turkmenistan"]
[617,"Uzbekistan"]
[619,"Central Asia, regional"]
[625,"Afghanistan"]
[630,"Bhutan"]
[635,"Myanmar"]
[640,"Sri Lanka"]
[645,"India"]
[655,"Maldives"]
[660,"Nepal"]
[665,"Pakistan"]
[666,"Bangladesh"]
[679,"South Asia, regional"]
[689,"South & Central Asia, regional"]
[725,"Brunei Darussalam"]
[728,"Cambodia"]
[730,"China (People's Republic of)"]
[738,"Indonesia"]
[740,"Democratic People's Republic of Korea"]
[745,"Lao People's Democratic Republic"]
[751,"Malaysia"]
[753,"Mongolia"]
[755,"Philippines"]
[764,"Thailand"]
[765,"Timor-Leste"]
[769,"Viet Nam"]
[789,"Far East Asia, regional"]
[798,"Asia, regional"]
[831,"Cook Islands"]
[832,"Fiji"]
[836,"Kiribati"]
[845,"Nauru"]
[854,"Vanuatu"]
[856,"Niue"]
[859,"Marshall Islands"]
[860,"Micronesia"]
[861,"Palau"]
[862,"Papua New Guinea"]
[866,"Solomon Islands"]
[868,"Tokelau"]
[870,"Tonga"]
[872,"Tuvalu"]
[876,"Wallis and Futuna"]
[880,"Samoa"]
[889,"Oceania, regional"]
[998,"Developing countries, unspecified"]
[999,"Global"]
[1027,"Eastern Africa, regional"]
[1028,"Middle Africa, regional"]
[1029,"Southern Africa, regional"]
[1030,"Western Africa, regional"]
[1031,"Caribbean, regional"]
[1032,"Central America, regional"]
[1033,"Melanesia, regional"]
[1034,"Micronesia, regional"]
[1035,"Polynesia, regional"]

{"sheet":"Modality","index":6,"n_rows":30,"n_cols":4,"rows_kept":30,"cut":false,"hidden":true,"merged":[]}
["Sub-type","Description",null,"not indic"]
["A00","Budget support",null,"F01"]
["B01","Core support to NGOs, other private bodies, PPPs and research institutes",null,"F02"]
["B02","Core contributions to multilateral institutions",null,"F03"]
["B02a","Assessed contributions to multilateral institutions",null,"G01"]
["B02b","Voluntary core contributions to multilateral institutions",null,"I01"]
["B03","Contributions to specific purpose programmes and funds managed by implementing partners (excluding self-benefit)",null,"I02"]
["C01","Projects",null,"I05"]
["D01","In-kind technical co-operation experts"]
["D011","(for SSC providers only) In-kind technical cooperation. Experts costs"]
["D012","(for SSC providers only) In-kind technical cooperation experts. Travel related costs"]
["D013","(for SSC providers only) In-kind technical cooperation. Services, materials, equipment and supplies."]
["D02","Other technical co-operation"]
["D021","(for SSC providers only) Training"]
["E01","Scholarships/training in donor country"]
["E02","Imputed student costs"]
["F01","Debt relief - principal (original loan previously recorded in TOSSD)"]
["F02","Debt relief - principal (original loan not recorded in TOSSD)"]
["F03","Debt relief - interest"]
["G01","Administrative costs not included elsewhere"]
["H00","Expenditures in the provider country"]
["I01","Support to refugees/protected persons in the provider country (up to 12 months of their stay) "]
["I02","Support to refugees/protected persons in the provider country (beyond the 12-month period)"]
["I05","Support to refugees/protected persons/migrants for their integration in the economy of provider countries"]
["J01","(for SSC providers only) In-kind donations"]
["K01","(for SSC providers only) Research and development"]
["K011","(for SSC providers only) Scientific-related infrastructure"]
["K012","(for SSC providers only) Research personnel "]
["K02","RESEARCH AND DEVELOPMENT (R&D)"]
["L01","(for SSC providers only) Direct cash transfers under social development public programmes in partner countries"]

{"sheet":"tossd codelist","index":7,"n_rows":22,"n_cols":3,"rows_kept":22,"cut":false,"hidden":true,"merged":[]}
["code","name","Description"]
["FA01","BLENDED FINANCE","The strategic use of development finance for the mobilisation of additional finance towards sustainable development."]
["FA02","ISLAMIC FINANCE","Sharia-compliant finance (the Islamic finance instruments are included in the financial instruments classification in the relevant categories)."]
["FA03","CO-FINANCING ARRANGEMENTS INVOLVING RECIPIENT COUNTERPART FUNDS","The co-financing by the recipient country public institutions."]
["FA04","OFFICIALLY-SUPPORTED EXPORT CREDITS","Credits extended by government-owned or controlled specialised export-financing agencies or institutions (ECAs) for commercial purposes to finance a specific purchase of goods or services from within the creditor country. They include both official direct export credits (i.e. loans extended by ECAs to facilitate exports to developing countries) and officially-guaranteed/insured export credits (i.e. loans extended by the private sector, but guaranteed/insured by ECAs to finance an export transaction)."]
[]
[]
[]
[]
[]
["FC01","SOUTH-SOUTH CO-OPERATION","A broad framework of collaboration among countries of the South in the political, economic, social, cultural, environmental and technical domains. Involving two or more TOSSD-eligible countries, it can take place on a bilateral, regional, intraregional or interregional basis. TOSSD-eligible countries share knowledge, skills, expertise and resources to meet their development goals through concerted efforts."]
["FC02","TRIANGULAR CO-OPERATION","A multi-country partnership involving partners with the following roles:\no The beneficiary partner that requests support to tackle a specific development challenge.\no The pivotal partner that has proven experience in tackling the issue, and shares its resources, knowledge and expertise to help others do the same. \no The facilitating partner that helps connect the partners, supporting the collaboration financially and technically."]
["FC03","MULTILATERAL SUPPORT FOR SOUTH-SOUTH CO-OPERATION","Collaborative arrangement whereby a multilateral institution supports South-South co-operation exchanges, providing a mechanism or a structure (financial or non-financial) that facilitates the exchange of knowledge, skills, expertise and/or resources among two or more developing countries."]
[]
[]
[]
[]
["code","name","Description"]
[1,"Pillar I","Cross border resources extended to TOSSD-eligible countries in support of sustainable development."]
[2,"Pillar II","Regional and global expenditures (that do not involve cross border flows to TOSSD eligible countries) to support the provision of international public goods, promote development enablers and address global challenges."]
[21,"Pillar 2.A","Regional and global expenditures: Issues specific to developing countries or their populations"]
[22,"Pillar 2.B","Regional and global expenditures: Issues of global nature"]

{"sheet":"type_of_finance","index":8,"n_rows":15,"n_cols":2,"rows_kept":15,"cut":false,"hidden":true,"merged":[]}
["Subcode","Heading"]
[110,"Standard grant"]
[421,"Standard loan"]
[422,"Reimbursable grant "]
[423,"Bonds"]
[424,"Asset-backed securities "]
[425,"Other debt securities"]
[431,"Subordinated loan "]
[432,"Preferred equity "]
[433,"Other hybrid instruments "]
[510,"Common equity"]
[520,"Shares in collective investment vehicles "]
[1100,"Guarantees/insurance "]
[2100,"Direct provider spending"]
[3100,"Subsidies and similar transfers"]

{"sheet":"Mobilisation","index":9,"n_rows":204,"n_cols":43,"rows_kept":204,"cut":false,"hidden":false,"merged":[[2,0,3,0],[2,3,3,3],[2,4,2,7],[2,8,3,8],[2,17,2,18],[2,10,3,10],[2,1,3,1],[2,2,3,2],[2,9,3,9],[2,11,3,11],[2,13,3,13],[2,14,3,14],[2,15,3,15],[0,12,3,12],[1,21,3,21],[1,22,3,22],[2,19,2,20]]}
["BASIC IDENTIFICATION FIELDS AND AMOUNTS MOBILISED",null,null,null,null,null,null,null,null,null,null,null,"CALCULATION FIELD","ADDITIONAL FIELDS FOR REPORTING ON AMOUNTS MOBILISED (for validation purposes, not dislosed)"]
[" Identification information (as in the TOSSD template)",null,null,null,null,null,null,null,null,"Amounts mobilised (as in the TOSSD template)",null,null,null,"FIELDS FOR ALL INSTRUMENTS",null,null,"INSTRUMENT-SPECIFIC FIELDS",null,null,null,null,"S9. Project finance SPV flag \n(1=Yes)","Notes"]
["1.Reporting year","3.Provider agency","4.Provider project number","5.TOSSD ID Number","Only if link with the TOSSD data cannot be made using provider project number or ID number:",null,null,null,"19. Currency","23.Amount mobilised  (thousand)","27.Leveraging mechanism","28.Origin of the funds mobilised",null,"S0. Amounts invested by your institution","S2. Total official funding \n(including your institution)","S3. Private finance before attribution\n(for credit lines: LFI top-up funds)","Syndicated loans","Investments in CIVs, companies and project finance SPVs",null,"Credit lines only \n(second level of mobilisation)"]
[null,null,null,null,"6.TOSSD recipient","7.Project title","10.SDG focus","11.Sector",null,null,null,null,null,null,null,null,"S4. Type of arranger","S5. Number of official investors in the riskiest tranche\n(incl. your instituion)","S6. Number of official investors in the mezzanine/senior tranche \n(incl. your institution)","S7. Revolving factor \n(if not available,   enter 1.25)","S8. End-borrowers' equity ",null,null,null,null,"Levmech: CODE","LOOKUP ROW","1=Syndicated loan, arranger","2=Syndicated loan, participant","3=Common shares in flat collective investment vehicle","4=Shares in the riskiest tranche of structured collective investment vehicle, first-loss shares and others (e.g. lock-up shares)","5=Shares in the mezzanine/senior tranche of structured CIV","6=Guarantee/insurance ","7=Direct investment in companies, equity","8=Direct investment in companies, mezzanine/senior debt","9=Credit lines","10=Co-financing arrangements"]
[1,3,4,5,6,7,10,11,19,23,27,28,"CHECK","S0","S2","S3","S4","S5","S6","S7","S8","S9",null,null,null,null,1,1,2,3,4,5,6,7,8,9,10]
[2019,null,"123AB",2019000001,null,null,null,null,302,37500,1,1,{"$f":"IF(LEN(K6)=0,\"\",HLOOKUP(Z6,$AB$5:$AK$204,AA6,FALSE))","v":37500},20000,40000,50000,{"$f":"IFERROR(IF(K6=\"1=Syndicated loan, arranger\",\"1=Official institution\",IF(K6=1,\"1=Official institution\",\"\")),\"\")","v":"1=Official institution"},null,null,null,null,null,"EXAMPLE: Syndicated loan, arranger is reporting",null,null,{"$f":"IFERROR(VLOOKUP(K6,AM:AN,2,FALSE),\"\")","v":1},{"$f":"AA5+1","v":2},{"$f":"IF(N6>O6,\"S0 cannot be higher than S2\",IF(COUNTA(N6:P6)=0,\"Fill in additional fields S0-S4 and S9\",IFERROR(IF(VALUE(LEFT(Q6,1))=1,P6/2+(N6/O6)*(P6/2),IF(VALUE(LEFT(Q6,1))=2,\"impossible combination\",\"check not available\")),\"\")))","v":37500},{"$f":"IF(N6>O6,\"S0 cannot be higher than S2\",IF(COUNTA(N6:P6)=0,\"Fill in additional fields S0-S4 and S9\",IFERROR(IF(VALUE(LEFT(Q6,1))=1,(N6/O6)*(P6/2),IF(VALUE(LEFT(Q6,1))=2,(N6/O6)*(P6),\"check not available\")),\"\")))","v":12500},{"$f":"IF(N6>O6,\"S0 cannot be higher than S2\",IF(COUNTA(R6:S6)=0,\"Fill in additional fields S0-S6\",(P6/2)*(N6/O6)+(P6/2)*(1/SUM(R6:S6))))","v":"Fill in additional fields S0-S6"},{"$f":"IF(N6>O6,\"S0 cannot be higher than S2\",IFERROR(IF(COUNTA(R6:S6)=0,\"Fill in additional fields S0-S6\",P6/2)*(N6/O6)+(P6/2)*(1/R6),\"Fill in additional fields S0-S6\"))","v":"Fill in additional fields S0-S6"},{"$f":"IF(N6>O6,\"S0 cannot be higher than S2\",IFERROR(IF(COUNTA(R6:S6)=0,\"Fill in additional fields S0-S6\",IF(R6=0,P6/2*(N6/O6)+P6/2*(1/S6),(P6/2)*(N6/O6))),\"Fill in additional fields S0-S6\"))","v":"Fill in additional fields S0-S6"},{"$f":"IF(N6>O6,\"S0 cannot be higher than S2\",IF(COUNTA(N6:P6)=0,\"Enter exposure values in fields S0 and S2\",(P6)*(N6/O6)))","v":25000},{"$f":"IF(N6>O6,\"S0 cannot be higher than S2\",IFERROR(IF(COUNTA(R6:S6)=0,\"Fill in additional fields S0-S6 and S9\",P6/2)*(N6/O6)+(P6/2)*(1/R6),\"Fill in additional fields S0-S6 and S9\"))","v":"Fill in additional fields S0-S6 and S9"},{"$f":"IF(N6>O6,\"S0 cannot be higher than S2\",IFERROR(IF(COUNTA(R6:S6)=0,\"Fill in additional fields S0-S6 and S9\",IF(R6=0,P6/2*(N6/O6)+P6/2*(1/S6),(P6/2)*(N6/O6))),\"Fill in additional fields S0-S6 and S9\"))","v":"Fill in additional fields S0-S6 and S9"},{"$f":"IF(N6>O6,\"S0 cannot be higher than S2\",IF(COUNTA(N6:P6)=0,\"Fill in additional fields S0-S3 and S7-S8\",(N6/O6)*((P6)+T6*U6)))","v":25000},{"$f":"IF(N6>O6,\"S0 cannot be higher than S2\",IF(COUNTA(N6:P6)=0,\"Fill in additional fields S0-S3 and S9\",(P6)*(N6/O6)))","v":25000},"."]
[2019,null,"547GQ",2019000002,null,null,null,null,302,12500,2,2,6250,10000,40000,50000,"1=Official institution",null,null,null,null,null,"EXAMPLE: Syndicated loan arranged by an official/public institution, B-lender is reporting",null,null,2,{"$f":"AA6+1","v":3},{"$f":"IF(N7>O7,\"S0 cannot be higher than S2\",IF(COUNTA(N7:P7)=0,\"Fill in additional fields S0-S4 and S9\",IFERROR(IF(VALUE(LEFT(Q7,1))=1,P7/2+(N7/O7)*(P7/2),IF(VALUE(LEFT(Q7,1))=2,\"impossible combination\",\"check not available\")),\"\")))","v":31250},{"$f":"IF(N7>O7,\"S0 cannot be higher than S2\",IF(COUNTA(N7:P7)=0,\"Fill in additional fields S0-S4 and S9\",IFERROR(IF(VALUE(LEFT(Q7,1))=1,(N7/O7)*(P7/2),IF(VALUE(LEFT(Q7,1))=2,(N7/O7)*(P7),\"check not available\")),\"\")))","v":6250},{"$f":"IF(N7>O7,\"S0 cannot be higher than S2\",IF(COUNTA(R7:S7)=0,\"Fill in additional fields S0-S6\",(P7/2)*(N7/O7)+(P7/2)*(1/SUM(R7:S7))))","v":"Fill in additional fields S0-S6"},{"$f":"IF(N7>O7,\"S0 cannot be higher than S2\",IFERROR(IF(COUNTA(R7:S7)=0,\"Fill in additional fields S0-S6\",P7/2)*(N7/O7)+(P7/2)*(1/R7),\"Fill in additional fields S0-S6\"))","v":"Fill in additional fields S0-S6"},{"$f":"IF(N7>O7,\"S0 cannot be higher than S2\",IFERROR(IF(COUNTA(R7:S7)=0,\"Fill in additional fields S0-S6\",IF(R7=0,P7/2*(N7/O7)+P7/2*(1/S7),(P7/2)*(N7/O7))),\"Fill in additional fields S0-S6\"))","v":"Fill in additional fields S0-S6"},{"$f":"IF(N7>O7,\"S0 cannot be higher than S2\",IF(COUNTA(N7:P7)=0,\"Enter exposure values in fields S0 and S2\",(P7)*(N7/O7)))","v":12500},{"$f":"IF(N7>O7,\"S0 cannot be higher than S2\",IFERROR(IF(COUNTA(R7:S7)=0,\"Fill in additional fields S0-S6 and S9\",P7/2)*(N7/O7)+(P7/2)*(1/R7),\"Fill in additional fields S0-S6 and S9\"))","v":"Fill in additional fields S0-S6 and S9"},{"$f":"IF(N7>O7,\"S0 cannot be higher than S2\",IFERROR(IF(COUNTA(R7:S7)=0,\"Fill in additional fields S0-S6 and S9\",IF(R7=0,P7/2*(N7/O7)+P7/2*(1/S7),(P7/2)*(N7/O7))),\"Fill in additional fields S0-S6 and S9\"))","v":"Fill in additional fields S0-S6 and S9"},{"$f":"IF(N7>O7,\"S0 cannot be higher than S2\",IF(COUNTA(N7:P7)=0,\"Fill in additional fields S0-S3 and S7-S8\",(N7/O7)*((P7)+T7*U7)))","v":12500},{"$f":"IF(N7>O7,\"S0 cannot be higher than S2\",IF(COUNTA(N7:P7)=0,\"Fill in additional fields S0-S3 and S9\",(P7)*(N7/O7)))","v":12500},"."]
[2019,null,"951JU",2019000003,null,null,null,null,302,20833.333333333332,3,3,20833.333333333332,20000,40000,50000,{"$f":"IFERROR(IF(K8=\"1=Syndicated loan, arranger\",\"1=Official institution\",IF(K8=1,\"1=Official institution\",\"\")),\"\")","v":""},3,null,null,null,null,"EXAMPLE: Shares in a flat CIV with 3 official investors",null,null,3,4,"","",20833.333333333332,20833.333333333332,12500,25000,20833.333333333332,12500,25000,25000,"."]
[2019,null,"J-248",2019000004,null,null,null,null,302,25000,4,4,37500,20000,40000,50000,"",1,2,null,null,null,"EXAMPLE: Shares in a structured CIV, reporting institution invested in riskiest tranche",null,null,4,5,"","",20833.333333333332,37500,12500,25000,37500,12500,25000,25000,"."]
[2019,null,"63-TAP",2019000005,null,null,null,null,302,12500,5,5,6250,10000,40000,50000,"",1,2,null,null,null,"EXAMPLE: Shares in a structured CIV, reporting institution invested in more senior tranches",null,null,5,6,"","",14583.333333333332,31250,6250,12500,31250,6250,12500,12500,"."]
[2019,null,"173AC",2019000006,null,null,null,null,302,25000,6,1,25000,20000,40000,50000,"",null,null,null,null,null,"EXAMPLE: one of the two co-guarantors report",null,null,6,7,"","","Fill in additional fields S0-S6","Fill in additional fields S0-S6","Fill in additional fields S0-S6",25000,"Fill in additional fields S0-S6 and S9","Fill in additional fields S0-S6 and S9",25000,25000,"."]
[2019,null,"547GRT",2019000007,null,null,null,null,302,25000,7,2,37500,20000,40000,50000,"",1,2,null,null,null,"EXAMPLE: Direct investment in a company, equity investor is reporting",null,null,7,8,"","",20833.333333333332,37500,12500,25000,37500,12500,25000,25000,"."]
[2019,null,"AB-951",2019000008,null,null,null,null,302,12500,8,3,6250,10000,40000,50000,"",1,2,null,null,1,"EXAMPLE: Investment in a project SPV, reporting institution provided a loan by which private finance (beyond a syndication) has been mobilised",null,null,8,9,"","",14583.333333333332,31250,6250,12500,31250,6250,12500,12500,"."]
[2019,null,"XYZ-248",2019000009,null,null,null,null,302,25000,9,4,45000,20000,40000,50000,"",null,null,4,10000,null,"EXAMPLE: A line of credit to a a private LFI",null,null,9,10,"","","Fill in additional fields S0-S6","Fill in additional fields S0-S6","Fill in additional fields S0-S6",25000,"Fill in additional fields S0-S6 and S9","Fill in additional fields S0-S6 and S9",45000,25000,"."]
[2019,null,"871/H",2019000010,null,null,null,null,302,25000,10,5,25000,20000,40000,50000,"",null,null,null,null,null,"EXAMPLE: Simple co-financing (e.g. sharing costs of a minor project)",null,null,10,11,"","","Fill in additional fields S0-S6","Fill in additional fields S0-S6","Fill in additional fields S0-S6",25000,"Fill in additional fields S0-S6 and S9","Fill in additional fields S0-S6 and S9",25000,25000,".",null,null,null,"6=Guarantee/insurance ",0]
[null,null,null,null,null,null,null,null,null,null,null,null,"",null,null,null,"",null,null,null,null,null,null,null,null,"",12,"Fill in additional fields S0-S4 and S9","Fill in additional fields S0-S4 and S9","Fill in additional fields S0-S6","Fill in additional fields S0-S6","Fill in additional fields S0-S6","Enter exposure values in fields S0 and S2","Fill in additional fields S0-S6 and S9","Fill in additional fields S0-S6 and S9","Fill in additional fields S0-S3 and S7-S8","Fill in additional fields S0-S3 and S9","."]
[null,null,null,null,null,null,null,null,null,null,null,null,"",null,null,null,"",null,null,null,null,null,null,null,null,"",13,"Fill in additional fields S0-S4 and S9","Fill in additional fields S0-S4 and S9","Fill in additional fields S0-S6","Fill in additional fields S0-S6","Fill in additional fields S0-S6","Enter exposure values in fields S0 and S2","Fill in additional fields S0-S6 and S9","Fill in additional fields S0-S6 and S9","Fill in additional fields S0-S3 and S7-S8","Fill in additional fields S0-S3 and S9","."]
[null,null,null,null,null,null,null,null,null,null,null,null,"",null,null,null,"",null,null,null,null,null,null,null,null,"",14,"Fill in additional fields S0-S4 and S9","Fill in additional fields S0-S4 and S9","Fill in additional fields S0-S6","Fill in additional fields S0-S6","Fill in additional fields S0-S6","Enter exposure values in fields S0 and S2","Fill in additional fields S0-S6 and S9","Fill in additional fields S0-S6 and S9","Fill in additional fields S0-S3 and S7-S8","Fill in additional fields S0-S3 and S9","."]
[null,null,null,null,null,null,null,null,null,null,null,null,"",null,null,null,"",null,null,null,null,null,null,null,null,"",15,"Fill in additional fields S0-S4 and S9","Fill in additional fields S0-S4 and S9","Fill in additional fields S0-S6","Fill in additional fields S0-S6","Fill in additional fields S0-S6","Enter exposure values in fields S0 and S2","Fill in additional fields S0-S6 and S9","Fill in additional fields S0-S6 and S9","Fill in additional fields S0-S3 and S7-S8","Fill in additional fields S0-S3 and S9","."]
[null,null,null,null,null,null,null,null,null,null,null,null,"",null,null,null,"",null,null,null,null,null,null,null,null,"",16,"Fill in additional fields S0-S4 and S9","Fill in additional fields S0-S4 and S9","Fill in additional fields S0-S6","Fill in additional fields S0-S6","Fill in additional fields S0-S6","Enter exposure values in fields S0 and S2","Fill in additional fields S0-S6 and S9","Fill in additional fields S0-S6 and S9","Fill in additional fields S0-S3 and S7-S8","Fill in additional fields S0-S3 and S9","."]
[null,null,null,null,null,null,null,null,null,null,null,null,"",null,null,null,"",null,null,null,null,null,null,null,null,"",17,"Fill in additional fields S0-S4 and S9","Fill in additional fields S0-S4 and S9","Fill in additional fields S0-S6","Fill in additional fields S0-S6","Fill in additional fields S0-S6","Enter exposure values in fields S0 and S2","Fill in additional fields S0-S6 and S9","Fill in additional fields S0-S6 and S9","Fill in additional fields S0-S3 and S7-S8","Fill in additional fields S0-S3 and S9","."]
[null,null,null,null,null,null,null,null,null,null,null,null,"",null,null,null,"",null,null,null,null,null,null,null,null,"",18,"Fill in additional fields S0-S4 and S9","Fill in additional fields S0-S4 and S9","Fill in additional fields S0-S6","Fill in additional fields S0-S6","Fill in additional fields S0-S6","Enter exposure values in fields S0 and S2","Fill in additional fields S0-S6 and S9","Fill in additional fields S0-S6 and S9","Fill in additional fields S0-S3 and S7-S8","Fill in additional fields S0-S3 and S9","."]
[null,null,null,null,null,null,null,null,null,null,null,null,"",null,null,null,"",null,null,null,null,null,null,null,null,"",19,"Fill in additional fields S0-S4 and S9","Fill in additional fields S0-S4 and S9","Fill in additional fields S0-S6","Fill in additional fields S0-S6","Fill in additional fields S0-S6","Enter exposure values in fields S0 and S2","Fill in additional fields S0-S6 and S9","Fill in additional fields S0-S6 and S9","Fill in additional fields S0-S3 and S7-S8","Fill in additional fields S0-S3 and S9","."]
[null,null,null,null,null,null,null,null,null,null,null,null,"",null,null,null,"",null,null,null,null,null,null,null,null,"",20,"Fill in additional fields S0-S4 and S9","Fill in additional fields S0-S4 and S9","Fill in additional fields S0-S6","Fill in additional fields S0-S6","Fill in additional fields S0-S6","Enter exposure values in fields S0 and S2","Fill in additional fields S0-S6 and S9","Fill in additional fields S0-S6 and S9","Fill in additional fields S0-S3 and S7-S8","Fill in additional fields S0-S3 and S9","."]
[null,null,null,null,null,null,null,null,null,null,null,null,"",null,null,null,"",null,null,null,null,null,null,null,null,"",21,"Fill in additional fields S0-S4 and S9","Fill in additional fields S0-S4 and S9","Fill in additional fields S0-S6","Fill in additional fields S0-S6","Fill in additional fields S0-S6","Enter exposure values in fields S0 and S2","Fill in additional fields S0-S6 and S9","Fill in additional fields S0-S6 and S9","Fill in additional fields S0-S3 and S7-S8","Fill in additional fields S0-S3 and S9","."]
[null,null,null,null,null,null,null,null,null,null,null,null,"",null,null,null,"",null,null,null,null,null,null,null,null,"",22,"Fill in additional fields S0-S4 and S9","Fill in additional fields S0-S4 and S9","Fill in additional fields S0-S6","Fill in additional fields S0-S6","Fill in additional fields S0-S6","Enter exposure values in fields S0 and S2","Fill in additional fields S0-S6 and S9","Fill in additional fields S0-S6 and S9","Fill in additional fields S0-S3 and S7-S8","Fill in additional fields S0-S3 and S9","."]
[null,null,null,null,null,null,null,null,null,null,null,null,"",null,null,null,"",null,null,null,null,null,null,null,null,"",23,"Fill in additional fields S0-S4 and S9","Fill in additional fields S0-S4 and S9","Fill in additional fields S0-S6","Fill in additional fields S0-S6","Fill in additional fields S0-S6","Enter exposure values in fields S0 and S2","Fill in additional fields S0-S6 and S9","Fill in additional fields S0-S6 and S9","Fill in additional fields S0-S3 and S7-S8","Fill in additional fields S0-S3 and S9","."]
[null,null,null,null,null,null,null,null,null,null,null,null,"",null,null,null,"",null,null,null,null,null,null,null,null,"",24,"Fill in additional fields S0-S4 and S9","Fill in additional fields S0-S4 and S9","Fill in additional fields S0-S6","Fill in additional fields S0-S6","Fill in additional fields S0-S6","Enter exposure values in fields S0 and S2","Fill in additional fields S0-S6 and S9","Fill in additional fields S0-S6 and S9","Fill in additional fields S0-S3 and S7-S8","Fill in additional fields S0-S3 and S9","."]
[null,null,null,null,null,null,null,null,null,null,null,null,"",null,null,null,"",null,null,null,null,null,null,null,null,"",25,"Fill in additional fields S0-S4 and S9","Fill in additional fields S0-S4 and S9","Fill in additional fields S0-S6","Fill in additional fields S0-S6","Fill in additional fields S0-S6","Enter exposure values in fields S0 and S2","Fill in additional fields S0-S6 and S9","Fill in additional fields S0-S6 and S9","Fill in additional fields S0-S3 and S7-S8","Fill in additional fields S0-S3 and S9","."]
[null,null,null,null,null,null,null,null,null,null,null,null,"",null,null,null,"",null,null,null,null,null,null,null,null,"",26,"Fill in additional fields S0-S4 and S9","Fill in additional fields S0-S4 and S9","Fill in additional fields S0-S6","Fill in additional fields S0-S6","Fill in additional fields S0-S6","Enter exposure values in fields S0 and S2","Fill in additional fields S0-S6 and S9","Fill in additional fields S0-S6 and S9","Fill in additional fields S0-S3 and S7-S8","Fill in additional fields S0-S3 and S9","."]
[null,null,null,null,null,null,null,null,null,null,null,null,"",null,null,null,"",null,null,null,null,null,null,null,null,"",27,"Fill in additional fields S0-S4 and S9","Fill in additional fields S0-S4 and S9","Fill in additional fields S0-S6","Fill in additional fields S0-S6","Fill in additional fields S0-S6","Enter exposure values in fields S0 and S2","Fill in additional fields S0-S6 and S9","Fill in additional fields S0-S6 and S9","Fill in additional fields S0-S3 and S7-S8","Fill in additional fields S0-S3 and S9","."]
[null,null,null,null,null,null,null,null,null,null,null,null,"",null,null,null,"",null,null,null,null,null,null,null,null,"",28,"Fill in additional fields S0-S4 and S9","Fill in additional fields S0-S4 and S9","Fill in additional fields S0-S6","Fill in additional fields S0-S6","Fill in additional fields S0-S6","Enter exposure values in fields S0 and S2","Fill in additional fields S0-S6 and S9","Fill in additional fields S0-S6 and S9","Fill in additional fields S0-S3 and S7-S8","Fill in additional fields S0-S3 and S9","."]
[null,null,null,null,null,null,null,null,null,null,null,null,"",null,null,null,"",null,null,null,null,null,null,null,null,"",29,"Fill in additional fields S0-S4 and S9","Fill in additional fields S0-S4 and S9","Fill in additional fields S0-S6","Fill in additional fields S0-S6","Fill in additional fields S0-S6","Enter exposure values in fields S0 and S2","Fill in additional fields S0-S6 and S9","Fill in additional fields S0-S6 and S9","Fill in additional fields S0-S3 and S7-S8","Fill in additional fields S0-S3 and S9","."]
[null,null,null,null,null,null,null,null,null,null,null,null,"",null,null,null,"",null,null,null,null,null,null,null,null,"",30,"Fill in additional fields S0-S4 and S9","Fill in additional fields S0-S4 and S9","Fill in additional fields S0-S6","Fill in additional fields S0-S6","Fill in additional fields S0-S6","Enter exposure values in fields S0 and S2","Fill in additional fields S0-S6 and S9","Fill in additional fields S0-S6 and S9","Fill in additional fields S0-S3 and S7-S8","Fill in additional fields S0-S3 and S9","."]
[null,null,null,null,null,null,null,null,null,null,null,null,"",null,null,null,"",null,null,null,null,null,null,null,null,"",31,"Fill in additional fields S0-S4 and S9","Fill in additional fields S0-S4 and S9","Fill in additional fields S0-S6","Fill in additional fields S0-S6","Fill in additional fields S0-S6","Enter exposure values in fields S0 and S2","Fill in additional fields S0-S6 and S9","Fill in additional fields S0-S6 and S9","Fill in additional fields S0-S3 and S7-S8","Fill in additional fields S0-S3 and S9","."]
[null,null,null,null,null,null,null,null,null,null,null,null,"",null,null,null,"",null,null,null,null,null,null,null,null,"",32,"Fill in additional fields S0-S4 and S9","Fill in additional fields S0-S4 and S9","Fill in additional fields S0-S6","Fill in additional fields S0-S6","Fill in additional fields S0-S6","Enter exposure values in fields S0 and S2","Fill in additional fields S0-S6 and S9","Fill in additional fields S0-S6 and S9","Fill in additional fields S0-S3 and S7-S8","Fill in additional fields S0-S3 and S9","."]
[null,null,null,null,null,null,null,null,null,null,null,null,"",null,null,null,"",null,null,null,null,null,null,null,null,"",33,"Fill in additional fields S0-S4 and S9","Fill in additional fields S0-S4 and S9","Fill in additional fields S0-S6","Fill in additional fields S0-S6","Fill in additional fields S0-S6","Enter exposure values in fields S0 and S2","Fill in additional fields S0-S6 and S9","Fill in additional fields S0-S6 and S9","Fill in additional fields S0-S3 and S7-S8","Fill in additional fields S0-S3 and S9","."]
[null,null,null,null,null,null,null,null,null,null,null,null,{"$f":"IF(LEN(K38)=0,\"\",HLOOKUP(Z38,$AB$5:$AK$204,AA38,FALSE))","v":""},null,null,null,"",null,null,null,null,null,null,null,null,{"$f":"IFERROR(VLOOKUP(K38,AM:AN,2,FALSE),\"\")","v":""},34,"Fill in additional fields S0-S4 and S9","Fill in additional fields S0-S4 and S9","Fill in additional fields S0-S6","Fill in additional fields S0-S6","Fill in additional fields S0-S6","Enter exposure values in fields S0 and S2","Fill in additional fields S0-S6 and S9","Fill in additional fields S0-S6 and S9","Fill in additional fields S0-S3 and S7-S8","Fill in additional fields S0-S3 and S9","."]
[null,null,null,null,null,null,null,null,null,null,null,null,"",null,null,null,"",null,null,null,null,null,null,null,null,"",35,"Fill in additional fields S0-S4 and S9","Fill in additional fields S0-S4 and S9","Fill in additional fields S0-S6","Fill in additional fields S0-S6","Fill in additional fields S0-S6","Enter exposure values in fields S0 and S2","Fill in additional fields S0-S6 and S9","Fill in additional fields S0-S6 and S9","Fill in additional fields S0-S3 and S7-S8","Fill in additional fields S0-S3 and S9","."]
[null,null,null,null,null,null,null,null,null,null,null,null,"",null,null,null,{"$f":"IFERROR(IF(K40=\"1=Syndicated loan, arranger\",\"1=Official institution\",IF(K40=1,\"1=Official institution\",\"\")),\"\")","v":""},null,null,null,null,null,null,null,null,"",36,"Fill in additional fields S0-S4 and S9","Fill in additional fields S0-S4 and S9","Fill in additional fields S0-S6","Fill in additional fields S0-S6","Fill in additional fields S0-S6","Enter exposure values in fields S0 and S2","Fill in additional fields S0-S6 and S9","Fill in additional fields S0-S6 and S9","Fill in additional fields S0-S3 and S7-S8","Fill in additional fields S0-S3 and S9","."]
[null,null,null,null,null,null,null,null,null,null,null,null,"",null,null,null,"",null,null,null,null,null,null,null,null,"",37,"Fill in additional fields S0-S4 and S9","Fill in additional fields S0-S4 and S9","Fill in additional fields S0-S6","Fill in additional fields S0-S6","Fill in additional fields S0-S6","Enter exposure values in fields S0 and S2","Fill in additional fields S0-S6 and S9","Fill in additional fields S0-S6 and S9","Fill in additional fields S0-S3 and S7-S8","Fill in additional fields S0-S3 and S9","."]
[null,null,null,null,null,null,null,null,null,null,null,null,"",null,null,null,"",null,null,null,null,null,null,null,null,"",38,"Fill in additional fields S0-S4 and S9","Fill in additional fields S0-S4 and S9","Fill in additional fields S0-S6","Fill in additional fields S0-S6","Fill in additional fields S0-S6","Enter exposure values in fields S0 and S2","Fill in additional fields S0-S6 and S9","Fill in additional fields S0-S6 and S9","Fill in additional fields S0-S3 and S7-S8","Fill in additional fields S0-S3 and S9","."]
[null,null,null,null,null,null,null,null,null,null,null,null,"",null,null,null,"",null,null,null,null,null,null,null,null,"",39,"Fill in additional fields S0-S4 and S9","Fill in additional fields S0-S4 and S9","Fill in additional fields S0-S6","Fill in additional fields S0-S6","Fill in additional fields S0-S6","Enter exposure values in fields S0 and S2","Fill in additional fields S0-S6 and S9","Fill in additional fields S0-S6 and S9","Fill in additional fields S0-S3 and S7-S8","Fill in additional fields S0-S3 and S9","."]
[null,null,null,null,null,null,null,null,null,null,null,null,"",null,null,null,"",null,null,null,null,null,null,null,null,"",40,"Fill in additional fields S0-S4 and S9","Fill in additional fields S0-S4 and S9","Fill in additional fields S0-S6","Fill in additional fields S0-S6","Fill in additional fields S0-S6","Enter exposure values in fields S0 and S2","Fill in additional fields S0-S6 and S9","Fill in additional fields S0-S6 and S9","Fill in additional fields S0-S3 and S7-S8","Fill in additional fields S0-S3 and S9","."]
[null,null,null,null,null,null,null,null,null,null,null,null,"",null,null,null,"",null,null,null,null,null,null,null,null,"",41,"Fill in additional fields S0-S4 and S9","Fill in additional fields S0-S4 and S9","Fill in additional fields S0-S6","Fill in additional fields S0-S6","Fill in additional fields S0-S6","Enter exposure values in fields S0 and S2","Fill in additional fields S0-S6 and S9","Fill in additional fields S0-S6 and S9","Fill in additional fields S0-S3 and S7-S8","Fill in additional fields S0-S3 and S9","."]
[null,null,null,null,null,null,null,null,null,null,null,null,"",null,null,null,"",null,null,null,null,null,null,null,null,"",42,"Fill in additional fields S0-S4 and S9","Fill in additional fields S0-S4 and S9","Fill in additional fields S0-S6","Fill in additional fields S0-S6","Fill in additional fields S0-S6","Enter exposure values in fields S0 and S2","Fill in additional fields S0-S6 and S9","Fill in additional fields S0-S6 and S9","Fill in additional fields S0-S3 and S7-S8","Fill in additional fields S0-S3 and S9","."]
[null,null,null,null,null,null,null,null,null,null,null,null,"",null,null,null,"",null,null,null,null,null,null,null,null,"",43,"Fill in additional fields S0-S4 and S9","Fill in additional fields S0-S4 and S9","Fill in additional fields S0-S6","Fill in additional fields S0-S6","Fill in additional fields S0-S6","Enter exposure values in fields S0 and S2","Fill in additional fields S0-S6 and S9","Fill in additional fields S0-S6 and S9","Fill in additional fields S0-S3 and S7-S8","Fill in additional fields S0-S3 and S9","."]
[null,null,null,null,null,null,null,null,null,null,null,null,"",null,null,null,"",null,null,null,null,null,null,null,null,"",44,"Fill in additional fields S0-S4 and S9","Fill in additional fields S0-S4 and S9","Fill in additional fields S0-S6","Fill in additional fields S0-S6","Fill in additional fields S0-S6","Enter exposure values in fields S0 and S2","Fill in additional fields S0-S6 and S9","Fill in additional fields S0-S6 and S9","Fill in additional fields S0-S3 and S7-S8","Fill in additional fields S0-S3 and S9","."]
[null,null,null,null,null,null,null,null,null,null,null,null,"",null,null,null,"",null,null,null,null,null,null,null,null,"",45,"Fill in additional fields S0-S4 and S9","Fill in additional fields S0-S4 and S9","Fill in additional fields S0-S6","Fill in additional fields S0-S6","Fill in additional fields S0-S6","Enter exposure values in fields S0 and S2","Fill in additional fields S0-S6 and S9","Fill in additional fields S0-S6 and S9","Fill in additional fields S0-S3 and S7-S8","Fill in additional fields S0-S3 and S9","."]
[null,null,null,null,null,null,null,null,null,null,null,null,"",null,null,null,"",null,null,null,null,null,null,null,null,"",46,"Fill in additional fields S0-S4 and S9","Fill in additional fields S0-S4 and S9","Fill in additional fields S0-S6","Fill in additional fields S0-S6","Fill in additional fields S0-S6","Enter exposure values in fields S0 and S2","Fill in additional fields S0-S6 and S9","Fill in additional fields S0-S6 and S9","Fill in additional fields S0-S3 and S7-S8","Fill in additional fields S0-S3 and S9","."]
[null,null,null,null,null,null,null,null,null,null,null,null,"",null,null,null,"",null,null,null,null,null,null,null,null,"",47,"Fill in additional fields S0-S4 and S9","Fill in additional fields S0-S4 and S9","Fill in additional fields S0-S6","Fill in additional fields S0-S6","Fill in additional fields S0-S6","Enter exposure values in fields S0 and S2","Fill in additional fields S0-S6 and S9","Fill in additional fields S0-S6 and S9","Fill in additional fields S0-S3 and S7-S8","Fill in additional fields S0-S3 and S9","."]
[null,null,null,null,null,null,null,null,null,null,null,null,"",null,null,null,"",null,null,null,null,null,null,null,null,"",48,"Fill in additional fields S0-S4 and S9","Fill in additional fields S0-S4 and S9","Fill in additional fields S0-S6","Fill in additional fields S0-S6","Fill in additional fields S0-S6","Enter exposure values in fields S0 and S2","Fill in additional fields S0-S6 and S9","Fill in additional fields S0-S6 and S9","Fill in additional fields S0-S3 and S7-S8","Fill in additional fields S0-S3 and S9","."]
[null,null,null,null,null,null,null,null,null,null,null,null,"",null,null,null,"",null,null,null,null,null,null,null,null,"",49,"Fill in additional fields S0-S4 and S9","Fill in additional fields S0-S4 and S9","Fill in additional fields S0-S6","Fill in additional fields S0-S6","Fill in additional fields S0-S6","Enter exposure values in fields S0 and S2","Fill in additional fields S0-S6 and S9","Fill in additional fields S0-S6 and S9","Fill in additional fields S0-S3 and S7-S8","Fill in additional fields S0-S3 and S9","."]
[null,null,null,null,null,null,null,null,null,null,null,null,"",null,null,null,"",null,null,null,null,null,null,null,null,"",50,"Fill in additional fields S0-S4 and S9","Fill in additional fields S0-S4 and S9","Fill in additional fields S0-S6","Fill in additional fields S0-S6","Fill in additional fields S0-S6","Enter exposure values in fields S0 and S2","Fill in additional fields S0-S6 and S9","Fill in additional fields S0-S6 and S9","Fill in additional fields S0-S3 and S7-S8","Fill in additional fields S0-S3 and S9","."]
[null,null,null,null,null,null,null,null,null,null,null,null,"",null,null,null,"",null,null,null,null,null,null,null,null,"",51,"Fill in additional fields S0-S4 and S9","Fill in additional fields S0-S4 and S9","Fill in additional fields S0-S6","Fill in additional fields S0-S6","Fill in additional fields S0-S6","Enter exposure values in fields S0 and S2","Fill in additional fields S0-S6 and S9","Fill in additional fields S0-S6 and S9","Fill in additional fields S0-S3 and S7-S8","Fill in additional fields S0-S3 and S9","."]
[null,null,null,null,null,null,null,null,null,null,null,null,"",null,null,null,"",null,null,null,null,null,null,null,null,"",52,"Fill in additional fields S0-S4 and S9","Fill in additional fields S0-S4 and S9","Fill in additional fields S0-S6","Fill in additional fields S0-S6","Fill in additional fields S0-S6","Enter exposure values in fields S0 and S2","Fill in additional fields S0-S6 and S9","Fill in additional fields S0-S6 and S9","Fill in additional fields S0-S3 and S7-S8","Fill in additional fields S0-S3 and S9","."]
[null,null,null,null,null,null,null,null,null,null,null,null,"",null,null,null,"",null,null,null,null,null,null,null,null,"",53,"Fill in additional fields S0-S4 and S9","Fill in additional fields S0-S4 and S9","Fill in additional fields S0-S6","Fill in additional fields S0-S6","Fill in additional fields S0-S6","Enter exposure values in fields S0 and S2","Fill in additional fields S0-S6 and S9","Fill in additional fields S0-S6 and S9","Fill in additional fields S0-S3 and S7-S8","Fill in additional fields S0-S3 and S9","."]
[null,null,null,null,null,null,null,null,null,null,null,null,"",null,null,null,"",null,null,null,null,null,null,null,null,"",54,"Fill in additional fields S0-S4 and S9","Fill in additional fields S0-S4 and S9","Fill in additional fields S0-S6","Fill in additional fields S0-S6","Fill in additional fields S0-S6","Enter exposure values in fields S0 and S2","Fill in additional fields S0-S6 and S9","Fill in additional fields S0-S6 and S9","Fill in additional fields S0-S3 and S7-S8","Fill in additional fields S0-S3 and S9","."]
[null,null,null,null,null,null,null,null,null,null,null,null,"",null,null,null,"",null,null,null,null,null,null,null,null,"",55,"Fill in additional fields S0-S4 and S9","Fill in additional fields S0-S4 and S9","Fill in additional fields S0-S6","Fill in additional fields S0-S6","Fill in additional fields S0-S6","Enter exposure values in fields S0 and S2","Fill in additional fields S0-S6 and S9","Fill in additional fields S0-S6 and S9","Fill in additional fields S0-S3 and S7-S8","Fill in additional fields S0-S3 and S9","."]
[null,null,null,null,null,null,null,null,null,null,null,null,"",null,null,null,"",null,null,null,null,null,null,null,null,"",56,"Fill in additional fields S0-S4 and S9","Fill in additional fields S0-S4 and S9","Fill in additional fields S0-S6","Fill in additional fields S0-S6","Fill in additional fields S0-S6","Enter exposure values in fields S0 and S2","Fill in additional fields S0-S6 and S9","Fill in additional fields S0-S6 and S9","Fill in additional fields S0-S3 and S7-S8","Fill in additional fields S0-S3 and S9","."]
[null,null,null,null,null,null,null,null,null,null,null,null,"",null,null,null,"",null,null,null,null,null,null,null,null,"",57,"Fill in additional fields S0-S4 and S9","Fill in additional fields S0-S4 and S9","Fill in additional fields S0-S6","Fill in additional fields S0-S6","Fill in additional fields S0-S6","Enter exposure values in fields S0 and S2","Fill in additional fields S0-S6 and S9","Fill in additional fields S0-S6 and S9","Fill in additional fields S0-S3 and S7-S8","Fill in additional fields S0-S3 and S9","."]
[null,null,null,null,null,null,null,null,null,null,null,null,"",null,null,null,"",null,null,null,null,null,null,null,null,"",58,"Fill in additional fields S0-S4 and S9","Fill in additional fields S0-S4 and S9","Fill in additional fields S0-S6","Fill in additional fields S0-S6","Fill in additional fields S0-S6","Enter exposure values in fields S0 and S2","Fill in additional fields S0-S6 and S9","Fill in additional fields S0-S6 and S9","Fill in additional fields S0-S3 and S7-S8","Fill in additional fields S0-S3 and S9","."]
[null,null,null,null,null,null,null,null,null,null,null,null,"",null,null,null,"",null,null,null,null,null,null,null,null,"",59,"Fill in additional fields S0-S4 and S9","Fill in additional fields S0-S4 and S9","Fill in additional fields S0-S6","Fill in additional fields S0-S6","Fill in additional fields S0-S6","Enter exposure values in fields S0 and S2","Fill in additional fields S0-S6 and S9","Fill in additional fields S0-S6 and S9","Fill in additional fields S0-S3 and S7-S8","Fill in additional fields S0-S3 and S9","."]
[null,null,null,null,null,null,null,null,null,null,null,null,"",null,null,null,"",null,null,null,null,null,null,null,null,"",60,"Fill in additional fields S0-S4 and S9","Fill in additional fields S0-S4 and S9","Fill in additional fields S0-S6","Fill in additional fields S0-S6","Fill in additional fields S0-S6","Enter exposure values in fields S0 and S2","Fill in additional fields S0-S6 and S9","Fill in additional fields S0-S6 and S9","Fill in additional fields S0-S3 and S7-S8","Fill in additional fields S0-S3 and S9","."]
[null,null,null,null,null,null,null,null,null,null,null,null,"",null,null,null,"",null,null,null,null,null,null,null,null,"",61,"Fill in additional fields S0-S4 and S9","Fill in additional fields S0-S4 and S9","Fill in additional fields S0-S6","Fill in additional fields S0-S6","Fill in additional fields S0-S6","Enter exposure values in fields S0 and S2","Fill in additional fields S0-S6 and S9","Fill in additional fields S0-S6 and S9","Fill in additional fields S0-S3 and S7-S8","Fill in additional fields S0-S3 and S9","."]
[null,null,null,null,null,null,null,null,null,null,null,null,"",null,null,null,"",null,null,null,null,null,null,null,null,"",62,"Fill in additional fields S0-S4 and S9","Fill in additional fields S0-S4 and S9","Fill in additional fields S0-S6","Fill in additional fields S0-S6","Fill in additional fields S0-S6","Enter exposure values in fields S0 and S2","Fill in additional fields S0-S6 and S9","Fill in additional fields S0-S6 and S9","Fill in additional fields S0-S3 and S7-S8","Fill in additional fields S0-S3 and S9","."]
[null,null,null,null,null,null,null,null,null,null,null,null,"",null,null,null,"",null,null,null,null,null,null,null,null,"",63,"Fill in additional fields S0-S4 and S9","Fill in additional fields S0-S4 and S9","Fill in additional fields S0-S6","Fill in additional fields S0-S6","Fill in additional fields S0-S6","Enter exposure values in fields S0 and S2","Fill in additional fields S0-S6 and S9","Fill in additional fields S0-S6 and S9","Fill in additional fields S0-S3 and S7-S8","Fill in additional fields S0-S3 and S9","."]
[null,null,null,null,null,null,null,null,null,null,null,null,"",null,null,null,"",null,null,null,null,null,null,null,null,"",64,"Fill in additional fields S0-S4 and S9","Fill in additional fields S0-S4 and S9","Fill in additional fields S0-S6","Fill in additional fields S0-S6","Fill in additional fields S0-S6","Enter exposure values in fields S0 and S2","Fill in additional fields S0-S6 and S9","Fill in additional fields S0-S6 and S9","Fill in additional fields S0-S3 and S7-S8","Fill in additional fields S0-S3 and S9","."]
[null,null,null,null,null,null,null,null,null,null,null,null,"",null,null,null,"",null,null,null,null,null,null,null,null,"",65,"Fill in additional fields S0-S4 and S9","Fill in additional fields S0-S4 and S9","Fill in additional fields S0-S6","Fill in additional fields S0-S6","Fill in additional fields S0-S6","Enter exposure values in fields S0 and S2","Fill in additional fields S0-S6 and S9","Fill in additional fields S0-S6 and S9","Fill in additional fields S0-S3 and S7-S8","Fill in additional fields S0-S3 and S9","."]
[null,null,null,null,null,null,null,null,null,null,null,null,{"$f":"IF(LEN(K70)=0,\"\",HLOOKUP(Z70,$AB$5:$AK$204,AA70,FALSE))","v":""},null,null,null,"",null,null,null,null,null,null,null,null,{"$f":"IFERROR(VLOOKUP(K70,AM:AN,2,FALSE),\"\")","v":""},66,"Fill in additional fields S0-S4 and S9","Fill in additional fields S0-S4 and S9","Fill in additional fields S0-S6","Fill in additional fields S0-S6","Fill in additional fields S0-S6","Enter exposure values in fields S0 and S2","Fill in additional fields S0-S6 and S9","Fill in additional fields S0-S6 and S9","Fill in additional fields S0-S3 and S7-S8","Fill in additional fields S0-S3 and S9","."]
[null,null,null,null,null,null,null,null,null,null,null,null,"",null,null,null,"",null,null,null,null,null,null,null,null,"",{"$f":"AA70+1","v":67},{"$f":"IF(N71>O71,\"S0 cannot be higher than S2\",IF(COUNTA(N71:P71)=0,\"Fill in additional fields S0-S4 and S9\",IFERROR(IF(VALUE(LEFT(Q71,1))=1,P71/2+(N71/O71)*(P71/2),IF(VALUE(LEFT(Q71,1))=2,\"impossible combination\",\"check not available\")),\"\")))","v":"Fill in additional fields S0-S4 and S9"},{"$f":"IF(N71>O71,\"S0 cannot be higher than S2\",IF(COUNTA(N71:P71)=0,\"Fill in additional fields S0-S4 and S9\",IFERROR(IF(VALUE(LEFT(Q71,1))=1,(N71/O71)*(P71/2),IF(VALUE(LEFT(Q71,1))=2,(N71/O71)*(P71),\"check not available\")),\"\")))","v":"Fill in additional fields S0-S4 and S9"},{"$f":"IF(N71>O71,\"S0 cannot be higher than S2\",IF(COUNTA(R71:S71)=0,\"Fill in additional fields S0-S6\",(P71/2)*(N71/O71)+(P71/2)*(1/SUM(R71:S71))))","v":"Fill in additional fields S0-S6"},{"$f":"IF(N71>O71,\"S0 cannot be higher than S2\",IFERROR(IF(COUNTA(R71:S71)=0,\"Fill in additional fields S0-S6\",P71/2)*(N71/O71)+(P71/2)*(1/R71),\"Fill in additional fields S0-S6\"))","v":"Fill in additional fields S0-S6"},{"$f":"IF(N71>O71,\"S0 cannot be higher than S2\",IFERROR(IF(COUNTA(R71:S71)=0,\"Fill in additional fields S0-S6\",IF(R71=0,P71/2*(N71/O71)+P71/2*(1/S71),(P71/2)*(N71/O71))),\"Fill in additional fields S0-S6\"))","v":"Fill in additional fields S0-S6"},{"$f":"IF(N71>O71,\"S0 cannot be higher than S2\",IF(COUNTA(N71:P71)=0,\"Enter exposure values in fields S0 and S2\",(P71)*(N71/O71)))","v":"Enter exposure values in fields S0 and S2"},{"$f":"IF(N71>O71,\"S0 cannot be higher than S2\",IFERROR(IF(COUNTA(R71:S71)=0,\"Fill in additional fields S0-S6 and S9\",P71/2)*(N71/O71)+(P71/2)*(1/R71),\"Fill in additional fields S0-S6 and S9\"))","v":"Fill in additional fields S0-S6 and S9"},{"$f":"IF(N71>O71,\"S0 cannot be higher than S2\",IFERROR(IF(COUNTA(R71:S71)=0,\"Fill in additional fields S0-S6 and S9\",IF(R71=0,P71/2*(N71/O71)+P71/2*(1/S71),(P71/2)*(N71/O71))),\"Fill in additional fields S0-S6 and S9\"))","v":"Fill in additional fields S0-S6 and S9"},{"$f":"IF(N71>O71,\"S0 cannot be higher than S2\",IF(COUNTA(N71:P71)=0,\"Fill in additional fields S0-S3 and S7-S8\",(N71/O71)*((P71)+T71*U71)))","v":"Fill in additional fields S0-S3 and S7-S8"},{"$f":"IF(N71>O71,\"S0 cannot be higher than S2\",IF(COUNTA(N71:P71)=0,\"Fill in additional fields S0-S3 and S9\",(P71)*(N71/O71)))","v":"Fill in additional fields S0-S3 and S9"},"."]
[null,null,null,null,null,null,null,null,null,null,null,null,"",null,null,null,{"$f":"IFERROR(IF(K72=\"1=Syndicated loan, arranger\",\"1=Official institution\",IF(K72=1,\"1=Official institution\",\"\")),\"\")","v":""},null,null,null,null,null,null,null,null,"",68,"Fill in additional fields S0-S4 and S9","Fill in additional fields S0-S4 and S9","Fill in additional fields S0-S6","Fill in additional fields S0-S6","Fill in additional fields S0-S6","Enter exposure values in fields S0 and S2","Fill in additional fields S0-S6 and S9","Fill in additional fields S0-S6 and S9","Fill in additional fields S0-S3 and S7-S8","Fill in additional fields S0-S3 and S9","."]
[null,null,null,null,null,null,null,null,null,null,null,null,"",null,null,null,"",null,null,null,null,null,null,null,null,"",69,"Fill in additional fields S0-S4 and S9","Fill in additional fields S0-S4 and S9","Fill in additional fields S0-S6","Fill in additional fields S0-S6","Fill in additional fields S0-S6","Enter exposure values in fields S0 and S2","Fill in additional fields S0-S6 and S9","Fill in additional fields S0-S6 and S9","Fill in additional fields S0-S3 and S7-S8","Fill in additional fields S0-S3 and S9","."]
[null,null,null,null,null,null,null,null,null,null,null,null,"",null,null,null,"",null,null,null,null,null,null,null,null,"",70,"Fill in additional fields S0-S4 and S9","Fill in additional fields S0-S4 and S9","Fill in additional fields S0-S6","Fill in additional fields S0-S6","Fill in additional fields S0-S6","Enter exposure values in fields S0 and S2","Fill in additional fields S0-S6 and S9","Fill in additional fields S0-S6 and S9","Fill in additional fields S0-S3 and S7-S8","Fill in additional fields S0-S3 and S9","."]
[null,null,null,null,null,null,null,null,null,null,null,null,"",null,null,null,"",null,null,null,null,null,null,null,null,"",71,"Fill in additional fields S0-S4 and S9","Fill in additional fields S0-S4 and S9","Fill in additional fields S0-S6","Fill in additional fields S0-S6","Fill in additional fields S0-S6","Enter exposure values in fields S0 and S2","Fill in additional fields S0-S6 and S9","Fill in additional fields S0-S6 and S9","Fill in additional fields S0-S3 and S7-S8","Fill in additional fields S0-S3 and S9","."]
[null,null,null,null,null,null,null,null,null,null,null,null,"",null,null,null,"",null,null,null,null,null,null,null,null,"",72,"Fill in additional fields S0-S4 and S9","Fill in additional fields S0-S4 and S9","Fill in additional fields S0-S6","Fill in additional fields S0-S6","Fill in additional fields S0-S6","Enter exposure values in fields S0 and S2","Fill in additional fields S0-S6 and S9","Fill in additional fields S0-S6 and S9","Fill in additional fields S0-S3 and S7-S8","Fill in additional fields S0-S3 and S9","."]
[null,null,null,null,null,null,null,null,null,null,null,null,"",null,null,null,"",null,null,null,null,null,null,null,null,"",73,"Fill in additional fields S0-S4 and S9","Fill in additional fields S0-S4 and S9","Fill in additional fields S0-S6","Fill in additional fields S0-S6","Fill in additional fields S0-S6","Enter exposure values in fields S0 and S2","Fill in additional fields S0-S6 and S9","Fill in additional fields S0-S6 and S9","Fill in additional fields S0-S3 and S7-S8","Fill in additional fields S0-S3 and S9","."]
[null,null,null,null,null,null,null,null,null,null,null,null,"",null,null,null,"",null,null,null,null,null,null,null,null,"",74,"Fill in additional fields S0-S4 and S9","Fill in additional fields S0-S4 and S9","Fill in additional fields S0-S6","Fill in additional fields S0-S6","Fill in additional fields S0-S6","Enter exposure values in fields S0 and S2","Fill in additional fields S0-S6 and S9","Fill in additional fields S0-S6 and S9","Fill in additional fields S0-S3 and S7-S8","Fill in additional fields S0-S3 and S9","."]
[null,null,null,null,null,null,null,null,null,null,null,null,"",null,null,null,"",null,null,null,null,null,null,null,null,"",75,"Fill in additional fields S0-S4 and S9","Fill in additional fields S0-S4 and S9","Fill in additional fields S0-S6","Fill in additional fields S0-S6","Fill in additional fields S0-S6","Enter exposure values in fields S0 and S2","Fill in additional fields S0-S6 and S9","Fill in additional fields S0-S6 and S9","Fill in additional fields S0-S3 and S7-S8","Fill in additional fields S0-S3 and S9","."]
[null,null,null,null,null,null,null,null,null,null,null,null,"",null,null,null,"",null,null,null,null,null,null,null,null,"",76,"Fill in additional fields S0-S4 and S9","Fill in additional fields S0-S4 and S9","Fill in additional fields S0-S6","Fill in additional fields S0-S6","Fill in additional fields S0-S6","Enter exposure values in fields S0 and S2","Fill in additional fields S0-S6 and S9","Fill in additional fields S0-S6 and S9","Fill in additional fields S0-S3 and S7-S8","Fill in additional fields S0-S3 and S9","."]
[null,null,null,null,null,null,null,null,null,null,null,null,"",null,null,null,"",null,null,null,null,null,null,null,null,"",77,"Fill in additional fields S0-S4 and S9","Fill in additional fields S0-S4 and S9","Fill in additional fields S0-S6","Fill in additional fields S0-S6","Fill in additional fields S0-S6","Enter exposure values in fields S0 and S2","Fill in additional fields S0-S6 and S9","Fill in additional fields S0-S6 and S9","Fill in additional fields S0-S3 and S7-S8","Fill in additional fields S0-S3 and S9","."]
[null,null,null,null,null,null,null,null,null,null,null,null,"",null,null,null,"",null,null,null,null,null,null,null,null,"",78,"Fill in additional fields S0-S4 and S9","Fill in additional fields S0-S4 and S9","Fill in additional fields S0-S6","Fill in additional fields S0-S6","Fill in additional fields S0-S6","Enter exposure values in fields S0 and S2","Fill in additional fields S0-S6 and S9","Fill in additional fields S0-S6 and S9","Fill in additional fields S0-S3 and S7-S8","Fill in additional fields S0-S3 and S9","."]
[null,null,null,null,null,null,null,null,null,null,null,null,"",null,null,null,"",null,null,null,null,null,null,null,null,"",79,"Fill in additional fields S0-S4 and S9","Fill in additional fields S0-S4 and S9","Fill in additional fields S0-S6","Fill in additional fields S0-S6","Fill in additional fields S0-S6","Enter exposure values in fields S0 and S2","Fill in additional fields S0-S6 and S9","Fill in additional fields S0-S6 and S9","Fill in additional fields S0-S3 and S7-S8","Fill in additional fields S0-S3 and S9","."]
[null,null,null,null,null,null,null,null,null,null,null,null,"",null,null,null,"",null,null,null,null,null,null,null,null,"",80,"Fill in additional fields S0-S4 and S9","Fill in additional fields S0-S4 and S9","Fill in additional fields S0-S6","Fill in additional fields S0-S6","Fill in additional fields S0-S6","Enter exposure values in fields S0 and S2","Fill in additional fields S0-S6 and S9","Fill in additional fields S0-S6 and S9","Fill in additional fields S0-S3 and S7-S8","Fill in additional fields S0-S3 and S9","."]
[null,null,null,null,null,null,null,null,null,null,null,null,"",null,null,null,"",null,null,null,null,null,null,null,null,"",81,"Fill in additional fields S0-S4 and S9","Fill in additional fields S0-S4 and S9","Fill in additional fields S0-S6","Fill in additional fields S0-S6","Fill in additional fields S0-S6","Enter exposure values in fields S0 and S2","Fill in additional fields S0-S6 and S9","Fill in additional fields S0-S6 and S9","Fill in additional fields S0-S3 and S7-S8","Fill in additional fields S0-S3 and S9","."]
[null,null,null,null,null,null,null,null,null,null,null,null,"",null,null,null,"",null,null,null,null,null,null,null,null,"",82,"Fill in additional fields S0-S4 and S9","Fill in additional fields S0-S4 and S9","Fill in additional fields S0-S6","Fill in additional fields S0-S6","Fill in additional fields S0-S6","Enter exposure values in fields S0 and S2","Fill in additional fields S0-S6 and S9","Fill in additional fields S0-S6 and S9","Fill in additional fields S0-S3 and S7-S8","Fill in additional fields S0-S3 and S9","."]
[null,null,null,null,null,null,null,null,null,null,null,null,"",null,null,null,"",null,null,null,null,null,null,null,null,"",83,"Fill in additional fields S0-S4 and S9","Fill in additional fields S0-S4 and S9","Fill in additional fields S0-S6","Fill in additional fields S0-S6","Fill in additional fields S0-S6","Enter exposure values in fields S0 and S2","Fill in additional fields S0-S6 and S9","Fill in additional fields S0-S6 and S9","Fill in additional fields S0-S3 and S7-S8","Fill in additional fields S0-S3 and S9","."]
[null,null,null,null,null,null,null,null,null,null,null,null,"",null,null,null,"",null,null,null,null,null,null,null,null,"",84,"Fill in additional fields S0-S4 and S9","Fill in additional fields S0-S4 and S9","Fill in additional fields S0-S6","Fill in additional fields S0-S6","Fill in additional fields S0-S6","Enter exposure values in fields S0 and S2","Fill in additional fields S0-S6 and S9","Fill in additional fields S0-S6 and S9","Fill in additional fields S0-S3 and S7-S8","Fill in additional fields S0-S3 and S9","."]
[null,null,null,null,null,null,null,null,null,null,null,null,"",null,null,null,"",null,null,null,null,null,null,null,null,"",85,"Fill in additional fields S0-S4 and S9","Fill in additional fields S0-S4 and S9","Fill in additional fields S0-S6","Fill in additional fields S0-S6","Fill in additional fields S0-S6","Enter exposure values in fields S0 and S2","Fill in additional fields S0-S6 and S9","Fill in additional fields S0-S6 and S9","Fill in additional fields S0-S3 and S7-S8","Fill in additional fields S0-S3 and S9","."]
[null,null,null,null,null,null,null,null,null,null,null,null,"",null,null,null,"",null,null,null,null,null,null,null,null,"",86,"Fill in additional fields S0-S4 and S9","Fill in additional fields S0-S4 and S9","Fill in additional fields S0-S6","Fill in additional fields S0-S6","Fill in additional fields S0-S6","Enter exposure values in fields S0 and S2","Fill in additional fields S0-S6 and S9","Fill in additional fields S0-S6 and S9","Fill in additional fields S0-S3 and S7-S8","Fill in additional fields S0-S3 and S9","."]
[null,null,null,null,null,null,null,null,null,null,null,null,"",null,null,null,"",null,null,null,null,null,null,null,null,"",87,"Fill in additional fields S0-S4 and S9","Fill in additional fields S0-S4 and S9","Fill in additional fields S0-S6","Fill in additional fields S0-S6","Fill in additional fields S0-S6","Enter exposure values in fields S0 and S2","Fill in additional fields S0-S6 and S9","Fill in additional fields S0-S6 and S9","Fill in additional fields S0-S3 and S7-S8","Fill in additional fields S0-S3 and S9","."]
[null,null,null,null,null,null,null,null,null,null,null,null,"",null,null,null,"",null,null,null,null,null,null,null,null,"",88,"Fill in additional fields S0-S4 and S9","Fill in additional fields S0-S4 and S9","Fill in additional fields S0-S6","Fill in additional fields S0-S6","Fill in additional fields S0-S6","Enter exposure values in fields S0 and S2","Fill in additional fields S0-S6 and S9","Fill in additional fields S0-S6 and S9","Fill in additional fields S0-S3 and S7-S8","Fill in additional fields S0-S3 and S9","."]
[null,null,null,null,null,null,null,null,null,null,null,null,"",null,null,null,"",null,null,null,null,null,null,null,null,"",89,"Fill in additional fields S0-S4 and S9","Fill in additional fields S0-S4 and S9","Fill in additional fields S0-S6","Fill in additional fields S0-S6","Fill in additional fields S0-S6","Enter exposure values in fields S0 and S2","Fill in additional fields S0-S6 and S9","Fill in additional fields S0-S6 and S9","Fill in additional fields S0-S3 and S7-S8","Fill in additional fields S0-S3 and S9","."]
[null,null,null,null,null,null,null,null,null,null,null,null,"",null,null,null,"",null,null,null,null,null,null,null,null,"",90,"Fill in additional fields S0-S4 and S9","Fill in additional fields S0-S4 and S9","Fill in additional fields S0-S6","Fill in additional fields S0-S6","Fill in additional fields S0-S6","Enter exposure values in fields S0 and S2","Fill in additional fields S0-S6 and S9","Fill in additional fields S0-S6 and S9","Fill in additional fields S0-S3 and S7-S8","Fill in additional fields S0-S3 and S9","."]
[null,null,null,null,null,null,null,null,null,null,null,null,"",null,null,null,"",null,null,null,null,null,null,null,null,"",91,"Fill in additional fields S0-S4 and S9","Fill in additional fields S0-S4 and S9","Fill in additional fields S0-S6","Fill in additional fields S0-S6","Fill in additional fields S0-S6","Enter exposure values in fields S0 and S2","Fill in additional fields S0-S6 and S9","Fill in additional fields S0-S6 and S9","Fill in additional fields S0-S3 and S7-S8","Fill in additional fields S0-S3 and S9","."]
[null,null,null,null,null,null,null,null,null,null,null,null,"",null,null,null,"",null,null,null,null,null,null,null,null,"",92,"Fill in additional fields S0-S4 and S9","Fill in additional fields S0-S4 and S9","Fill in additional fields S0-S6","Fill in additional fields S0-S6","Fill in additional fields S0-S6","Enter exposure values in fields S0 and S2","Fill in additional fields S0-S6 and S9","Fill in additional fields S0-S6 and S9","Fill in additional fields S0-S3 and S7-S8","Fill in additional fields S0-S3 and S9","."]
[null,null,null,null,null,null,null,null,null,null,null,null,"",null,null,null,"",null,null,null,null,null,null,null,null,"",93,"Fill in additional fields S0-S4 and S9","Fill in additional fields S0-S4 and S9","Fill in additional fields S0-S6","Fill in additional fields S0-S6","Fill in additional fields S0-S6","Enter exposure values in fields S0 and S2","Fill in additional fields S0-S6 and S9","Fill in additional fields S0-S6 and S9","Fill in additional fields S0-S3 and S7-S8","Fill in additional fields S0-S3 and S9","."]
[null,null,null,null,null,null,null,null,null,null,null,null,"",null,null,null,"",null,null,null,null,null,null,null,null,"",94,"Fill in additional fields S0-S4 and S9","Fill in additional fields S0-S4 and S9","Fill in additional fields S0-S6","Fill in additional fields S0-S6","Fill in additional fields S0-S6","Enter exposure values in fields S0 and S2","Fill in additional fields S0-S6 and S9","Fill in additional fields S0-S6 and S9","Fill in additional fields S0-S3 and S7-S8","Fill in additional fields S0-S3 and S9","."]
[null,null,null,null,null,null,null,null,null,null,null,null,"",null,null,null,"",null,null,null,null,null,null,null,null,"",95,"Fill in additional fields S0-S4 and S9","Fill in additional fields S0-S4 and S9","Fill in additional fields S0-S6","Fill in additional fields S0-S6","Fill in additional fields S0-S6","Enter exposure values in fields S0 and S2","Fill in additional fields S0-S6 and S9","Fill in additional fields S0-S6 and S9","Fill in additional fields S0-S3 and S7-S8","Fill in additional fields S0-S3 and S9","."]
[null,null,null,null,null,null,null,null,null,null,null,null,"",null,null,null,"",null,null,null,null,null,null,null,null,"",96,"Fill in additional fields S0-S4 and S9","Fill in additional fields S0-S4 and S9","Fill in additional fields S0-S6","Fill in additional fields S0-S6","Fill in additional fields S0-S6","Enter exposure values in fields S0 and S2","Fill in additional fields S0-S6 and S9","Fill in additional fields S0-S6 and S9","Fill in additional fields S0-S3 and S7-S8","Fill in additional fields S0-S3 and S9","."]
[null,null,null,null,null,null,null,null,null,null,null,null,"",null,null,null,"",null,null,null,null,null,null,null,null,"",97,"Fill in additional fields S0-S4 and S9","Fill in additional fields S0-S4 and S9","Fill in additional fields S0-S6","Fill in additional fields S0-S6","Fill in additional fields S0-S6","Enter exposure values in fields S0 and S2","Fill in additional fields S0-S6 and S9","Fill in additional fields S0-S6 and S9","Fill in additional fields S0-S3 and S7-S8","Fill in additional fields S0-S3 and S9","."]
[null,null,null,null,null,null,null,null,null,null,null,null,{"$f":"IF(LEN(K102)=0,\"\",HLOOKUP(Z102,$AB$5:$AK$204,AA102,FALSE))","v":""},null,null,null,"",null,null,null,null,null,null,null,null,{"$f":"IFERROR(VLOOKUP(K102,AM:AN,2,FALSE),\"\")","v":""},98,"Fill in additional fields S0-S4 and S9","Fill in additional fields S0-S4 and S9","Fill in additional fields S0-S6","Fill in additional fields S0-S6","Fill in additional fields S0-S6","Enter exposure values in fields S0 and S2","Fill in additional fields S0-S6 and S9","Fill in additional fields S0-S6 and S9","Fill in additional fields S0-S3 and S7-S8","Fill in additional fields S0-S3 and S9","."]
[null,null,null,null,null,null,null,null,null,null,null,null,"",null,null,null,"",null,null,null,null,null,null,null,null,"",99,"Fill in additional fields S0-S4 and S9","Fill in additional fields S0-S4 and S9","Fill in additional fields S0-S6","Fill in additional fields S0-S6","Fill in additional fields S0-S6","Enter exposure values in fields S0 and S2","Fill in additional fields S0-S6 and S9","Fill in additional fields S0-S6 and S9","Fill in additional fields S0-S3 and S7-S8","Fill in additional fields S0-S3 and S9","."]
[null,null,null,null,null,null,null,null,null,null,null,null,"",null,null,null,{"$f":"IFERROR(IF(K104=\"1=Syndicated loan, arranger\",\"1=Official institution\",IF(K104=1,\"1=Official institution\",\"\")),\"\")","v":""},null,null,null,null,null,null,null,null,"",100,"Fill in additional fields S0-S4 and S9","Fill in additional fields S0-S4 and S9","Fill in additional fields S0-S6","Fill in additional fields S0-S6","Fill in additional fields S0-S6","Enter exposure values in fields S0 and S2","Fill in additional fields S0-S6 and S9","Fill in additional fields S0-S6 and S9","Fill in additional fields S0-S3 and S7-S8","Fill in additional fields S0-S3 and S9","."]
[null,null,null,null,null,null,null,null,null,null,null,null,"",null,null,null,"",null,null,null,null,null,null,null,null,"",101,"Fill in additional fields S0-S4 and S9","Fill in additional fields S0-S4 and S9","Fill in additional fields S0-S6","Fill in additional fields S0-S6","Fill in additional fields S0-S6","Enter exposure values in fields S0 and S2","Fill in additional fields S0-S6 and S9","Fill in additional fields S0-S6 and S9","Fill in additional fields S0-S3 and S7-S8","Fill in additional fields S0-S3 and S9","."]
[null,null,null,null,null,null,null,null,null,null,null,null,"",null,null,null,"",null,null,null,null,null,null,null,null,"",102,"Fill in additional fields S0-S4 and S9","Fill in additional fields S0-S4 and S9","Fill in additional fields S0-S6","Fill in additional fields S0-S6","Fill in additional fields S0-S6","Enter exposure values in fields S0 and S2","Fill in additional fields S0-S6 and S9","Fill in additional fields S0-S6 and S9","Fill in additional fields S0-S3 and S7-S8","Fill in additional fields S0-S3 and S9","."]
[null,null,null,null,null,null,null,null,null,null,null,null,"",null,null,null,"",null,null,null,null,null,null,null,null,"",103,"Fill in additional fields S0-S4 and S9","Fill in additional fields S0-S4 and S9","Fill in additional fields S0-S6","Fill in additional fields S0-S6","Fill in additional fields S0-S6","Enter exposure values in fields S0 and S2","Fill in additional fields S0-S6 and S9","Fill in additional fields S0-S6 and S9","Fill in additional fields S0-S3 and S7-S8","Fill in additional fields S0-S3 and S9","."]
[null,null,null,null,null,null,null,null,null,null,null,null,"",null,null,null,"",null,null,null,null,null,null,null,null,"",104,"Fill in additional fields S0-S4 and S9","Fill in additional fields S0-S4 and S9","Fill in additional fields S0-S6","Fill in additional fields S0-S6","Fill in additional fields S0-S6","Enter exposure values in fields S0 and S2","Fill in additional fields S0-S6 and S9","Fill in additional fields S0-S6 and S9","Fill in additional fields S0-S3 and S7-S8","Fill in additional fields S0-S3 and S9","."]
[null,null,null,null,null,null,null,null,null,null,null,null,"",null,null,null,"",null,null,null,null,null,null,null,null,"",105,"Fill in additional fields S0-S4 and S9","Fill in additional fields S0-S4 and S9","Fill in additional fields S0-S6","Fill in additional fields S0-S6","Fill in additional fields S0-S6","Enter exposure values in fields S0 and S2","Fill in additional fields S0-S6 and S9","Fill in additional fields S0-S6 and S9","Fill in additional fields S0-S3 and S7-S8","Fill in additional fields S0-S3 and S9","."]
[null,null,null,null,null,null,null,null,null,null,null,null,"",null,null,null,"",null,null,null,null,null,null,null,null,"",106,"Fill in additional fields S0-S4 and S9","Fill in additional fields S0-S4 and S9","Fill in additional fields S0-S6","Fill in additional fields S0-S6","Fill in additional fields S0-S6","Enter exposure values in fields S0 and S2","Fill in additional fields S0-S6 and S9","Fill in additional fields S0-S6 and S9","Fill in additional fields S0-S3 and S7-S8","Fill in additional fields S0-S3 and S9","."]
[null,null,null,null,null,null,null,null,null,null,null,null,"",null,null,null,"",null,null,null,null,null,null,null,null,"",107,"Fill in additional fields S0-S4 and S9","Fill in additional fields S0-S4 and S9","Fill in additional fields S0-S6","Fill in additional fields S0-S6","Fill in additional fields S0-S6","Enter exposure values in fields S0 and S2","Fill in additional fields S0-S6 and S9","Fill in additional fields S0-S6 and S9","Fill in additional fields S0-S3 and S7-S8","Fill in additional fields S0-S3 and S9","."]
[null,null,null,null,null,null,null,null,null,null,null,null,"",null,null,null,"",null,null,null,null,null,null,null,null,"",108,"Fill in additional fields S0-S4 and S9","Fill in additional fields S0-S4 and S9","Fill in additional fields S0-S6","Fill in additional fields S0-S6","Fill in additional fields S0-S6","Enter exposure values in fields S0 and S2","Fill in additional fields S0-S6 and S9","Fill in additional fields S0-S6 and S9","Fill in additional fields S0-S3 and S7-S8","Fill in additional fields S0-S3 and S9","."]
[null,null,null,null,null,null,null,null,null,null,null,null,"",null,null,null,"",null,null,null,null,null,null,null,null,"",109,"Fill in additional fields S0-S4 and S9","Fill in additional fields S0-S4 and S9","Fill in additional fields S0-S6","Fill in additional fields S0-S6","Fill in additional fields S0-S6","Enter exposure values in fields S0 and S2","Fill in additional fields S0-S6 and S9","Fill in additional fields S0-S6 and S9","Fill in additional fields S0-S3 and S7-S8","Fill in additional fields S0-S3 and S9","."]
[null,null,null,null,null,null,null,null,null,null,null,null,"",null,null,null,"",null,null,null,null,null,null,null,null,"",110,"Fill in additional fields S0-S4 and S9","Fill in additional fields S0-S4 and S9","Fill in additional fields S0-S6","Fill in additional fields S0-S6","Fill in additional fields S0-S6","Enter exposure values in fields S0 and S2","Fill in additional fields S0-S6 and S9","Fill in additional fields S0-S6 and S9","Fill in additional fields S0-S3 and S7-S8","Fill in additional fields S0-S3 and S9","."]
[null,null,null,null,null,null,null,null,null,null,null,null,"",null,null,null,"",null,null,null,null,null,null,null,null,"",111,"Fill in additional fields S0-S4 and S9","Fill in additional fields S0-S4 and S9","Fill in additional fields S0-S6","Fill in additional fields S0-S6","Fill in additional fields S0-S6","Enter exposure values in fields S0 and S2","Fill in additional fields S0-S6 and S9","Fill in additional fields S0-S6 and S9","Fill in additional fields S0-S3 and S7-S8","Fill in additional fields S0-S3 and S9","."]
[null,null,null,null,null,null,null,null,null,null,null,null,"",null,null,null,"",null,null,null,null,null,null,null,null,"",112,"Fill in additional fields S0-S4 and S9","Fill in additional fields S0-S4 and S9","Fill in additional fields S0-S6","Fill in additional fields S0-S6","Fill in additional fields S0-S6","Enter exposure values in fields S0 and S2","Fill in additional fields S0-S6 and S9","Fill in additional fields S0-S6 and S9","Fill in additional fields S0-S3 and S7-S8","Fill in additional fields S0-S3 and S9","."]
[null,null,null,null,null,null,null,null,null,null,null,null,"",null,null,null,"",null,null,null,null,null,null,null,null,"",113,"Fill in additional fields S0-S4 and S9","Fill in additional fields S0-S4 and S9","Fill in additional fields S0-S6","Fill in additional fields S0-S6","Fill in additional fields S0-S6","Enter exposure values in fields S0 and S2","Fill in additional fields S0-S6 and S9","Fill in additional fields S0-S6 and S9","Fill in additional fields S0-S3 and S7-S8","Fill in additional fields S0-S3 and S9","."]
[null,null,null,null,null,null,null,null,null,null,null,null,"",null,null,null,"",null,null,null,null,null,null,null,null,"",114,"Fill in additional fields S0-S4 and S9","Fill in additional fields S0-S4 and S9","Fill in additional fields S0-S6","Fill in additional fields S0-S6","Fill in additional fields S0-S6","Enter exposure values in fields S0 and S2","Fill in additional fields S0-S6 and S9","Fill in additional fields S0-S6 and S9","Fill in additional fields S0-S3 and S7-S8","Fill in additional fields S0-S3 and S9","."]
[null,null,null,null,null,null,null,null,null,null,null,null,"",null,null,null,"",null,null,null,null,null,null,null,null,"",115,"Fill in additional fields S0-S4 and S9","Fill in additional fields S0-S4 and S9","Fill in additional fields S0-S6","Fill in additional fields S0-S6","Fill in additional fields S0-S6","Enter exposure values in fields S0 and S2","Fill in additional fields S0-S6 and S9","Fill in additional fields S0-S6 and S9","Fill in additional fields S0-S3 and S7-S8","Fill in additional fields S0-S3 and S9","."]
[null,null,null,null,null,null,null,null,null,null,null,null,"",null,null,null,"",null,null,null,null,null,null,null,null,"",116,"Fill in additional fields S0-S4 and S9","Fill in additional fields S0-S4 and S9","Fill in additional fields S0-S6","Fill in additional fields S0-S6","Fill in additional fields S0-S6","Enter exposure values in fields S0 and S2","Fill in additional fields S0-S6 and S9","Fill in additional fields S0-S6 and S9","Fill in additional fields S0-S3 and S7-S8","Fill in additional fields S0-S3 and S9","."]
[null,null,null,null,null,null,null,null,null,null,null,null,"",null,null,null,"",null,null,null,null,null,null,null,null,"",117,"Fill in additional fields S0-S4 and S9","Fill in additional fields S0-S4 and S9","Fill in additional fields S0-S6","Fill in additional fields S0-S6","Fill in additional fields S0-S6","Enter exposure values in fields S0 and S2","Fill in additional fields S0-S6 and S9","Fill in additional fields S0-S6 and S9","Fill in additional fields S0-S3 and S7-S8","Fill in additional fields S0-S3 and S9","."]
[null,null,null,null,null,null,null,null,null,null,null,null,"",null,null,null,"",null,null,null,null,null,null,null,null,"",118,"Fill in additional fields S0-S4 and S9","Fill in additional fields S0-S4 and S9","Fill in additional fields S0-S6","Fill in additional fields S0-S6","Fill in additional fields S0-S6","Enter exposure values in fields S0 and S2","Fill in additional fields S0-S6 and S9","Fill in additional fields S0-S6 and S9","Fill in additional fields S0-S3 and S7-S8","Fill in additional fields S0-S3 and S9","."]
[null,null,null,null,null,null,null,null,null,null,null,null,"",null,null,null,"",null,null,null,null,null,null,null,null,"",119,"Fill in additional fields S0-S4 and S9","Fill in additional fields S0-S4 and S9","Fill in additional fields S0-S6","Fill in additional fields S0-S6","Fill in additional fields S0-S6","Enter exposure values in fields S0 and S2","Fill in additional fields S0-S6 and S9","Fill in additional fields S0-S6 and S9","Fill in additional fields S0-S3 and S7-S8","Fill in additional fields S0-S3 and S9","."]
[null,null,null,null,null,null,null,null,null,null,null,null,"",null,null,null,"",null,null,null,null,null,null,null,null,"",120,"Fill in additional fields S0-S4 and S9","Fill in additional fields S0-S4 and S9","Fill in additional fields S0-S6","Fill in additional fields S0-S6","Fill in additional fields S0-S6","Enter exposure values in fields S0 and S2","Fill in additional fields S0-S6 and S9","Fill in additional fields S0-S6 and S9","Fill in additional fields S0-S3 and S7-S8","Fill in additional fields S0-S3 and S9","."]
[null,null,null,null,null,null,null,null,null,null,null,null,"",null,null,null,"",null,null,null,null,null,null,null,null,"",121,"Fill in additional fields S0-S4 and S9","Fill in additional fields S0-S4 and S9","Fill in additional fields S0-S6","Fill in additional fields S0-S6","Fill in additional fields S0-S6","Enter exposure values in fields S0 and S2","Fill in additional fields S0-S6 and S9","Fill in additional fields S0-S6 and S9","Fill in additional fields S0-S3 and S7-S8","Fill in additional fields S0-S3 and S9","."]
[null,null,null,null,null,null,null,null,null,null,null,null,"",null,null,null,"",null,null,null,null,null,null,null,null,"",122,"Fill in additional fields S0-S4 and S9","Fill in additional fields S0-S4 and S9","Fill in additional fields S0-S6","Fill in additional fields S0-S6","Fill in additional fields S0-S6","Enter exposure values in fields S0 and S2","Fill in additional fields S0-S6 and S9","Fill in additional fields S0-S6 and S9","Fill in additional fields S0-S3 and S7-S8","Fill in additional fields S0-S3 and S9","."]
[null,null,null,null,null,null,null,null,null,null,null,null,"",null,null,null,"",null,null,null,null,null,null,null,null,"",123,"Fill in additional fields S0-S4 and S9","Fill in additional fields S0-S4 and S9","Fill in additional fields S0-S6","Fill in additional fields S0-S6","Fill in additional fields S0-S6","Enter exposure values in fields S0 and S2","Fill in additional fields S0-S6 and S9","Fill in additional fields S0-S6 and S9","Fill in additional fields S0-S3 and S7-S8","Fill in additional fields S0-S3 and S9","."]
[null,null,null,null,null,null,null,null,null,null,null,null,"",null,null,null,"",null,null,null,null,null,null,null,null,"",124,"Fill in additional fields S0-S4 and S9","Fill in additional fields S0-S4 and S9","Fill in additional fields S0-S6","Fill in additional fields S0-S6","Fill in additional fields S0-S6","Enter exposure values in fields S0 and S2","Fill in additional fields S0-S6 and S9","Fill in additional fields S0-S6 and S9","Fill in additional fields S0-S3 and S7-S8","Fill in additional fields S0-S3 and S9","."]
[null,null,null,null,null,null,null,null,null,null,null,null,"",null,null,null,"",null,null,null,null,null,null,null,null,"",125,"Fill in additional fields S0-S4 and S9","Fill in additional fields S0-S4 and S9","Fill in additional fields S0-S6","Fill in additional fields S0-S6","Fill in additional fields S0-S6","Enter exposure values in fields S0 and S2","Fill in additional fields S0-S6 and S9","Fill in additional fields S0-S6 and S9","Fill in additional fields S0-S3 and S7-S8","Fill in additional fields S0-S3 and S9","."]
[null,null,null,null,null,null,null,null,null,null,null,null,"",null,null,null,"",null,null,null,null,null,null,null,null,"",126,"Fill in additional fields S0-S4 and S9","Fill in additional fields S0-S4 and S9","Fill in additional fields S0-S6","Fill in additional fields S0-S6","Fill in additional fields S0-S6","Enter exposure values in fields S0 and S2","Fill in additional fields S0-S6 and S9","Fill in additional fields S0-S6 and S9","Fill in additional fields S0-S3 and S7-S8","Fill in additional fields S0-S3 and S9","."]
[null,null,null,null,null,null,null,null,null,null,null,null,"",null,null,null,"",null,null,null,null,null,null,null,null,"",127,"Fill in additional fields S0-S4 and S9","Fill in additional fields S0-S4 and S9","Fill in additional fields S0-S6","Fill in additional fields S0-S6","Fill in additional fields S0-S6","Enter exposure values in fields S0 and S2","Fill in additional fields S0-S6 and S9","Fill in additional fields S0-S6 and S9","Fill in additional fields S0-S3 and S7-S8","Fill in additional fields S0-S3 and S9","."]
[null,null,null,null,null,null,null,null,null,null,null,null,"",null,null,null,"",null,null,null,null,null,null,null,null,"",128,"Fill in additional fields S0-S4 and S9","Fill in additional fields S0-S4 and S9","Fill in additional fields S0-S6","Fill in additional fields S0-S6","Fill in additional fields S0-S6","Enter exposure values in fields S0 and S2","Fill in additional fields S0-S6 and S9","Fill in additional fields S0-S6 and S9","Fill in additional fields S0-S3 and S7-S8","Fill in additional fields S0-S3 and S9","."]
[null,null,null,null,null,null,null,null,null,null,null,null,"",null,null,null,"",null,null,null,null,null,null,null,null,"",129,"Fill in additional fields S0-S4 and S9","Fill in additional fields S0-S4 and S9","Fill in additional fields S0-S6","Fill in additional fields S0-S6","Fill in additional fields S0-S6","Enter exposure values in fields S0 and S2","Fill in additional fields S0-S6 and S9","Fill in additional fields S0-S6 and S9","Fill in additional fields S0-S3 and S7-S8","Fill in additional fields S0-S3 and S9","."]
[null,null,null,null,null,null,null,null,null,null,null,null,{"$f":"IF(LEN(K134)=0,\"\",HLOOKUP(Z134,$AB$5:$AK$204,AA134,FALSE))","v":""},null,null,null,"",null,null,null,null,null,null,null,null,{"$f":"IFERROR(VLOOKUP(K134,AM:AN,2,FALSE),\"\")","v":""},130,"Fill in additional fields S0-S4 and S9","Fill in additional fields S0-S4 and S9","Fill in additional fields S0-S6","Fill in additional fields S0-S6","Fill in additional fields S0-S6","Enter exposure values in fields S0 and S2","Fill in additional fields S0-S6 and S9","Fill in additional fields S0-S6 and S9","Fill in additional fields S0-S3 and S7-S8","Fill in additional fields S0-S3 and S9","."]
[null,null,null,null,null,null,null,null,null,null,null,null,"",null,null,null,"",null,null,null,null,null,null,null,null,"",{"$f":"AA134+1","v":131},{"$f":"IF(N135>O135,\"S0 cannot be higher than S2\",IF(COUNTA(N135:P135)=0,\"Fill in additional fields S0-S4 and S9\",IFERROR(IF(VALUE(LEFT(Q135,1))=1,P135/2+(N135/O135)*(P135/2),IF(VALUE(LEFT(Q135,1))=2,\"impossible combination\",\"check not available\")),\"\")))","v":"Fill in additional fields S0-S4 and S9"},{"$f":"IF(N135>O135,\"S0 cannot be higher than S2\",IF(COUNTA(N135:P135)=0,\"Fill in additional fields S0-S4 and S9\",IFERROR(IF(VALUE(LEFT(Q135,1))=1,(N135/O135)*(P135/2),IF(VALUE(LEFT(Q135,1))=2,(N135/O135)*(P135),\"check not available\")),\"\")))","v":"Fill in additional fields S0-S4 and S9"},{"$f":"IF(N135>O135,\"S0 cannot be higher than S2\",IF(COUNTA(R135:S135)=0,\"Fill in additional fields S0-S6\",(P135/2)*(N135/O135)+(P135/2)*(1/SUM(R135:S135))))","v":"Fill in additional fields S0-S6"},{"$f":"IF(N135>O135,\"S0 cannot be higher than S2\",IFERROR(IF(COUNTA(R135:S135)=0,\"Fill in additional fields S0-S6\",P135/2)*(N135/O135)+(P135/2)*(1/R135),\"Fill in additional fields S0-S6\"))","v":"Fill in additional fields S0-S6"},{"$f":"IF(N135>O135,\"S0 cannot be higher than S2\",IFERROR(IF(COUNTA(R135:S135)=0,\"Fill in additional fields S0-S6\",IF(R135=0,P135/2*(N135/O135)+P135/2*(1/S135),(P135/2)*(N135/O135))),\"Fill in additional fields S0-S6\"))","v":"Fill in additional fields S0-S6"},{"$f":"IF(N135>O135,\"S0 cannot be higher than S2\",IF(COUNTA(N135:P135)=0,\"Enter exposure values in fields S0 and S2\",(P135)*(N135/O135)))","v":"Enter exposure values in fields S0 and S2"},{"$f":"IF(N135>O135,\"S0 cannot be higher than S2\",IFERROR(IF(COUNTA(R135:S135)=0,\"Fill in additional fields S0-S6 and S9\",P135/2)*(N135/O135)+(P135/2)*(1/R135),\"Fill in additional fields S0-S6 and S9\"))","v":"Fill in additional fields S0-S6 and S9"},{"$f":"IF(N135>O135,\"S0 cannot be higher than S2\",IFERROR(IF(COUNTA(R135:S135)=0,\"Fill in additional fields S0-S6 and S9\",IF(R135=0,P135/2*(N135/O135)+P135/2*(1/S135),(P135/2)*(N135/O135))),\"Fill in additional fields S0-S6 and S9\"))","v":"Fill in additional fields S0-S6 and S9"},{"$f":"IF(N135>O135,\"S0 cannot be higher than S2\",IF(COUNTA(N135:P135)=0,\"Fill in additional fields S0-S3 and S7-S8\",(N135/O135)*((P135)+T135*U135)))","v":"Fill in additional fields S0-S3 and S7-S8"},{"$f":"IF(N135>O135,\"S0 cannot be higher than S2\",IF(COUNTA(N135:P135)=0,\"Fill in additional fields S0-S3 and S9\",(P135)*(N135/O135)))","v":"Fill in additional fields S0-S3 and S9"},"."]
[null,null,null,null,null,null,null,null,null,null,null,null,"",null,null,null,{"$f":"IFERROR(IF(K136=\"1=Syndicated loan, arranger\",\"1=Official institution\",IF(K136=1,\"1=Official institution\",\"\")),\"\")","v":""},null,null,null,null,null,null,null,null,"",132,"Fill in additional fields S0-S4 and S9","Fill in additional fields S0-S4 and S9","Fill in additional fields S0-S6","Fill in additional fields S0-S6","Fill in additional fields S0-S6","Enter exposure values in fields S0 and S2","Fill in additional fields S0-S6 and S9","Fill in additional fields S0-S6 and S9","Fill in additional fields S0-S3 and S7-S8","Fill in additional fields S0-S3 and S9","."]
[null,null,null,null,null,null,null,null,null,null,null,null,"",null,null,null,"",null,null,null,null,null,null,null,null,"",133,"Fill in additional fields S0-S4 and S9","Fill in additional fields S0-S4 and S9","Fill in additional fields S0-S6","Fill in additional fields S0-S6","Fill in additional fields S0-S6","Enter exposure values in fields S0 and S2","Fill in additional fields S0-S6 and S9","Fill in additional fields S0-S6 and S9","Fill in additional fields S0-S3 and S7-S8","Fill in additional fields S0-S3 and S9","."]
[null,null,null,null,null,null,null,null,null,null,null,null,"",null,null,null,"",null,null,null,null,null,null,null,null,"",134,"Fill in additional fields S0-S4 and S9","Fill in additional fields S0-S4 and S9","Fill in additional fields S0-S6","Fill in additional fields S0-S6","Fill in additional fields S0-S6","Enter exposure values in fields S0 and S2","Fill in additional fields S0-S6 and S9","Fill in additional fields S0-S6 and S9","Fill in additional fields S0-S3 and S7-S8","Fill in additional fields S0-S3 and S9","."]
[null,null,null,null,null,null,null,null,null,null,null,null,"",null,null,null,"",null,null,null,null,null,null,null,null,"",135,"Fill in additional fields S0-S4 and S9","Fill in additional fields S0-S4 and S9","Fill in additional fields S0-S6","Fill in additional fields S0-S6","Fill in additional fields S0-S6","Enter exposure values in fields S0 and S2","Fill in additional fields S0-S6 and S9","Fill in additional fields S0-S6 and S9","Fill in additional fields S0-S3 and S7-S8","Fill in additional fields S0-S3 and S9","."]
[null,null,null,null,null,null,null,null,null,null,null,null,"",null,null,null,"",null,null,null,null,null,null,null,null,"",136,"Fill in additional fields S0-S4 and S9","Fill in additional fields S0-S4 and S9","Fill in additional fields S0-S6","Fill in additional fields S0-S6","Fill in additional fields S0-S6","Enter exposure values in fields S0 and S2","Fill in additional fields S0-S6 and S9","Fill in additional fields S0-S6 and S9","Fill in additional fields S0-S3 and S7-S8","Fill in additional fields S0-S3 and S9","."]
[null,null,null,null,null,null,null,null,null,null,null,null,"",null,null,null,"",null,null,null,null,null,null,null,null,"",137,"Fill in additional fields S0-S4 and S9","Fill in additional fields S0-S4 and S9","Fill in additional fields S0-S6","Fill in additional fields S0-S6","Fill in additional fields S0-S6","Enter exposure values in fields S0 and S2","Fill in additional fields S0-S6 and S9","Fill in additional fields S0-S6 and S9","Fill in additional fields S0-S3 and S7-S8","Fill in additional fields S0-S3 and S9","."]
[null,null,null,null,null,null,null,null,null,null,null,null,"",null,null,null,"",null,null,null,null,null,null,null,null,"",138,"Fill in additional fields S0-S4 and S9","Fill in additional fields S0-S4 and S9","Fill in additional fields S0-S6","Fill in additional fields S0-S6","Fill in additional fields S0-S6","Enter exposure values in fields S0 and S2","Fill in additional fields S0-S6 and S9","Fill in additional fields S0-S6 and S9","Fill in additional fields S0-S3 and S7-S8","Fill in additional fields S0-S3 and S9","."]
[null,null,null,null,null,null,null,null,null,null,null,null,"",null,null,null,"",null,null,null,null,null,null,null,null,"",139,"Fill in additional fields S0-S4 and S9","Fill in additional fields S0-S4 and S9","Fill in additional fields S0-S6","Fill in additional fields S0-S6","Fill in additional fields S0-S6","Enter exposure values in fields S0 and S2","Fill in additional fields S0-S6 and S9","Fill in additional fields S0-S6 and S9","Fill in additional fields S0-S3 and S7-S8","Fill in additional fields S0-S3 and S9","."]
[null,null,null,null,null,null,null,null,null,null,null,null,"",null,null,null,"",null,null,null,null,null,null,null,null,"",140,"Fill in additional fields S0-S4 and S9","Fill in additional fields S0-S4 and S9","Fill in additional fields S0-S6","Fill in additional fields S0-S6","Fill in additional fields S0-S6","Enter exposure values in fields S0 and S2","Fill in additional fields S0-S6 and S9","Fill in additional fields S0-S6 and S9","Fill in additional fields S0-S3 and S7-S8","Fill in additional fields S0-S3 and S9","."]
[null,null,null,null,null,null,null,null,null,null,null,null,"",null,null,null,"",null,null,null,null,null,null,null,null,"",141,"Fill in additional fields S0-S4 and S9","Fill in additional fields S0-S4 and S9","Fill in additional fields S0-S6","Fill in additional fields S0-S6","Fill in additional fields S0-S6","Enter exposure values in fields S0 and S2","Fill in additional fields S0-S6 and S9","Fill in additional fields S0-S6 and S9","Fill in additional fields S0-S3 and S7-S8","Fill in additional fields S0-S3 and S9","."]
[null,null,null,null,null,null,null,null,null,null,null,null,"",null,null,null,"",null,null,null,null,null,null,null,null,"",142,"Fill in additional fields S0-S4 and S9","Fill in additional fields S0-S4 and S9","Fill in additional fields S0-S6","Fill in additional fields S0-S6","Fill in additional fields S0-S6","Enter exposure values in fields S0 and S2","Fill in additional fields S0-S6 and S9","Fill in additional fields S0-S6 and S9","Fill in additional fields S0-S3 and S7-S8","Fill in additional fields S0-S3 and S9","."]
[null,null,null,null,null,null,null,null,null,null,null,null,"",null,null,null,"",null,null,null,null,null,null,null,null,"",143,"Fill in additional fields S0-S4 and S9","Fill in additional fields S0-S4 and S9","Fill in additional fields S0-S6","Fill in additional fields S0-S6","Fill in additional fields S0-S6","Enter exposure values in fields S0 and S2","Fill in additional fields S0-S6 and S9","Fill in additional fields S0-S6 and S9","Fill in additional fields S0-S3 and S7-S8","Fill in additional fields S0-S3 and S9","."]
[null,null,null,null,null,null,null,null,null,null,null,null,"",null,null,null,"",null,null,null,null,null,null,null,null,"",144,"Fill in additional fields S0-S4 and S9","Fill in additional fields S0-S4 and S9","Fill in additional fields S0-S6","Fill in additional fields S0-S6","Fill in additional fields S0-S6","Enter exposure values in fields S0 and S2","Fill in additional fields S0-S6 and S9","Fill in additional fields S0-S6 and S9","Fill in additional fields S0-S3 and S7-S8","Fill in additional fields S0-S3 and S9","."]
[null,null,null,null,null,null,null,null,null,null,null,null,"",null,null,null,"",null,null,null,null,null,null,null,null,"",145,"Fill in additional fields S0-S4 and S9","Fill in additional fields S0-S4 and S9","Fill in additional fields S0-S6","Fill in additional fields S0-S6","Fill in additional fields S0-S6","Enter exposure values in fields S0 and S2","Fill in additional fields S0-S6 and S9","Fill in additional fields S0-S6 and S9","Fill in additional fields S0-S3 and S7-S8","Fill in additional fields S0-S3 and S9","."]
[null,null,null,null,null,null,null,null,null,null,null,null,"",null,null,null,"",null,null,null,null,null,null,null,null,"",146,"Fill in additional fields S0-S4 and S9","Fill in additional fields S0-S4 and S9","Fill in additional fields S0-S6","Fill in additional fields S0-S6","Fill in additional fields S0-S6","Enter exposure values in fields S0 and S2","Fill in additional fields S0-S6 and S9","Fill in additional fields S0-S6 and S9","Fill in additional fields S0-S3 and S7-S8","Fill in additional fields S0-S3 and S9","."]
[null,null,null,null,null,null,null,null,null,null,null,null,"",null,null,null,"",null,null,null,null,null,null,null,null,"",147,"Fill in additional fields S0-S4 and S9","Fill in additional fields S0-S4 and S9","Fill in additional fields S0-S6","Fill in additional fields S0-S6","Fill in additional fields S0-S6","Enter exposure values in fields S0 and S2","Fill in additional fields S0-S6 and S9","Fill in additional fields S0-S6 and S9","Fill in additional fields S0-S3 and S7-S8","Fill in additional fields S0-S3 and S9","."]
[null,null,null,null,null,null,null,null,null,null,null,null,"",null,null,null,"",null,null,null,null,null,null,null,null,"",148,"Fill in additional fields S0-S4 and S9","Fill in additional fields S0-S4 and S9","Fill in additional fields S0-S6","Fill in additional fields S0-S6","Fill in additional fields S0-S6","Enter exposure values in fields S0 and S2","Fill in additional fields S0-S6 and S9","Fill in additional fields S0-S6 and S9","Fill in additional fields S0-S3 and S7-S8","Fill in additional fields S0-S3 and S9","."]
[null,null,null,null,null,null,null,null,null,null,null,null,"",null,null,null,"",null,null,null,null,null,null,null,null,"",149,"Fill in additional fields S0-S4 and S9","Fill in additional fields S0-S4 and S9","Fill in additional fields S0-S6","Fill in additional fields S0-S6","Fill in additional fields S0-S6","Enter exposure values in fields S0 and S2","Fill in additional fields S0-S6 and S9","Fill in additional fields S0-S6 and S9","Fill in additional fields S0-S3 and S7-S8","Fill in additional fields S0-S3 and S9","."]
[null,null,null,null,null,null,null,null,null,null,null,null,"",null,null,null,"",null,null,null,null,null,null,null,null,"",150,"Fill in additional fields S0-S4 and S9","Fill in additional fields S0-S4 and S9","Fill in additional fields S0-S6","Fill in additional fields S0-S6","Fill in additional fields S0-S6","Enter exposure values in fields S0 and S2","Fill in additional fields S0-S6 and S9","Fill in additional fields S0-S6 and S9","Fill in additional fields S0-S3 and S7-S8","Fill in additional fields S0-S3 and S9","."]
[null,null,null,null,null,null,null,null,null,null,null,null,"",null,null,null,"",null,null,null,null,null,null,null,null,"",151,"Fill in additional fields S0-S4 and S9","Fill in additional fields S0-S4 and S9","Fill in additional fields S0-S6","Fill in additional fields S0-S6","Fill in additional fields S0-S6","Enter exposure values in fields S0 and S2","Fill in additional fields S0-S6 and S9","Fill in additional fields S0-S6 and S9","Fill in additional fields S0-S3 and S7-S8","Fill in additional fields S0-S3 and S9","."]
[null,null,null,null,null,null,null,null,null,null,null,null,"",null,null,null,"",null,null,null,null,null,null,null,null,"",152,"Fill in additional fields S0-S4 and S9","Fill in additional fields S0-S4 and S9","Fill in additional fields S0-S6","Fill in additional fields S0-S6","Fill in additional fields S0-S6","Enter exposure values in fields S0 and S2","Fill in additional fields S0-S6 and S9","Fill in additional fields S0-S6 and S9","Fill in additional fields S0-S3 and S7-S8","Fill in additional fields S0-S3 and S9","."]
[null,null,null,null,null,null,null,null,null,null,null,null,"",null,null,null,"",null,null,null,null,null,null,null,null,"",153,"Fill in additional fields S0-S4 and S9","Fill in additional fields S0-S4 and S9","Fill in additional fields S0-S6","Fill in additional fields S0-S6","Fill in additional fields S0-S6","Enter exposure values in fields S0 and S2","Fill in additional fields S0-S6 and S9","Fill in additional fields S0-S6 and S9","Fill in additional fields S0-S3 and S7-S8","Fill in additional fields S0-S3 and S9","."]
[null,null,null,null,null,null,null,null,null,null,null,null,"",null,null,null,"",null,null,null,null,null,null,null,null,"",154,"Fill in additional fields S0-S4 and S9","Fill in additional fields S0-S4 and S9","Fill in additional fields S0-S6","Fill in additional fields S0-S6","Fill in additional fields S0-S6","Enter exposure values in fields S0 and S2","Fill in additional fields S0-S6 and S9","Fill in additional fields S0-S6 and S9","Fill in additional fields S0-S3 and S7-S8","Fill in additional fields S0-S3 and S9","."]
[null,null,null,null,null,null,null,null,null,null,null,null,"",null,null,null,"",null,null,null,null,null,null,null,null,"",155,"Fill in additional fields S0-S4 and S9","Fill in additional fields S0-S4 and S9","Fill in additional fields S0-S6","Fill in additional fields S0-S6","Fill in additional fields S0-S6","Enter exposure values in fields S0 and S2","Fill in additional fields S0-S6 and S9","Fill in additional fields S0-S6 and S9","Fill in additional fields S0-S3 and S7-S8","Fill in additional fields S0-S3 and S9","."]
[null,null,null,null,null,null,null,null,null,null,null,null,"",null,null,null,"",null,null,null,null,null,null,null,null,"",156,"Fill in additional fields S0-S4 and S9","Fill in additional fields S0-S4 and S9","Fill in additional fields S0-S6","Fill in additional fields S0-S6","Fill in additional fields S0-S6","Enter exposure values in fields S0 and S2","Fill in additional fields S0-S6 and S9","Fill in additional fields S0-S6 and S9","Fill in additional fields S0-S3 and S7-S8","Fill in additional fields S0-S3 and S9","."]
[null,null,null,null,null,null,null,null,null,null,null,null,"",null,null,null,"",null,null,null,null,null,null,null,null,"",157,"Fill in additional fields S0-S4 and S9","Fill in additional fields S0-S4 and S9","Fill in additional fields S0-S6","Fill in additional fields S0-S6","Fill in additional fields S0-S6","Enter exposure values in fields S0 and S2","Fill in additional fields S0-S6 and S9","Fill in additional fields S0-S6 and S9","Fill in additional fields S0-S3 and S7-S8","Fill in additional fields S0-S3 and S9","."]
[null,null,null,null,null,null,null,null,null,null,null,null,"",null,null,null,"",null,null,null,null,null,null,null,null,"",158,"Fill in additional fields S0-S4 and S9","Fill in additional fields S0-S4 and S9","Fill in additional fields S0-S6","Fill in additional fields S0-S6","Fill in additional fields S0-S6","Enter exposure values in fields S0 and S2","Fill in additional fields S0-S6 and S9","Fill in additional fields S0-S6 and S9","Fill in additional fields S0-S3 and S7-S8","Fill in additional fields S0-S3 and S9","."]
[null,null,null,null,null,null,null,null,null,null,null,null,"",null,null,null,"",null,null,null,null,null,null,null,null,"",159,"Fill in additional fields S0-S4 and S9","Fill in additional fields S0-S4 and S9","Fill in additional fields S0-S6","Fill in additional fields S0-S6","Fill in additional fields S0-S6","Enter exposure values in fields S0 and S2","Fill in additional fields S0-S6 and S9","Fill in additional fields S0-S6 and S9","Fill in additional fields S0-S3 and S7-S8","Fill in additional fields S0-S3 and S9","."]
[null,null,null,null,null,null,null,null,null,null,null,null,"",null,null,null,"",null,null,null,null,null,null,null,null,"",160,"Fill in additional fields S0-S4 and S9","Fill in additional fields S0-S4 and S9","Fill in additional fields S0-S6","Fill in additional fields S0-S6","Fill in additional fields S0-S6","Enter exposure values in fields S0 and S2","Fill in additional fields S0-S6 and S9","Fill in additional fields S0-S6 and S9","Fill in additional fields S0-S3 and S7-S8","Fill in additional fields S0-S3 and S9","."]
[null,null,null,null,null,null,null,null,null,null,null,null,"",null,null,null,"",null,null,null,null,null,null,null,null,"",161,"Fill in additional fields S0-S4 and S9","Fill in additional fields S0-S4 and S9","Fill in additional fields S0-S6","Fill in additional fields S0-S6","Fill in additional fields S0-S6","Enter exposure values in fields S0 and S2","Fill in additional fields S0-S6 and S9","Fill in additional fields S0-S6 and S9","Fill in additional fields S0-S3 and S7-S8","Fill in additional fields S0-S3 and S9","."]
[null,null,null,null,null,null,null,null,null,null,null,null,{"$f":"IF(LEN(K166)=0,\"\",HLOOKUP(Z166,$AB$5:$AK$204,AA166,FALSE))","v":""},null,null,null,"",null,null,null,null,null,null,null,null,{"$f":"IFERROR(VLOOKUP(K166,AM:AN,2,FALSE),\"\")","v":""},162,"Fill in additional fields S0-S4 and S9","Fill in additional fields S0-S4 and S9","Fill in additional fields S0-S6","Fill in additional fields S0-S6","Fill in additional fields S0-S6","Enter exposure values in fields S0 and S2","Fill in additional fields S0-S6 and S9","Fill in additional fields S0-S6 and S9","Fill in additional fields S0-S3 and S7-S8","Fill in additional fields S0-S3 and S9","."]
[null,null,null,null,null,null,null,null,null,null,null,null,"",null,null,null,"",null,null,null,null,null,null,null,null,"",163,"Fill in additional fields S0-S4 and S9","Fill in additional fields S0-S4 and S9","Fill in additional fields S0-S6","Fill in additional fields S0-S6","Fill in additional fields S0-S6","Enter exposure values in fields S0 and S2","Fill in additional fields S0-S6 and S9","Fill in additional fields S0-S6 and S9","Fill in additional fields S0-S3 and S7-S8","Fill in additional fields S0-S3 and S9","."]
[null,null,null,null,null,null,null,null,null,null,null,null,"",null,null,null,{"$f":"IFERROR(IF(K168=\"1=Syndicated loan, arranger\",\"1=Official institution\",IF(K168=1,\"1=Official institution\",\"\")),\"\")","v":""},null,null,null,null,null,null,null,null,"",164,"Fill in additional fields S0-S4 and S9","Fill in additional fields S0-S4 and S9","Fill in additional fields S0-S6","Fill in additional fields S0-S6","Fill in additional fields S0-S6","Enter exposure values in fields S0 and S2","Fill in additional fields S0-S6 and S9","Fill in additional fields S0-S6 and S9","Fill in additional fields S0-S3 and S7-S8","Fill in additional fields S0-S3 and S9","."]
[null,null,null,null,null,null,null,null,null,null,null,null,"",null,null,null,"",null,null,null,null,null,null,null,null,"",165,"Fill in additional fields S0-S4 and S9","Fill in additional fields S0-S4 and S9","Fill in additional fields S0-S6","Fill in additional fields S0-S6","Fill in additional fields S0-S6","Enter exposure values in fields S0 and S2","Fill in additional fields S0-S6 and S9","Fill in additional fields S0-S6 and S9","Fill in additional fields S0-S3 and S7-S8","Fill in additional fields S0-S3 and S9","."]
[null,null,null,null,null,null,null,null,null,null,null,null,"",null,null,null,"",null,null,null,null,null,null,null,null,"",166,"Fill in additional fields S0-S4 and S9","Fill in additional fields S0-S4 and S9","Fill in additional fields S0-S6","Fill in additional fields S0-S6","Fill in additional fields S0-S6","Enter exposure values in fields S0 and S2","Fill in additional fields S0-S6 and S9","Fill in additional fields S0-S6 and S9","Fill in additional fields S0-S3 and S7-S8","Fill in additional fields S0-S3 and S9","."]
[null,null,null,null,null,null,null,null,null,null,null,null,"",null,null,null,"",null,null,null,null,null,null,null,null,"",167,"Fill in additional fields S0-S4 and S9","Fill in additional fields S0-S4 and S9","Fill in additional fields S0-S6","Fill in additional fields S0-S6","Fill in additional fields S0-S6","Enter exposure values in fields S0 and S2","Fill in additional fields S0-S6 and S9","Fill in additional fields S0-S6 and S9","Fill in additional fields S0-S3 and S7-S8","Fill in additional fields S0-S3 and S9","."]
[null,null,null,null,null,null,null,null,null,null,null,null,"",null,null,null,"",null,null,null,null,null,null,null,null,"",168,"Fill in additional fields S0-S4 and S9","Fill in additional fields S0-S4 and S9","Fill in additional fields S0-S6","Fill in additional fields S0-S6","Fill in additional fields S0-S6","Enter exposure values in fields S0 and S2","Fill in additional fields S0-S6 and S9","Fill in additional fields S0-S6 and S9","Fill in additional fields S0-S3 and S7-S8","Fill in additional fields S0-S3 and S9","."]
[null,null,null,null,null,null,null,null,null,null,null,null,"",null,null,null,"",null,null,null,null,null,null,null,null,"",169,"Fill in additional fields S0-S4 and S9","Fill in additional fields S0-S4 and S9","Fill in additional fields S0-S6","Fill in additional fields S0-S6","Fill in additional fields S0-S6","Enter exposure values in fields S0 and S2","Fill in additional fields S0-S6 and S9","Fill in additional fields S0-S6 and S9","Fill in additional fields S0-S3 and S7-S8","Fill in additional fields S0-S3 and S9","."]
[null,null,null,null,null,null,null,null,null,null,null,null,"",null,null,null,"",null,null,null,null,null,null,null,null,"",170,"Fill in additional fields S0-S4 and S9","Fill in additional fields S0-S4 and S9","Fill in additional fields S0-S6","Fill in additional fields S0-S6","Fill in additional fields S0-S6","Enter exposure values in fields S0 and S2","Fill in additional fields S0-S6 and S9","Fill in additional fields S0-S6 and S9","Fill in additional fields S0-S3 and S7-S8","Fill in additional fields S0-S3 and S9","."]
[null,null,null,null,null,null,null,null,null,null,null,null,"",null,null,null,"",null,null,null,null,null,null,null,null,"",171,"Fill in additional fields S0-S4 and S9","Fill in additional fields S0-S4 and S9","Fill in additional fields S0-S6","Fill in additional fields S0-S6","Fill in additional fields S0-S6","Enter exposure values in fields S0 and S2","Fill in additional fields S0-S6 and S9","Fill in additional fields S0-S6 and S9","Fill in additional fields S0-S3 and S7-S8","Fill in additional fields S0-S3 and S9","."]
[null,null,null,null,null,null,null,null,null,null,null,null,"",null,null,null,"",null,null,null,null,null,null,null,null,"",172,"Fill in additional fields S0-S4 and S9","Fill in additional fields S0-S4 and S9","Fill in additional fields S0-S6","Fill in additional fields S0-S6","Fill in additional fields S0-S6","Enter exposure values in fields S0 and S2","Fill in additional fields S0-S6 and S9","Fill in additional fields S0-S6 and S9","Fill in additional fields S0-S3 and S7-S8","Fill in additional fields S0-S3 and S9","."]
[null,null,null,null,null,null,null,null,null,null,null,null,"",null,null,null,"",null,null,null,null,null,null,null,null,"",173,"Fill in additional fields S0-S4 and S9","Fill in additional fields S0-S4 and S9","Fill in additional fields S0-S6","Fill in additional fields S0-S6","Fill in additional fields S0-S6","Enter exposure values in fields S0 and S2","Fill in additional fields S0-S6 and S9","Fill in additional fields S0-S6 and S9","Fill in additional fields S0-S3 and S7-S8","Fill in additional fields S0-S3 and S9","."]
[null,null,null,null,null,null,null,null,null,null,null,null,"",null,null,null,"",null,null,null,null,null,null,null,null,"",174,"Fill in additional fields S0-S4 and S9","Fill in additional fields S0-S4 and S9","Fill in additional fields S0-S6","Fill in additional fields S0-S6","Fill in additional fields S0-S6","Enter exposure values in fields S0 and S2","Fill in additional fields S0-S6 and S9","Fill in additional fields S0-S6 and S9","Fill in additional fields S0-S3 and S7-S8","Fill in additional fields S0-S3 and S9","."]
[null,null,null,null,null,null,null,null,null,null,null,null,"",null,null,null,"",null,null,null,null,null,null,null,null,"",175,"Fill in additional fields S0-S4 and S9","Fill in additional fields S0-S4 and S9","Fill in additional fields S0-S6","Fill in additional fields S0-S6","Fill in additional fields S0-S6","Enter exposure values in fields S0 and S2","Fill in additional fields S0-S6 and S9","Fill in additional fields S0-S6 and S9","Fill in additional fields S0-S3 and S7-S8","Fill in additional fields S0-S3 and S9","."]
[null,null,null,null,null,null,null,null,null,null,null,null,"",null,null,null,"",null,null,null,null,null,null,null,null,"",176,"Fill in additional fields S0-S4 and S9","Fill in additional fields S0-S4 and S9","Fill in additional fields S0-S6","Fill in additional fields S0-S6","Fill in additional fields S0-S6","Enter exposure values in fields S0 and S2","Fill in additional fields S0-S6 and S9","Fill in additional fields S0-S6 and S9","Fill in additional fields S0-S3 and S7-S8","Fill in additional fields S0-S3 and S9","."]
[null,null,null,null,null,null,null,null,null,null,null,null,"",null,null,null,"",null,null,null,null,null,null,null,null,"",177,"Fill in additional fields S0-S4 and S9","Fill in additional fields S0-S4 and S9","Fill in additional fields S0-S6","Fill in additional fields S0-S6","Fill in additional fields S0-S6","Enter exposure values in fields S0 and S2","Fill in additional fields S0-S6 and S9","Fill in additional fields S0-S6 and S9","Fill in additional fields S0-S3 and S7-S8","Fill in additional fields S0-S3 and S9","."]
[null,null,null,null,null,null,null,null,null,null,null,null,"",null,null,null,"",null,null,null,null,null,null,null,null,"",178,"Fill in additional fields S0-S4 and S9","Fill in additional fields S0-S4 and S9","Fill in additional fields S0-S6","Fill in additional fields S0-S6","Fill in additional fields S0-S6","Enter exposure values in fields S0 and S2","Fill in additional fields S0-S6 and S9","Fill in additional fields S0-S6 and S9","Fill in additional fields S0-S3 and S7-S8","Fill in additional fields S0-S3 and S9","."]
[null,null,null,null,null,null,null,null,null,null,null,null,"",null,null,null,"",null,null,null,null,null,null,null,null,"",179,"Fill in additional fields S0-S4 and S9","Fill in additional fields S0-S4 and S9","Fill in additional fields S0-S6","Fill in additional fields S0-S6","Fill in additional fields S0-S6","Enter exposure values in fields S0 and S2","Fill in additional fields S0-S6 and S9","Fill in additional fields S0-S6 and S9","Fill in additional fields S0-S3 and S7-S8","Fill in additional fields S0-S3 and S9","."]
[null,null,null,null,null,null,null,null,null,null,null,null,"",null,null,null,"",null,null,null,null,null,null,null,null,"",180,"Fill in additional fields S0-S4 and S9","Fill in additional fields S0-S4 and S9","Fill in additional fields S0-S6","Fill in additional fields S0-S6","Fill in additional fields S0-S6","Enter exposure values in fields S0 and S2","Fill in additional fields S0-S6 and S9","Fill in additional fields S0-S6 and S9","Fill in additional fields S0-S3 and S7-S8","Fill in additional fields S0-S3 and S9",".","1=Syndicated loan, arranger",{"$f":"VALUE(LEFT(AM184,1))","v":1}]
[null,null,null,null,null,null,null,null,null,null,null,null,"",null,null,null,"",null,null,null,null,null,null,null,null,"",181,"Fill in additional fields S0-S4 and S9","Fill in additional fields S0-S4 and S9","Fill in additional fields S0-S6","Fill in additional fields S0-S6","Fill in additional fields S0-S6","Enter exposure values in fields S0 and S2","Fill in additional fields S0-S6 and S9","Fill in additional fields S0-S6 and S9","Fill in additional fields S0-S3 and S7-S8","Fill in additional fields S0-S3 and S9",".","2=Syndicated loan, participant",{"$f":"VALUE(LEFT(AM185,1))","v":2}]
[null,null,null,null,null,null,null,null,null,null,null,null,"",null,null,null,"",null,null,null,null,null,null,null,null,"",182,"Fill in additional fields S0-S4 and S9","Fill in additional fields S0-S4 and S9","Fill in additional fields S0-S6","Fill in additional fields S0-S6","Fill in additional fields S0-S6","Enter exposure values in fields S0 and S2","Fill in additional fields S0-S6 and S9","Fill in additional fields S0-S6 and S9","Fill in additional fields S0-S3 and S7-S8","Fill in additional fields S0-S3 and S9",".","3=Common shares in flat collective investment vehicle",3]
[null,null,null,null,null,null,null,null,null,null,null,null,"",null,null,null,"",null,null,null,null,null,null,null,null,"",183,"Fill in additional fields S0-S4 and S9","Fill in additional fields S0-S4 and S9","Fill in additional fields S0-S6","Fill in additional fields S0-S6","Fill in additional fields S0-S6","Enter exposure values in fields S0 and S2","Fill in additional fields S0-S6 and S9","Fill in additional fields S0-S6 and S9","Fill in additional fields S0-S3 and S7-S8","Fill in additional fields S0-S3 and S9",".","4=Shares in the riskiest tranche of structured collective investment vehicle, first-loss shares and others (e.g. lock-up shares)",4]
[null,null,null,null,null,null,null,null,null,null,null,null,"",null,null,null,"",null,null,null,null,null,null,null,null,"",184,"Fill in additional fields S0-S4 and S9","Fill in additional fields S0-S4 and S9","Fill in additional fields S0-S6","Fill in additional fields S0-S6","Fill in additional fields S0-S6","Enter exposure values in fields S0 and S2","Fill in additional fields S0-S6 and S9","Fill in additional fields S0-S6 and S9","Fill in additional fields S0-S3 and S7-S8","Fill in additional fields S0-S3 and S9",".","5=Shares in the mezzanine/senior tranche of structured CIV",5]
[null,null,null,null,null,null,null,null,null,null,null,null,"",null,null,null,"",null,null,null,null,null,null,null,null,"",185,"Fill in additional fields S0-S4 and S9","Fill in additional fields S0-S4 and S9","Fill in additional fields S0-S6","Fill in additional fields S0-S6","Fill in additional fields S0-S6","Enter exposure values in fields S0 and S2","Fill in additional fields S0-S6 and S9","Fill in additional fields S0-S6 and S9","Fill in additional fields S0-S3 and S7-S8","Fill in additional fields S0-S3 and S9",".","6=Guarantee/insurance ",6]
[null,null,null,null,null,null,null,null,null,null,null,null,"",null,null,null,"",null,null,null,null,null,null,null,null,"",186,"Fill in additional fields S0-S4 and S9","Fill in additional fields S0-S4 and S9","Fill in additional fields S0-S6","Fill in additional fields S0-S6","Fill in additional fields S0-S6","Enter exposure values in fields S0 and S2","Fill in additional fields S0-S6 and S9","Fill in additional fields S0-S6 and S9","Fill in additional fields S0-S3 and S7-S8","Fill in additional fields S0-S3 and S9",".","7=Direct investment in companies/SPVs, equity",7]
[null,null,null,null,null,null,null,null,null,null,null,null,"",null,null,null,"",null,null,null,null,null,null,null,null,"",187,"Fill in additional fields S0-S4 and S9","Fill in additional fields S0-S4 and S9","Fill in additional fields S0-S6","Fill in additional fields S0-S6","Fill in additional fields S0-S6","Enter exposure values in fields S0 and S2","Fill in additional fields S0-S6 and S9","Fill in additional fields S0-S6 and S9","Fill in additional fields S0-S3 and S7-S8","Fill in additional fields S0-S3 and S9",".","8=Direct investment in companies/SPVs, mezzanine/senior debt",8]
[null,null,null,null,null,null,null,null,null,null,null,null,"",null,null,null,"",null,null,null,null,null,null,null,null,"",188,"Fill in additional fields S0-S4 and S9","Fill in additional fields S0-S4 and S9","Fill in additional fields S0-S6","Fill in additional fields S0-S6","Fill in additional fields S0-S6","Enter exposure values in fields S0 and S2","Fill in additional fields S0-S6 and S9","Fill in additional fields S0-S6 and S9","Fill in additional fields S0-S3 and S7-S8","Fill in additional fields S0-S3 and S9",".","9=Credit lines",{"$f":"VALUE(LEFT(AM192,1))","v":9}]
[null,null,null,null,null,null,null,null,null,null,null,null,"",null,null,null,"",null,null,null,null,null,null,null,null,"",189,"Fill in additional fields S0-S4 and S9","Fill in additional fields S0-S4 and S9","Fill in additional fields S0-S6","Fill in additional fields S0-S6","Fill in additional fields S0-S6","Enter exposure values in fields S0 and S2","Fill in additional fields S0-S6 and S9","Fill in additional fields S0-S6 and S9","Fill in additional fields S0-S3 and S7-S8","Fill in additional fields S0-S3 and S9",".","10=Standard grants & loans in simple co-financing arrangements",{"$f":"VALUE(LEFT(AM193,2))","v":10}]
[null,null,null,null,null,null,null,null,null,null,null,null,"",null,null,null,"",null,null,null,null,null,null,null,null,"",190,"Fill in additional fields S0-S4 and S9","Fill in additional fields S0-S4 and S9","Fill in additional fields S0-S6","Fill in additional fields S0-S6","Fill in additional fields S0-S6","Enter exposure values in fields S0 and S2","Fill in additional fields S0-S6 and S9","Fill in additional fields S0-S6 and S9","Fill in additional fields S0-S3 and S7-S8","Fill in additional fields S0-S3 and S9",".",1,1]
[null,null,null,null,null,null,null,null,null,null,null,null,"",null,null,null,"",null,null,null,null,null,null,null,null,"",191,"Fill in additional fields S0-S4 and S9","Fill in additional fields S0-S4 and S9","Fill in additional fields S0-S6","Fill in additional fields S0-S6","Fill in additional fields S0-S6","Enter exposure values in fields S0 and S2","Fill in additional fields S0-S6 and S9","Fill in additional fields S0-S6 and S9","Fill in additional fields S0-S3 and S7-S8","Fill in additional fields S0-S3 and S9",".",2,2]
[null,null,null,null,null,null,null,null,null,null,null,null,"",null,null,null,"",null,null,null,null,null,null,null,null,"",192,"Fill in additional fields S0-S4 and S9","Fill in additional fields S0-S4 and S9","Fill in additional fields S0-S6","Fill in additional fields S0-S6","Fill in additional fields S0-S6","Enter exposure values in fields S0 and S2","Fill in additional fields S0-S6 and S9","Fill in additional fields S0-S6 and S9","Fill in additional fields S0-S3 and S7-S8","Fill in additional fields S0-S3 and S9",".",3,3]
[null,null,null,null,null,null,null,null,null,null,null,null,"",null,null,null,"",null,null,null,null,null,null,null,null,"",193,"Fill in additional fields S0-S4 and S9","Fill in additional fields S0-S4 and S9","Fill in additional fields S0-S6","Fill in additional fields S0-S6","Fill in additional fields S0-S6","Enter exposure values in fields S0 and S2","Fill in additional fields S0-S6 and S9","Fill in additional fields S0-S6 and S9","Fill in additional fields S0-S3 and S7-S8","Fill in additional fields S0-S3 and S9",".",4,4]
[null,null,null,null,null,null,null,null,null,null,null,null,{"$f":"IF(LEN(K198)=0,\"\",HLOOKUP(Z198,$AB$5:$AK$204,AA198,FALSE))","v":""},null,null,null,"",null,null,null,null,null,null,null,null,{"$f":"IFERROR(VLOOKUP(K198,AM:AN,2,FALSE),\"\")","v":""},194,"Fill in additional fields S0-S4 and S9","Fill in additional fields S0-S4 and S9","Fill in additional fields S0-S6","Fill in additional fields S0-S6","Fill in additional fields S0-S6","Enter exposure values in fields S0 and S2","Fill in additional fields S0-S6 and S9","Fill in additional fields S0-S6 and S9","Fill in additional fields S0-S3 and S7-S8","Fill in additional fields S0-S3 and S9",".",5,5]
[null,null,null,null,null,null,null,null,null,null,null,null,"",null,null,null,"",null,null,null,null,null,null,null,null,"",{"$f":"AA198+1","v":195},{"$f":"IF(N199>O199,\"S0 cannot be higher than S2\",IF(COUNTA(N199:P199)=0,\"Fill in additional fields S0-S4 and S9\",IFERROR(IF(VALUE(LEFT(Q199,1))=1,P199/2+(N199/O199)*(P199/2),IF(VALUE(LEFT(Q199,1))=2,\"impossible combination\",\"check not available\")),\"\")))","v":"Fill in additional fields S0-S4 and S9"},{"$f":"IF(N199>O199,\"S0 cannot be higher than S2\",IF(COUNTA(N199:P199)=0,\"Fill in additional fields S0-S4 and S9\",IFERROR(IF(VALUE(LEFT(Q199,1))=1,(N199/O199)*(P199/2),IF(VALUE(LEFT(Q199,1))=2,(N199/O199)*(P199),\"check not available\")),\"\")))","v":"Fill in additional fields S0-S4 and S9"},{"$f":"IF(N199>O199,\"S0 cannot be higher than S2\",IF(COUNTA(R199:S199)=0,\"Fill in additional fields S0-S6\",(P199/2)*(N199/O199)+(P199/2)*(1/SUM(R199:S199))))","v":"Fill in additional fields S0-S6"},{"$f":"IF(N199>O199,\"S0 cannot be higher than S2\",IFERROR(IF(COUNTA(R199:S199)=0,\"Fill in additional fields S0-S6\",P199/2)*(N199/O199)+(P199/2)*(1/R199),\"Fill in additional fields S0-S6\"))","v":"Fill in additional fields S0-S6"},{"$f":"IF(N199>O199,\"S0 cannot be higher than S2\",IFERROR(IF(COUNTA(R199:S199)=0,\"Fill in additional fields S0-S6\",IF(R199=0,P199/2*(N199/O199)+P199/2*(1/S199),(P199/2)*(N199/O199))),\"Fill in additional fields S0-S6\"))","v":"Fill in additional fields S0-S6"},{"$f":"IF(N199>O199,\"S0 cannot be higher than S2\",IF(COUNTA(N199:P199)=0,\"Enter exposure values in fields S0 and S2\",(P199)*(N199/O199)))","v":"Enter exposure values in fields S0 and S2"},{"$f":"IF(N199>O199,\"S0 cannot be higher than S2\",IFERROR(IF(COUNTA(R199:S199)=0,\"Fill in additional fields S0-S6 and S9\",P199/2)*(N199/O199)+(P199/2)*(1/R199),\"Fill in additional fields S0-S6 and S9\"))","v":"Fill in additional fields S0-S6 and S9"},{"$f":"IF(N199>O199,\"S0 cannot be higher than S2\",IFERROR(IF(COUNTA(R199:S199)=0,\"Fill in additional fields S0-S6 and S9\",IF(R199=0,P199/2*(N199/O199)+P199/2*(1/S199),(P199/2)*(N199/O199))),\"Fill in additional fields S0-S6 and S9\"))","v":"Fill in additional fields S0-S6 and S9"},{"$f":"IF(N199>O199,\"S0 cannot be higher than S2\",IF(COUNTA(N199:P199)=0,\"Fill in additional fields S0-S3 and S7-S8\",(N199/O199)*((P199)+T199*U199)))","v":"Fill in additional fields S0-S3 and S7-S8"},{"$f":"IF(N199>O199,\"S0 cannot be higher than S2\",IF(COUNTA(N199:P199)=0,\"Fill in additional fields S0-S3 and S9\",(P199)*(N199/O199)))","v":"Fill in additional fields S0-S3 and S9"},".",6,6]
[null,null,null,null,null,null,null,null,null,null,null,null,"",null,null,null,"",null,null,null,null,null,null,null,null,"",{"$f":"AA199+1","v":196},{"$f":"IF(N200>O200,\"S0 cannot be higher than S2\",IF(COUNTA(N200:P200)=0,\"Fill in additional fields S0-S4 and S9\",IFERROR(IF(VALUE(LEFT(Q200,1))=1,P200/2+(N200/O200)*(P200/2),IF(VALUE(LEFT(Q200,1))=2,\"impossible combination\",\"check not available\")),\"\")))","v":"Fill in additional fields S0-S4 and S9"},{"$f":"IF(N200>O200,\"S0 cannot be higher than S2\",IF(COUNTA(N200:P200)=0,\"Fill in additional fields S0-S4 and S9\",IFERROR(IF(VALUE(LEFT(Q200,1))=1,(N200/O200)*(P200/2),IF(VALUE(LEFT(Q200,1))=2,(N200/O200)*(P200),\"check not available\")),\"\")))","v":"Fill in additional fields S0-S4 and S9"},{"$f":"IF(N200>O200,\"S0 cannot be higher than S2\",IF(COUNTA(R200:S200)=0,\"Fill in additional fields S0-S6\",(P200/2)*(N200/O200)+(P200/2)*(1/SUM(R200:S200))))","v":"Fill in additional fields S0-S6"},{"$f":"IF(N200>O200,\"S0 cannot be higher than S2\",IFERROR(IF(COUNTA(R200:S200)=0,\"Fill in additional fields S0-S6\",P200/2)*(N200/O200)+(P200/2)*(1/R200),\"Fill in additional fields S0-S6\"))","v":"Fill in additional fields S0-S6"},{"$f":"IF(N200>O200,\"S0 cannot be higher than S2\",IFERROR(IF(COUNTA(R200:S200)=0,\"Fill in additional fields S0-S6\",IF(R200=0,P200/2*(N200/O200)+P200/2*(1/S200),(P200/2)*(N200/O200))),\"Fill in additional fields S0-S6\"))","v":"Fill in additional fields S0-S6"},{"$f":"IF(N200>O200,\"S0 cannot be higher than S2\",IF(COUNTA(N200:P200)=0,\"Enter exposure values in fields S0 and S2\",(P200)*(N200/O200)))","v":"Enter exposure values in fields S0 and S2"},{"$f":"IF(N200>O200,\"S0 cannot be higher than S2\",IFERROR(IF(COUNTA(R200:S200)=0,\"Fill in additional fields S0-S6 and S9\",P200/2)*(N200/O200)+(P200/2)*(1/R200),\"Fill in additional fields S0-S6 and S9\"))","v":"Fill in additional fields S0-S6 and S9"},{"$f":"IF(N200>O200,\"S0 cannot be higher than S2\",IFERROR(IF(COUNTA(R200:S200)=0,\"Fill in additional fields S0-S6 and S9\",IF(R200=0,P200/2*(N200/O200)+P200/2*(1/S200),(P200/2)*(N200/O200))),\"Fill in additional fields S0-S6 and S9\"))","v":"Fill in additional fields S0-S6 and S9"},{"$f":"IF(N200>O200,\"S0 cannot be higher than S2\",IF(COUNTA(N200:P200)=0,\"Fill in additional fields S0-S3 and S7-S8\",(N200/O200)*((P200)+T200*U200)))","v":"Fill in additional fields S0-S3 and S7-S8"},{"$f":"IF(N200>O200,\"S0 cannot be higher than S2\",IF(COUNTA(N200:P200)=0,\"Fill in additional fields S0-S3 and S9\",(P200)*(N200/O200)))","v":"Fill in additional fields S0-S3 and S9"},".",7,7]
[null,null,null,null,null,null,null,null,null,null,null,null,"",null,null,null,"",null,null,null,null,null,null,null,null,"",{"$f":"AA200+1","v":197},{"$f":"IF(N201>O201,\"S0 cannot be higher than S2\",IF(COUNTA(N201:P201)=0,\"Fill in additional fields S0-S4 and S9\",IFERROR(IF(VALUE(LEFT(Q201,1))=1,P201/2+(N201/O201)*(P201/2),IF(VALUE(LEFT(Q201,1))=2,\"impossible combination\",\"check not available\")),\"\")))","v":"Fill in additional fields S0-S4 and S9"},{"$f":"IF(N201>O201,\"S0 cannot be higher than S2\",IF(COUNTA(N201:P201)=0,\"Fill in additional fields S0-S4 and S9\",IFERROR(IF(VALUE(LEFT(Q201,1))=1,(N201/O201)*(P201/2),IF(VALUE(LEFT(Q201,1))=2,(N201/O201)*(P201),\"check not available\")),\"\")))","v":"Fill in additional fields S0-S4 and S9"},{"$f":"IF(N201>O201,\"S0 cannot be higher than S2\",IF(COUNTA(R201:S201)=0,\"Fill in additional fields S0-S6\",(P201/2)*(N201/O201)+(P201/2)*(1/SUM(R201:S201))))","v":"Fill in additional fields S0-S6"},{"$f":"IF(N201>O201,\"S0 cannot be higher than S2\",IFERROR(IF(COUNTA(R201:S201)=0,\"Fill in additional fields S0-S6\",P201/2)*(N201/O201)+(P201/2)*(1/R201),\"Fill in additional fields S0-S6\"))","v":"Fill in additional fields S0-S6"},{"$f":"IF(N201>O201,\"S0 cannot be higher than S2\",IFERROR(IF(COUNTA(R201:S201)=0,\"Fill in additional fields S0-S6\",IF(R201=0,P201/2*(N201/O201)+P201/2*(1/S201),(P201/2)*(N201/O201))),\"Fill in additional fields S0-S6\"))","v":"Fill in additional fields S0-S6"},{"$f":"IF(N201>O201,\"S0 cannot be higher than S2\",IF(COUNTA(N201:P201)=0,\"Enter exposure values in fields S0 and S2\",(P201)*(N201/O201)))","v":"Enter exposure values in fields S0 and S2"},{"$f":"IF(N201>O201,\"S0 cannot be higher than S2\",IFERROR(IF(COUNTA(R201:S201)=0,\"Fill in additional fields S0-S6 and S9\",P201/2)*(N201/O201)+(P201/2)*(1/R201),\"Fill in additional fields S0-S6 and S9\"))","v":"Fill in additional fields S0-S6 and S9"},{"$f":"IF(N201>O201,\"S0 cannot be higher than S2\",IFERROR(IF(COUNTA(R201:S201)=0,\"Fill in additional fields S0-S6 and S9\",IF(R201=0,P201/2*(N201/O201)+P201/2*(1/S201),(P201/2)*(N201/O201))),\"Fill in additional fields S0-S6 and S9\"))","v":"Fill in additional fields S0-S6 and S9"},{"$f":"IF(N201>O201,\"S0 cannot be higher than S2\",IF(COUNTA(N201:P201)=0,\"Fill in additional fields S0-S3 and S7-S8\",(N201/O201)*((P201)+T201*U201)))","v":"Fill in additional fields S0-S3 and S7-S8"},{"$f":"IF(N201>O201,\"S0 cannot be higher than S2\",IF(COUNTA(N201:P201)=0,\"Fill in additional fields S0-S3 and S9\",(P201)*(N201/O201)))","v":"Fill in additional fields S0-S3 and S9"},".",8,8]
[null,null,null,null,null,null,null,null,null,null,null,null,"",null,null,null,"",null,null,null,null,null,null,null,null,"",{"$f":"AA201+1","v":198},{"$f":"IF(N202>O202,\"S0 cannot be higher than S2\",IF(COUNTA(N202:P202)=0,\"Fill in additional fields S0-S4 and S9\",IFERROR(IF(VALUE(LEFT(Q202,1))=1,P202/2+(N202/O202)*(P202/2),IF(VALUE(LEFT(Q202,1))=2,\"impossible combination\",\"check not available\")),\"\")))","v":"Fill in additional fields S0-S4 and S9"},{"$f":"IF(N202>O202,\"S0 cannot be higher than S2\",IF(COUNTA(N202:P202)=0,\"Fill in additional fields S0-S4 and S9\",IFERROR(IF(VALUE(LEFT(Q202,1))=1,(N202/O202)*(P202/2),IF(VALUE(LEFT(Q202,1))=2,(N202/O202)*(P202),\"check not available\")),\"\")))","v":"Fill in additional fields S0-S4 and S9"},{"$f":"IF(N202>O202,\"S0 cannot be higher than S2\",IF(COUNTA(R202:S202)=0,\"Fill in additional fields S0-S6\",(P202/2)*(N202/O202)+(P202/2)*(1/SUM(R202:S202))))","v":"Fill in additional fields S0-S6"},{"$f":"IF(N202>O202,\"S0 cannot be higher than S2\",IFERROR(IF(COUNTA(R202:S202)=0,\"Fill in additional fields S0-S6\",P202/2)*(N202/O202)+(P202/2)*(1/R202),\"Fill in additional fields S0-S6\"))","v":"Fill in additional fields S0-S6"},{"$f":"IF(N202>O202,\"S0 cannot be higher than S2\",IFERROR(IF(COUNTA(R202:S202)=0,\"Fill in additional fields S0-S6\",IF(R202=0,P202/2*(N202/O202)+P202/2*(1/S202),(P202/2)*(N202/O202))),\"Fill in additional fields S0-S6\"))","v":"Fill in additional fields S0-S6"},{"$f":"IF(N202>O202,\"S0 cannot be higher than S2\",IF(COUNTA(N202:P202)=0,\"Enter exposure values in fields S0 and S2\",(P202)*(N202/O202)))","v":"Enter exposure values in fields S0 and S2"},{"$f":"IF(N202>O202,\"S0 cannot be higher than S2\",IFERROR(IF(COUNTA(R202:S202)=0,\"Fill in additional fields S0-S6 and S9\",P202/2)*(N202/O202)+(P202/2)*(1/R202),\"Fill in additional fields S0-S6 and S9\"))","v":"Fill in additional fields S0-S6 and S9"},{"$f":"IF(N202>O202,\"S0 cannot be higher than S2\",IFERROR(IF(COUNTA(R202:S202)=0,\"Fill in additional fields S0-S6 and S9\",IF(R202=0,P202/2*(N202/O202)+P202/2*(1/S202),(P202/2)*(N202/O202))),\"Fill in additional fields S0-S6 and S9\"))","v":"Fill in additional fields S0-S6 and S9"},{"$f":"IF(N202>O202,\"S0 cannot be higher than S2\",IF(COUNTA(N202:P202)=0,\"Fill in additional fields S0-S3 and S7-S8\",(N202/O202)*((P202)+T202*U202)))","v":"Fill in additional fields S0-S3 and S7-S8"},{"$f":"IF(N202>O202,\"S0 cannot be higher than S2\",IF(COUNTA(N202:P202)=0,\"Fill in additional fields S0-S3 and S9\",(P202)*(N202/O202)))","v":"Fill in additional fields S0-S3 and S9"},".",9,9]
[null,null,null,null,null,null,null,null,null,null,null,null,"",null,null,null,"",null,null,null,null,null,null,null,null,"",{"$f":"AA202+1","v":199},{"$f":"IF(N203>O203,\"S0 cannot be higher than S2\",IF(COUNTA(N203:P203)=0,\"Fill in additional fields S0-S4 and S9\",IFERROR(IF(VALUE(LEFT(Q203,1))=1,P203/2+(N203/O203)*(P203/2),IF(VALUE(LEFT(Q203,1))=2,\"impossible combination\",\"check not available\")),\"\")))","v":"Fill in additional fields S0-S4 and S9"},{"$f":"IF(N203>O203,\"S0 cannot be higher than S2\",IF(COUNTA(N203:P203)=0,\"Fill in additional fields S0-S4 and S9\",IFERROR(IF(VALUE(LEFT(Q203,1))=1,(N203/O203)*(P203/2),IF(VALUE(LEFT(Q203,1))=2,(N203/O203)*(P203),\"check not available\")),\"\")))","v":"Fill in additional fields S0-S4 and S9"},{"$f":"IF(N203>O203,\"S0 cannot be higher than S2\",IF(COUNTA(R203:S203)=0,\"Fill in additional fields S0-S6\",(P203/2)*(N203/O203)+(P203/2)*(1/SUM(R203:S203))))","v":"Fill in additional fields S0-S6"},{"$f":"IF(N203>O203,\"S0 cannot be higher than S2\",IFERROR(IF(COUNTA(R203:S203)=0,\"Fill in additional fields S0-S6\",P203/2)*(N203/O203)+(P203/2)*(1/R203),\"Fill in additional fields S0-S6\"))","v":"Fill in additional fields S0-S6"},{"$f":"IF(N203>O203,\"S0 cannot be higher than S2\",IFERROR(IF(COUNTA(R203:S203)=0,\"Fill in additional fields S0-S6\",IF(R203=0,P203/2*(N203/O203)+P203/2*(1/S203),(P203/2)*(N203/O203))),\"Fill in additional fields S0-S6\"))","v":"Fill in additional fields S0-S6"},{"$f":"IF(N203>O203,\"S0 cannot be higher than S2\",IF(COUNTA(N203:P203)=0,\"Enter exposure values in fields S0 and S2\",(P203)*(N203/O203)))","v":"Enter exposure values in fields S0 and S2"},{"$f":"IF(N203>O203,\"S0 cannot be higher than S2\",IFERROR(IF(COUNTA(R203:S203)=0,\"Fill in additional fields S0-S6 and S9\",P203/2)*(N203/O203)+(P203/2)*(1/R203),\"Fill in additional fields S0-S6 and S9\"))","v":"Fill in additional fields S0-S6 and S9"},{"$f":"IF(N203>O203,\"S0 cannot be higher than S2\",IFERROR(IF(COUNTA(R203:S203)=0,\"Fill in additional fields S0-S6 and S9\",IF(R203=0,P203/2*(N203/O203)+P203/2*(1/S203),(P203/2)*(N203/O203))),\"Fill in additional fields S0-S6 and S9\"))","v":"Fill in additional fields S0-S6 and S9"},{"$f":"IF(N203>O203,\"S0 cannot be higher than S2\",IF(COUNTA(N203:P203)=0,\"Fill in additional fields S0-S3 and S7-S8\",(N203/O203)*((P203)+T203*U203)))","v":"Fill in additional fields S0-S3 and S7-S8"},{"$f":"IF(N203>O203,\"S0 cannot be higher than S2\",IF(COUNTA(N203:P203)=0,\"Fill in additional fields S0-S3 and S9\",(P203)*(N203/O203)))","v":"Fill in additional fields S0-S3 and S9"},".",10,10]
["…","…","…","…","…","…","…","…","…","…","…","…","…","…","…","…","…","…","…","…","…","…","…"]

{"sheet":"channel_codes","index":10,"n_rows":438,"n_cols":6,"rows_kept":438,"cut":false,"hidden":true,"merged":[]}
["code","Acronym e","code name e","Acronym f","code name f","Parent code"]
[10000," ","Public Sector Institutions"," ","Institutions du secteur public",10000]
[11000," ","Donor Government"," ","Gouvernement du donneur",10000]
[11001," ","Central Government"," ","Gouvernment central",11000]
[11002," ","Local Government"," ","Gouvernment local",11000]
[11003," ","Public corporations"," ","Entreprise publique",11000]
[11004," ","Other public entities in donor country"," ","Autres entité publique dans le pays donneur",11000]
[12000," ","Recipient Government"," ","Gouvernement du bénéficiaire",10000]
[12001," ","Central Government"," ","Gouvernment central",12000]
[12002," ","Local Government"," ","Gouvernment local",12000]
[12003," ","Public corporations"," ","Entreprise publique",12000]
[12004," ","Other public entities in recipient country"," ","Autres entité publique dans le pays bénéficiaire",12000]
[13000," ","Third Country Government (Delegated co-operation)"," ","Gouvernement tiers (coopération déléguée)",10000]
[20000," ","Non-Governmental Organisation (NGO) and Civil Society"," ","Organisations non gouvernementales (ONG) et société civile",20000]
[21000," ","International NGO"," ","ONG internationales",20000]
[21001,"AGID","Association of Geoscientists for International Development ","AGID","Association de géoscientifiques pour le développement international",21000]
[21005,"CUTS","Consumer Unity and Trust Society International ","CUTS","Consumer Unity and Trust Society International",21000]
[21007,"ELCI","Environmental Liaison Centre International ","CILE","Centre international de liaison pour l’environnement",21000]
[21011,"GCE","Global Campaign for Education ","CME","Campagne mondiale pour l’éducation",21000]
[21013,"HAI","Health Action International ","HAI","Health Action International ",21000]
[21016,"ICRC","International Committee of the Red Cross ","CICR","Comité international de la Croix-Rouge ",21000]
[21018,"IFRCRCS","International Federation of Red Cross and Red Crescent Societies ","FISCRCR","Fédération internationale des Sociétés de la Croix-Rouge et du Croissant-Rouge ",21000]
[21020," ","International HIV/AIDS Alliance "," ","International HIV/AIDS Alliance",21000]
[21022,"INAFI","International Network for Alternative Financial Institutions ","INAFI","Réseau international d’institutions financières",21000]
[21023,"IPPF","International Planned Parenthood Federation ","IPPF","Fédération internationale pour le planning familial",21000]
[21024,"IPS","Inter Press Service, International Association ","IPS","Inter Press Service, International Association",21000]
[21029,"MSF","Doctors Without Borders","MSF","Médecins Sans Frontières",21000]
[21031,"PANOS","PANOS Institute ","PANOS","Institut PANOS",21000]
[21032,"PSI","Population Services International ","PSI","Organisation internationale pour les services en matière de population",21000]
[21034,"UNION","International Union Against Tuberculosis and Lung Disease ","UNION","Union Internationale Contre la Tuberculose et les Maladies Respiratoires ",21000]
[21036,"WUS","World University Service ","EUM","Entraide universitaire mondiale",21000]
[21038," ","International Alert"," ","International Alert",21000]
[21041,"SID","Society for International Development","SDI","Société pour le développement international",21000]
[21042,"Interpeace","International Peacebuilding Alliance","Interpeace","Alliance internationale pour la consolidation de la paix",21000]
[21044,"ICCIDD","International Council for the Control of Iodine Deficiency Disorders","ICCIDD","Conseil international pour la lutte contre les troubles dus à une carence en iode",21000]
[21045,"AMREF","African Medical and Research Foundation ","AMREF","Fondation africaine pour la médecine et la recherche",21000]
[21046,"ACORD","Agency for Cooperation and Research in Development ","ACORD","Association de Coopération et de Recherche pour le Développement",21000]
[21053," ","IPAS-Protecting Women’s Health, Advancing Women’s Reproductive Rights"," ","IPAS-Protecting Women's Health, Advancing Women's Reproductive Rights",21000]
[21054,"LPI","Life and Peace Institute","IVP","Institut Vie et Paix",21000]
[21057,"ICTJ","International Centre for Transitional Justice","ICTJ","Centre International pour la Justice Transitionnelle",21000]
[21061,"IRCT","International Rehabilitation Council for Torture Victims","IRCT","Conseil international de réhabilitation pour les victimes de torture",21000]
[21062,"TNC","The Nature Conservancy","TNC","The Nature Conservancy",21000]
[21063,"CI","Conservation International"," "," ",21000]
[21064,"CHAI","Clinton Health Access Initiative, Inc.","CHAI","Initiative Clinton pour l'accès à la santé",21000]
[21501,"OXFAM-I","OXFAM International"," "," ",21000]
[21502," ","World Vision"," "," ",21000]
[21503,"FHI360","Family Health International 360"," "," ",21000]
[21504,"IRD","International Relief and Development"," "," ",21000]
[21505," ","Save the Children"," "," ",21000]
[21506,"IRC","International Rescue Committee"," "," ",21000]
[21507,"PACT","Pact World"," "," ",21000]
[21508,"SEforALL","Sustainable Energy for All","SEforALL","Sustainable Energy for All",21000]
[21509,"AC","AmplifyChange","AC","AmplifyChange",21000]
[47035,"ENDA","Environmental Development Action in the Third World ","ENDA","Environnement et développement du Tiers-monde",21000]
[22000," ","Donor country-based NGO"," ","ONG basée dans un pays donneur",20000]
[21006," ","Development Gateway Foundation "," ","Development Gateway Foundation",22000]
[21008,"Eurostep","Eurostep ","Eurostep","Eurostep",22000]
[21014,"HURIDOCS","Human Rights Information and Documentation Systems ","HURIDOCS","Systèmes d’Information et de Documentation sur les Droits de l’Homme",22000]
[21015,"ICRA","International Catholic Rural Association ","ICRA","Association internationale rurale catholique",22000]
[21019,"IFS","International Federation of Settlements and Neighbourhood Centres ","IFS","Fédération internationale des centres sociaux et communautaires",22000]
[21025,"ISC","International Seismological Centre ","ISC","Centre séismologique international",22000]
[21026,"ISHR","International Service for Human Rights ","ISHR","Service International pour les Droits de l’Homme",22000]
[21027,"ITF","ITF Enhancing Human Security","ITF","ITF Améliorer la sécurité humaine",22000]
[21033,"TI","Transparency International ","TI","Transparency International",22000]
[21035,"OMCT","World Organisation Against Torture ","OMCT","Organisation mondiale contre la torture",22000]
[21037,"WWB","Women's World Banking","WWB","Banque mondiale des femmes",22000]
[21040,"IWTC","International Women's Tribune Centre","CTIF","Centre de la tribune internationale de la femme",22000]
[21047," ","AgriCord"," ","AgriCord",22000]
[21049,"ECDPM","European Centre for Development Policy Management ","ECDPM","Centre européen de gestion de politiques de développement",22000]
[21050," ","Geneva Call"," ","Appel de Genève",22000]
[21058,"ICG","International Crisis Group","ICG","International Crisis Group",22000]
[21060,"APT","Association for the Prevention of Torture","APT","Association pour la prévention de la torture",22000]
[22501,"OXFAM","OXFAM - provider country office"," "," ",22000]
[22502," ","Save the Children - donor country office"," "," ",22000]
[47042,"FIT","Foundation for International Training ","FIT","Fondation pour la formation internationale dans les pays du tiers monde",22000]
[23000," ","Developing country-based NGO"," ","ONG basée dans un pays en développement",20000]
[21003,"CLASCO","Latin American Council for Social Sciences ","CLASCO","Conseil latino-américain des sciences sociales",23000]
[21010,"FAWE","Forum for African Women Educationalists ","FAWE","Forum des éducatrices africaines",23000]
[21028,"IUEF","International University Exchange Fund - IUEF Stip. in Africa and Latin America","FIEU","Fonds international d’échanges universitaires - Échanges intéressant l’Afrique et l’Amérique latine",23000]
[21030,"PAID","Pan African Institute for Development","IPD","Institut panafricain pour le développement",23000]
[21048,"AAU","Association of African Universities","AUA","Association des universités africaines",23000]
[21051,"ISPEC","Institut Supérieur Panafricaine d’Economie Coopérative","ISPEC","Institut supérieur panafricaine d’economie coopérative",23000]
[21055,"RATN","Regional AIDS Training Network","RRFS","Réseau régional de formation sur le SIDA",23000]
[21059,"ASF","Africa Solidarity Fund","ASF","Fonds solidaire pour l'Afrique",23000]
[23501," ","National Red Cross and Red Crescent Societies"," ","Sociétés nationales de la Croix-Rouge et du Croissant-Rouge",23000]
[30000," ","Public-Private Partnerships (PPP) and Networks"," ","Partenariats public-privé (PPP) et réseaux",30000]
[31000," ","Public-Private Partnerships (PPP)"," ","Partenariats public-privé (PPP)",30000]
[21056,"REEEP","Renewable Energy and Energy Efficiency Partnership","REEEP","Partenariat pour les énergies renouvelables et l'efficience énergétique",31000]
[30001,"GAIN","Global Alliance for Improved Nutrition ","GAIN","Alliance mondiale pour une meilleure nutrition ",31000]
[30003,"GeSCI","Global e-Schools and Communities Initiative ","GeSCI","Initiative mondiale en faveur de l’informatique dans les écoles et dans les communautés ",31000]
[30004,"GWP","Global Water Partnership ","GWP","Partenariat mondial pour l'eau",31000]
[30005,"IAVI","International AIDS Vaccine Initiative ","IAVI","Initiative internationale pour un vaccin contre le SIDA",31000]
[30006,"IPM","International Partnership on Microbicides ","IPM","Partenariat international pour des microbicides ",31000]
[30007,"GAID","Global Alliance for ICT and Development","GAID","Alliance mondiale pour les TIC et le développement",31000]
[30008," ","Cities Alliance"," ","Alliance pour les villes",31000]
[30009,"SAS","Small Arms Survey","SAS","Small Arms Survey",31000]
[30011,"IUCN","International Union for the Conservation of Nature","UICN","Union internationale pour la conservation de la nature",31000]
[30012,"GCPF","Global Climate Partnership Fund","GCPF","Global Climate Partnership Fund",31000]
[30013,"MEF","Microfinance Enhancement Facility","MEF","Mécanisme de soutien au microfinancement",31000]
[30014,"REGMIFA","Regional Micro, Small and Medium Enterprise Investment Fund for Sub-Saharan Africa","REGMIFA","Fonds régional d’investissement pour les très petites, petites et moyennes entreprises d’Afrique subsaharienne",31000]
[30015,"GEEREF","Global Energy Efficiency and Renewable Energy Fund","GEEREF","Fonds mondial pour la promotion de l'efficacité énergétique et des énergies renouvelables",31000]
[30016,"EFSE","European Fund for Southeast Europe","EFSE","European Fund for Southeast Europe",31000]
[30017,"SANAD","SANAD Fund for Micro, Small and Medium Enterprises","SANAD","SANAD Fund for Micro, Small and Medium Enterprises",31000]
[30018,"AFC","Africa Finance Corporation","AFC","Corporation Financière Africaine",31000]
[30019,"TCX","Currency Exchange Fund N.V.","TCX","Currency Exchange Fund N.V.",31000]
[30020,"GEEREF II","Global Energy Efficiency and Renewable Energy Fund II","GEEREF II","Global Energy Efficiency and Renewable Energy Fund II",31000]
[31006,"CEPI","Coalition for Epidemic Preparedness Innovations","CIPE","Coalition pour les innovations en matière de préparation aux épidémies",31000]
[47043," ","Global Crop Diversity Trust "," ","Global Crop Diversity Trust",31000]
[32000," ","Networks"," ","Réseaux",30000]
[21017,"ICTSD","International Centre for Trade and Sustainable Development ","ICTSD","Centre international de commerce et de développement durable ",32000]
[21043,"AWEPA","European Parliamentarians for Africa","AWEPA","Association des parlementaires d’Europe pour l’Afrique",32000]
[31001,"GDN","Global Development Network","GDN","Réseau de développement mondial",32000]
[31002,"GKP","Global Knowledge Partnership","GKP","Alliance mondiale pour le savoir ",32000]
[31003,"ILC","International Land Coalition","ILC","Coalition internationale pour l'accès à la terre ",32000]
[31004,"EITI","Extractive Industries Transparency Initiative International Secretariat","ITIE","Secrétariat de l'Initiative pour la transparence dans les industries extractives",32000]
[31005,"PNoWB","Parliamentary Network on the World Bank","RPsBM","Réseau parlementaire sur la Banque mondaile",32000]
[31007,"DNDi","Drugs for Neglected Diseases initative","DNDi","Initiative médicaments contres les maladies négligées",32000]
[31008,"FIND","Foundation for Innovative New Diagnostics","FIND","Fondation pour les nouveaux diagnostics innovants",32000]
[47010,"CAPAM","Commonwealth Agency for Public Administration and Management ","CAPAM","Agence du Commonwealth pour l'administration et la gestion publiques",32000]
[47028,"CPTM","Commonwealth Partnership for Technical Management ","CPTM","Partenariat pour la gestion technique (Commonwealth)",32000]
[40000," ","Multilateral Organisations"," ","Organisations multilatérales",40000]
[41000," ","United Nations (UN) agency, fund or commission"," ","Agence, fonds ou commission des Nations Unies (ONU)",40000]
[41100," ","UN entities (core contributions reportable in full)"," ","Entités des Nations Unies (contributions aux budgets reguliers à déclarer dans leur intégralité)",41000]
[30010,"UNITAID","International drug purchase facility","UNITAID","Facilité internationale d'achat de médicaments",41100]
[41101,"UNCCD","Convention to Combat Desertification ","CCD ","Convention sur la lutte contre la désertification ",41100]
[41103,"ECA","Economic Commission for Africa ","CEA","Commission économique pour l'Afrique",41100]
[41107,"IAEA-TCF","International Atomic Energy Agency (Contributions to Technical Cooperation Fund Only)","AIEA-FTC","Agence internationale de l'énergie atomique (Contributions au Fonds de Coopération Technique uniquement)",41100]
[41108,"IFAD","International Fund for Agricultural Development ","FIDA","Fonds international de développement agricole",41100]
[41110,"UNAIDS","Joint United Nations Programme on HIV/AIDS ","ONUSIDA","Programme commun des Nations Unies sur le VIH/SIDA",41100]
[41111,"UNCDF","United Nations Capital Development Fund ","FENU","Fonds d’équipement des Nations Unies ",41100]
[41112,"UNCTAD","United Nations Conference on Trade and Development ","CNUCED","Conférence des Nations Unies sur le commerce et le développement",41100]
[41114,"UNDP","United Nations Development Programme ","PNUD","Programme des Nations Unies pour le développement",41100]
[41116,"UNEP","United Nations Environment Programme ","PNUE","Programme des Nations Unies pour l'environnement",41100]
[41119,"UNFPA","United Nations Population Fund ","UNFPA","Fonds des Nations Unies pour la population",41100]
[41120,"UN Habitat","United Nations Human Settlement Programme ","UN Habitat","Programme des Nations Unies pour les établissements humains",41100]
[41121,"UNHCR","United Nations Office of the High Commissioner for Refugees","HCR","Haut Commissariat des Nations Unies pour les réfugiés",41100]
[41122,"UNICEF","United Nations Children’s Fund ","UNICEF","Fonds des Nations Unies pour l'enfance",41100]
[41123,"UNIDO","United Nations Industrial Development Organisation ","ONUDI","Organisation des Nations Unies pour le développement industriel",41100]
[41125,"UNITAR","United Nations Institute for Training and Research ","UNITAR","Institut des Nations Unies pour la formation et la recherche ",41100]
[41127,"UNOCHA","United Nations Office of Co-ordination of Humanitarian Affairs ","OCHA","Bureau des Nations Unies pour la coordination de l'assistance humanitaire",41100]
[41129,"UNRISD","United Nations Research Institute for Social Development ","UNRISD","Institut de recherche des Nations Unies pour le développement social ",41100]
[41130,"UNRWA","United Nations Relief and Works Agency for Palestine Refugees in the Near East","UNRWA","Office de secours et de travaux des Nations Unies pour les réfugiés de Palestine dans le Proche-Orient",41100]
[41131,"UNSSC","United Nations System Staff College ","UNSSC","Ecole des cadres du système des Nations Unies",41100]
[41134,"UNU","United Nations University (including Endowment Fund) ","UNU","Université des Nations Unies (y compris le Fonds de dotation)",41100]
[41135,"UNV","United Nations Volunteers ","UNV","Programme des volontaires des Nations Unies ",41100]
[41140,"WFP","World Food Programme ","PAM","Programme alimentaire mondial",41100]
[41143,"WHO-CVCA","World Health Organisation - core voluntary contributions account","OMS-CVSOD","Organisation mondiale de la santé - compte de contributions volontaires sans objet désigné",41100]
[41144,"ILO-RBSA","International Labour Organisation - Regular Budget Supplementary Account","OIT-CSBO","Organisation internationale du Travail - Compte supplémentaire du budget ordinaire",41100]
[41145,"IMO-TCF","International Maritime Organization - Technical Co-operation Fund","OMI-PICT","Organisation maritime internationale - Programme intégré de coopération technique",41100]
[41146,"UNWOMEN","United Nations Entity for Gender Equality and the Empowerment of Women","ONU Femmes","Entité des Nations Unies pour l'égalité des sexes et l'autonomisation de la femme",41100]
[41149,"UNDCO","United Nations Development Coordination Office","UNDCO","Bureau de la coordination des activités de développement des Nations Unies",41100]
[41320,"UN-TBLDC","Technology Bank for Least Developed Countries","UN-TBLDC","Banque de Technologies en faveur des Pays les Moins Avancés",41100]
[45001,"WTO-ITC","World Trade Organisation - International Trade Centre ","OMC-CCI","Centre du commerce international de l'Organisation mondiale du commerce",41100]
[45002,"WTO-ACWL","World Trade Organisation - Advisory Centre on WTO Law","OMC-CCLO","Centre consultatif sur la législation de l'Organisation mondiale du commerce",41100]
[45003,"WTO-DDAGTF","World Trade Organisation - Doha Development Agenda Global Trust Fund "," ","Organisation mondiale du commerce - Fonds global d'affectation spéciale pour le Programme de Doha pour le développement",41100]
[47066,"IOM","International Organisation for Migration ","OIM","Organisation internationale des migrations ",41100]
[47083,"PAHO","Pan-American Health Organisation ","OPS","Organisation panaméricaine de la santé",41100]
[41200," ","UN entities (core contributions reportable in TOSSD only)"," ","Entités des Nations Unies (contributions de base à déclarer dans TOSSD uniquement)",41000]
[41201,"CTBTO","Comprehensive Nuclear Test Ban Treaty Organization"," ","Organisation du traité d'interdiction complète des essais nucléaires",41200]
[41202,"ICAO","International Civil Aviation Organization","OACI","Organisation de l'aviation civile internationale",41200]
[41203,"ICC","International Criminal Court","CPI","Cour Pénale Internationale",41200]
[41204,"IRMCT","International Residual Mechanism for Criminal Tribunals"," ","Mécanisme international appelé à exercer les fonctions résiduelles des Tribunaux pénaux",41200]
[41205,"ISA","International Seabed Authority"," ","Autorité internationale des fonds marins",41200]
[41206,"ITLOS","International Tribunal for the Law of the Sea","TIDM","Tribunal international du droit de la mer",41200]
[41207,"OPCW","Organization for the Prohibition of Chemical Weapons","OIAC","Organisation pour l'interdiction des Armes Chimiques",41200]
[41208,"DESA","Department of Economic and Social Affairs","DAES","Département des affaires économiques et sociales",41200]
[41209,"DGACM","Department of General Assembly and Conference Management"," ","Département de l'Assemblée générale et de la gestion des conférences",41200]
[41210,"DGC","Department of Global Communications"," ","Département de la communication globale",41200]
[41211,"DMSPC","Department of Management Strategy, Policy and Compliance, including UNOG, UNOV and UNON"," ","Département des stratégies et politiques de gestion et de la conformité, y compris ? including ONUN, ONUG et ONUV",41200]
[41212,"DOS","Department of Operational Support"," ","Département de l’appui opérationnel",41200]
[41213,"DSS","Department of Safety and Security"," ","Département de la sûreté et de la sécurité",41200]
[41214,"OCT","Office of Counter-Terrorism"," ","Bureau de lutte contre le terrorisme",41200]
[41215,"UNICRI","United Nations Interregional Crime and Justice Research Institute"," ","Institut interrégional de recherche des Nations unies sur la criminalité et la justice",41200]
[41216,"IMO","International Maritime Organization","IMO","International Maritime Organization",41200]
[41217,"WTO","World Trade Organisation","WTO","Organisation mondiale du commerce",41200]
[41300," ","Other UN (Core Contributions Reportable in Part)"," ","Autres Nations Unies (contributions comptabilisables pour partie)",41000]
[41104,"ECLAC","Economic Commission for Latin America and the Caribbean","CEPALC","Commission économique pour l'Amérique latine et les Caraïbes",41300]
[41105,"ESCWA","Economic and Social Commission for Western Asia","CESAO","Commission économique et sociale pour l'Asie occidentale",41300]
[41106,"ESCAP","Economic and Social Commission for Asia and the Pacific ","CESAP","Commission économique et sociale pour l'Asie et le Pacifique",41300]
[41128,"UNODC","United Nations Office on Drugs and Crime ","UNODC","Office des Nations Unies contre la drogue et le crime",41300]
[41150,"UNIDIR","United Nations Institute for Disarmament Research","UNIDIR","Institut des Nations unies pour la recherche sur le désarmement",41300]
[41151,"IARC","International Agency for Research on Cancer","CIRC","Centre international de recherche sur le cancer",41300]
[41301,"FAO","Food and Agricultural Organisation","FAO","Organisation des Nations Unies pour l'alimentation et l'agriculture",41300]
[41302,"ILO-Assessed","International Labour Organisation - Assessed Contributions","OIT-Obligatoires","Organisation internationale du travail - contributions obligatoires",41300]
[41303,"ITU","International Telecommunications Union","UIT","Union internationale des télécommunications",41300]
[41304,"UNESCO","United Nations Educational, Scientific and Cultural Organisation","UNESCO","Organisation des Nations Unies pour l’éducation, la science et la culture ",41300]
[41305,"UN","United Nations","ONU","Organisation des Nations Unies",41300]
[41306,"UPU","Universal Postal Union ","UPU","Union postale universelle",41300]
[41307,"WHO-Assessed","World Health Organisation - assessed contributions","OMS-obligatoires","Organisation mondiale de la santé - contributions obligatoires",41300]
[41308,"WIPO","World Intellectual Property Organisation ","OMPI","Organisation mondiale de la propriété intellectuelle ",41300]
[41309,"WMO","World Meteorological Organisation ","OMM","Organisation météorologique mondiale",41300]
[41310,"UNDPO-UN Peacekeeping operations","United Nations Department of Peace Operations - UN peacekeeping operations","UNDPO-UN Peacekeeping operations","United Nations Department of Peace Operations - UN peacekeeping operations",41300]
[41312,"IAEA-Assessed","International Atomic Energy Agency - assessed contributions","AIEA-obligatoires","Agence internationale de l'énergie atomique - contributions obligatoires",41300]
[41313,"OHCHR","United Nations High Commissioner for Human Rights (extrabudgetary contributions only)","HCDH","Haut-Commissariat des Nations unies aux droits de l'homme (contributions extrabudgétaires uniquement)",41300]
[41314,"UNECE","United Nations Economic Commission for Europe (extrabudgetary contributions only)","CEE-ONU","Commission économique des Nations unies pour l'Europe (contributions extrabudgétaires uniquement)",41300]
[41315,"UNDRR","United Nations Office for Disaster Risk Reduction","UNDRR","Bureau des Nations Unies pour la prévention de catastrophes",41300]
[41316,"UNFCCC","United Nations Framework Convention on Climate Change ","CCNUCC","Convention-cadre des Nations unies sur les changements climatiques",41300]
[41319,"UNWTO","World Tourism Organization","OMT","Organisation mondiale du tourisme",41300]
[41321,"WHO-SPRP","World Health Organisation - Strategic Preparedness and Response Plan","OMS-PSPI","Organisation mondiale de la santé - Plan stratégique de préparation et d'intervention",41300]
[41502,"UNOPS","United Nations Office for Project Services","UNOPS","Le Bureau des Nations Unies pour les services d'appui aux projets ",41300]
[41400," ","UN inter-agency pooled funds"," ","Fonds communs interinstitutions des Nations Unies",41000]
[41141,"PBF","United Nations Peacebuilding Fund","PBF","Fonds des Nations Unies pour la consolidation de la paix",41400]
[41147,"CERF","Central Emergency Response Fund","CERF","Fonds central pour les interventions d'urgence",41400]
[41401,"UN-MPTFO","UN-Multi Partner Trust Fund Office","UN-MPTFO","UN-Multi Partner Trust Fund Office",41400]
[41402,"Joint SDG Fund","Joint Sustainable Development Goals Fund","Fonds conjoint des ODD","Fonds conjoint des objectifs de développement durable",41400]
[41403,"COVID-19 MPTF","COVID-19 Response and Recovery Multi-Partner Trust Fund","COVID-19 MPTF","COVID-19 Response and Recovery Multi-Partner Trust Fund",41400]
[41501,"UN-REDD","United Nations Reducing Emissions from Deforestation and Forest Degradation"," "," ",41400]
[41503,"UN-CBPF","UN-led Country-based Pooled Funds"," "," ",41400]
[41500," ","UN single-agency thematic funds"," ","Fonds thématiques uniques des Nations Unies",41000]
[41148,"UNDPPA-SZA","United Nations Department of Political and Peacebuilding Affairs, Trust Fund in Support of Political Affairs","UNDPPA-SZA","Département des affaires politiques et de consolidation de la paix des Nations Unies, Fonds d'affectation spéciale à l'appui des affaires politiques",41500]
[41600," ","Existing UN channels not included in Standard I - UN entity- of the UN Data Cube reporting framework"," ","Canaux de l'ONU existants non inclus dans la norme I du cadre de reporting du cube de l'ONU",41000]
[41126,"UNMAS","United Nations Mine Action Service ","UNMAS","Service de l'action antimines des Nations Unies",41600]
[41132,"UNSCN","United Nations System Standing Committee on Nutrition ","UNSCN","Comité permanent de la nutrition du système des Nations Unies",41600]
[41133,"UNSIA","United Nations Special Initiative on Africa ","UNSIA","Initiative spéciale des Nations Unies pour l'Afrique",41600]
[41136,"UNVFD","United Nations Voluntary Fund on Disability "," ","Fonds de contributions voluntaires des Nations Unies pour les handicapés",41600]
[41137,"UNVFTC","United Nations Voluntary Fund for Technical Co-operation in the Field of Human Rights"," ","Fonds de contributions volontaires des Nations Unies pour la coopération technique dans le domaine des droits de l'homme",41600]
[41138,"UNVFVT","United Nations Voluntary Fund for Victims of Torture "," ","Fonds de contributions volontaires des Nations Unies pour les victimes de la torture ",41600]
[41142,"UNDEF","United Nations Democracy Fund","FNUD","Fonds des Nations Unies pour la démocratie",41600]
[41318,"GM","Global Mechanism","MM","Mécanisme mondial",41600]
[41601,"UNODA","United Nations Office for Disarmament Affairs","UNODA","United Nations Office for Disarmament Affairs",41600]
[47065,"IOC","Intergovernmental Oceanographic Commission ","COI","Commission océanographique intergouvernementale",41600]
[47078,"Montreal Protocol","Multilateral Fund for the Implementation of the Montreal Protocol ","Protocol de Montréal","Fonds multilatéral pour l’application du Protocole de Montréal ",41600]
[41700," ","UN entities, non-core contributions"," ","Entités des Nations Unies, contributions autres que de base ",41000]
[41701,"ILO-non-core","International Labour Organisation - non-core","ILO-non-core","International Labour Organisation - non-core",41700]
[41702,"WHO-non-core","World Health Organisation - non-core","WHO-non-core","World Health Organisation - non-core",41700]
[42000," ","European Union Institutions"," ","Institutions de l'Union européenne",40000]
[42001,"EC","European Commission - Development Share of Budget","CE","Commission européenne - partie du budget affectée au développement",42000]
[42003,"EDF","European Commission - European Development Fund","FED","Commission européenne - Fonds européen de développement",42000]
[42004,"EIB","European Investment Bank ","BEI","Banque européenne d'investissement",42000]
[43000," ","International Monetary Fund (IMF)"," ","Fonds monétaire international (FMI)",40000]
[43001,"IMF-PRGT","International Monetary Fund - Poverty Reduction and Growth Trust ","FMI-FRPC","Fonds monétaire international – Facilité pour la réduction de la pauvreté et pour la croissance",43000]
[43002,"IMF-PRG-HIPC","International Monetary Fund - Poverty Reduction and Growth - Heavily Indebted Poor Countries Debt Relief Initiative Trust Fund [includes HIPC, Extended Credit Facility (ECF), and ECF-HIPC sub-accounts] ","FMI-FRPC-PPTE","Fonds monétaire international – Réduction de la pauvreté et croissance – Initiative d’allègement de la dette en faveur des pays pauvres très endettés [y compris Initiative PPTE, Facilité élargie de crédit (FEC) et sous-comptes (FEC-PPTE)]",43000]
[43003,"IMF-EPCA-ENDA","International Monetary Fund - Subsidization of Emergency Post Conflict Assistance/Emergency Assistance for Natural Disasters for PRGT-eligible members","FMI-EPCA-ENDA","Fonds monétaire international – Aide d’urgence après un conflit (EPCA) et aide d’urgence à la suite de catastrophes naturelles (ENDA) pour les membres pouvant bénéficier de la FRPC",43000]
[43004,"IMF-PRG-MDRI","International Monetary Fund - Poverty Reduction and Growth - Multilateral Debt Relief Initiative Trust","FMI-FRPC-IADM","Fonds monétaire international – Facilité pour la réduction de la pauvreté et pour la croissance – Initiative d’allègement de la dette multilatérale",43000]
[43005,"IMF-PCDR","International Monetary Fund - Post-Catastrophe Debt Relief Trust","FMI-ADAC","Fonds monétaire international  - Fonds fiduciaire pour l'allégement de la dette après une catastrophe",43000]
[43006,"IMF-CCR","Catastrophe Containment and Relief Trust","FMI-ARC","Fonds fiduciaire d’assistance et de riposte aux catastrophes",43000]
[43007,"IMF-RST","IMF’s Resilience and Sustainability Trust","FMI-RST","Fonds fiduciaire pour la résilience et la durabilité",43000]
[44000," ","World Bank Group (WB)"," ","Groupe de la Banque mondiale (BM)",40000]
[44001,"IBRD","International Bank for Reconstruction and Development ","BIRD","Banque internationale pour la reconstruction et le développement",44000]
[44002,"IDA","International Development Association ","IDA","Association internationale de développement",44000]
[44003,"IDA-HIPC","International Development Association - Heavily Indebted Poor Countries Debt Initiative Trust Fund ","IDA-PPTE","Association internationale de développement - Fonds fiduciaire de l'IDA en faveur des pays pauvres très endettés",44000]
[44004,"IFC","International Finance Corporation ","SFI","Société financière internationale ",44000]
[44005,"MIGA","Multilateral Investment Guarantee Agency ","AMGI","Agence multilatérale de garantie des investissements",44000]
[44006,"AMCs","Advance Market Commitments","AMC","Garanties de marché",44000]
[44007,"IDA-MDRI","International Development Association - Multilateral Debt Relief Initiative","IDA-IADM","Association internationale de développement - Initiative d’allégement de la dette multilatérale",44000]
[44008,"PMI","Partnership for Market Implementation","PMI","Partnership for Market Implementation",44000]
[46000," ","Regional Development Banks"," ","Banques régionales de développement",40000]
[46002,"Afr.DB","African Development Bank","BAfD","Banque africaine de développement",46000]
[46003,"Afr.DF","African Development Fund ","FAD","Fonds africain de développement",46000]
[46004,"AsDB","Asian Development Bank","BAsD","Banque asiatique de développement",46000]
[46005,"AsDF","Asian Development Fund ","FAsD","Fonds asiatique de développement",46000]
[46006,"BSTDB","Black Sea Trade and Development Bank","BSTDB","Black Sea Trade and Development Bank",46000]
[46007,"CABEI","Central American Bank for Economic Integration ","BCAIE","Banque centroaméricaine d'intégration économique",46000]
[46008,"CAF","Development Bank of Latin America","CAF","Banque de développement de l'Amérique latine",46000]
[46009,"CDB","Caribbean Development Bank ","BDC","Banque de développement des Caraïbes",46000]
[46012,"IDB","Inter-American Development Bank, Inter-American Investment Corporation and Multilateral Investment Fund ","BID","Banque interaméricaine de développement, Société interaméricaine d'investissements, Fonds multilatéral d'investissements",46000]
[46013,"IDB FSO","Inter-American Development Bank, Fund for Special Operations ","BID FOS","Banque interaméricaine de développement, Fonds opérations spécial",46000]
[46015,"EBRD","European Bank for Reconstruction and Development","BERD","Banque européenne pour la reconstruction et le développement",46000]
[46016,"EBRD TFs - ODA Countries Only","European Bank for Reconstruction and Development - technical co-operation and special funds (ODA-eligible countries only)","BERD-CTFS pays éligibles à l'APD","Banque européenne pour la reconstruction et le développement - coopération technique et fonds spéciaux (pays éligibles à l'APD)",46000]
[46017,"EBRD TFs - All Countries","European Bank for Reconstruction and Development - technical co-operation and special funds (all EBRD countries of operations)","BERD-CTFS tous pays","Banque européenne pour la reconstruction et le développement - coopération technique et fonds spéciaux (tous pays)",46000]
[46018,"EBRD-ETC","European Bank for Reconstruction and Development - Early Transition Countries Fund","BERD-ETC","Banque européenne de reconstruction et de développement - Initiative en faveur des pays en transition précoce",46000]
[46019,"EBRD-WBJTF","European Bank for Reconstruction and Development - Western Balkans Joint Trust Fund","BERD-FSpBO","Banque européenne de reconstruction et de développement - Fonds spécial pour les Balkans occidentaux",46000]
[46020,"BDEAC","Central African States Development Bank","BDEAC","Banque de développement des États de l'Afrique Centrale",46000]
[46021,"BOAD","West African Development Bank","BOAD","Banque ouest-africaine de développement",46000]
[46022,"Afreximbank","African Export Import Bank","Afreximbank","Banque Africaine d'Import-Export",46000]
[46023,"TDB","Eastern and Southern African Trade and Development Bank","TDB","Banque de l’Afrique de l’Est et de l’Afrique Australe pour le Commerce et le Développement",46000]
[46024,"CEB","Council of Europe Development Bank","CEB","Banque de Développement du Conseil de l'Europe",46000]
[46025,"IsDB","Islamic Development Bank","BIsD","Banque Islamique de Développement",46000]
[46026,"AIIB","Asian Infrastructure Investment Bank","BAII"," ",46000]
[46027,"FONPLATA","Financial Fund for the Development of the River Plate Basin","FONPLATA","Fonds financier pour le développement du bassin fluvial de la Plata",46000]
[46028,"NDB","New Development Bank","NDB","New Development Bank",46000]
[47000," ","Other multilateral institutions"," ","Autres institutions multilatérales",40000]
[21002,"AITIC","Agency for International Trade Information and Co-operation ","ACICI","Agence de coopération et d'information pour le commerce international",47000]
[41102,"DLCO-EA","Desert Locust Control Organisation for Eastern Africa ","OLCP-EA","Organisation de lutte contre le criquet pèlerin dans l'Est Africain",47000]
[41317,"GCF","Green Climate Fund","GCF","Fonds vert pour le climat",47000]
[47001,"ACBF","African Capacity Building Foundation ","ACBF","Fondation pour le renforcement des capacités en Afrique",47000]
[47002,"APO","Asian Productivity Organisation ","APO","Organisation asiatique de productivité",47000]
[47003,"ASEAN","Association of South East Asian Nations: Economic Co-operation ","ANASE","Association des nations de l'Asie du Sud-Est - coopération économique",47000]
[47005,"AU","African Union","AU","African Union",47000]
[47009,"CAMES","African and Malagasy Council for Higher Education ","CAMES","Conseil africain et malgache pour l'enseignement supérieur",47000]
[47011,"CARICOM","Caribbean Community Secretariat ","CARICOM","Secrétariat de la Communauté des Caraïbes ",47000]
[47012,"CAREC","Caribbean Epidemiology Centre ","CAREC","Centre épidémiologique des Caraïbes",47000]
[47013,"CF","Commonwealth Foundation ","CF","Fondation du Commonwealth",47000]
[47015,"CGIAR","CGIAR Fund","CGIAR","CGIAR Fund",47000]
[47019,"CIHEAM","International Centre for Advanced Mediterranean Agronomic Studies ","CIHEAM","Centre international de hautes études agronomique méditerranéennes",47000]
[47022,"CITES","Convention on International Trade in Endangered Species of Wild Flora and Fauna","CITES","Convention sur le commerce international des espèces de faune et de flore sauvages menacées d'extinction",47000]
[47025,"COL","Commonwealth of Learning ","COL","Commonwealth of Learning",47000]
[47026,"CPLP","Community of Portuguese Speaking Countries ","CPLP","Communauté des pays de langue portugaise ",47000]
[47027,"CP ","Colombo Plan","CP","Plan de Colombo",47000]
[47029,"SWAC","Sahel and West Africa Club ","CSAO","Club du Sahel et de l’Afrique de l’Ouest ",47000]
[47034,"ECOWAS","Economic Community of West African States ","CEDEAO","Communauté économique des Etats de l’Afrique de l’Ouest",47000]
[47036,"EPPO","European and Mediterranean Plant Protection Organisation ","OEPP","Organisation Européenne et Méditerranéenne pour la Protection des Plantes",47000]
[47037,"EROPA","Eastern-Regional Organisation of Public Administration ","EROPA","Organisation régionale de l'Orient pour l'administration publique",47000]
[47040,"FFA","Forum Fisheries Agency ","FFA","Agence des pêches ",47000]
[47044,"GEF","Global Environment Facility Trust Fund","FEM","Fonds pour l'environnement mondial - fonds fiduciaire",47000]
[47045,"Global Fund","Global Fund to Fight AIDS, Tuberculosis and Malaria ","Fonds mondial","Fonds mondial de lutte contre le SIDA, la tuberculose et la paludisme",47000]
[47046,"OIF","International Organisation of the Francophonie","OIF","Organisation internationale de la Francophonie ",47000]
[47050,"ICAC","International Cotton Advisory Committee ","CCIC","Comité consultatif international du coton",47000]
[47058,"IDEA","International Institute for Democracy and Electoral Assistance ","IDEA","International Institute for Democracy and Electoral Assistance",47000]
[47059,"IDLO","International Development Law Organisation ","IDLO","Organisation internationale de droit du développement ",47000]
[47061,"IICA","Inter-American Institute for Co-operation on Agriculture ","IICA","Institut interaméricain de coopération pour l’agriculture",47000]
[47064,"INBAR","International Network for Bamboo and Rattan ","INBAR","Réseau International sur le bambou et le rotin",47000]
[47067,"IPCC","Intergovernmental Panel on Climate Change ","GIEC","Groupe d’experts intergouvernemental sur l’évolution du climat",47000]
[47068,"APFIC","Asia-Pacific Fishery Commission","APFIC","Commission Asie-Pacifique des pêches",47000]
[47073,"ITTO","International Tropical Timber Organisation ","OIBT","Organisation Internationale des Bois Tropicaux",47000]
[47074,"IVI","International Vaccine Institute ","IIV","Institut international de vaccins ",47000]
[47076,"JSCA","Justice Studies Centre of the Americas ","JSCA","Centre d’études sur la justice dans les Amériques",47000]
[47077,"MRC","Mekong River Commission ","MRC","Commission du Mékong",47000]
[47079,"OAS","Organisation of American States ","OEA","Organisation des États américains",47000]
[47080,"OECD","Organisation for Economic Co-operation and Development","OECD","Organisation for Economic Co-operation and Development",47000]
[47081,"OECD-Dev. Centre","OECD Development Centre ","OCDE-Centre de dév. ","OCDE Centre de développement",47000]
[47082,"OECS","Organisation of Eastern Caribbean States ","OECO","Organisation des États des Caraïbes orientales",47000]
[47084,"PAIGH","Pan-American Institute of Geography and History ","PAIGH","Institut panaméricain de géographie et d’histoire",47000]
[47086,"PIDG","Private Infrastructure Development Group ","PIDG","Private Infrastructure Development Group",47000]
[47087,"PIFS","Pacific Islands Forum Secretariat ","SFIP","Secrétariat du Forum des Iles du Pacifique",47000]
[47089,"SADC","Southern African Development Community ","SADC","Communauté pour le développement de l’Afrique australe",47000]
[47092,"SEAFDC","South East Asian Fisheries Development Centre ","SEAFDC","Centre de développement des pêches de l’Asie du Sud-Est",47000]
[47093,"SEAMEO","South East Asian Ministers of Education ","SEAMEO","Organisation des Ministres de l’éducation de l’Asie du Sud-Est",47000]
[47095,"EQAP","Educational Quality and Assessment Programme","EQAP","Programme d'évaluation et de qualité de l'éducation",47000]
[47096,"SPC","Secretariat of the Pacific Community ","CPS","Secrétariat Général de la Communauté du Pacifique",47000]
[47097,"SPREP","Pacific Regional Environment Programme ","PROE","Programme régional océanien de l’environnement",47000]
[47098,"UNPO","Unrepresented Nations and Peoples’ Organisation ","UNPO","Organisation des peuples et des nations non représentés",47000]
[47105,"CFC","Common Fund for Commodities "," ","Fonds commun pour les produits de base",47000]
[47106,"DCAF","Geneva Centre for the Democratic Control of Armed Forces","DCAF","Centre de contrôle démocratique des forces armées - Genève",47000]
[47107,"IFFIm","International Finance Facility for Immunisation","IFFIm","Facilité internationale de financement pour la vaccination",47000]
[47109,"APEC-ASF","Asia-Pacific Economic Cooperation Support Fund","APEC-ASF","Asia-Pacific Economic Cooperation Support Fund",47000]
[47110,"BSEC","Organisation of the Black Sea Economic Cooperation","BSEC","Organisation de coopération économique de la mer Noire",47000]
[47111," ","Adaptation Fund"," ","Fonds pour l’adaptation",47000]
[47112,"CEI-Climate Fund","Central European Initiative - Special Fund for Climate and Environmental Protection","CEI-Climate Fund","Initiative de l’Europe centrale - Fonds Spécial pour la protection climatique et environnementale",47000]
[47113,"CEMAC","Economic and Monetary Community of Central Africa ","CEMAC","Communauté économique et monétaire de l’Afrique Centrale",47000]
[47114,"AFoCO","Asian Forest Cooperation Organisation","AFoCO","Asian Forest Cooperation Organisation",47000]
[47116,"IF","Integrated Framework for Trade-Related Technical Assistance to Least Developed Countries","CI","Cadre intégré pour l'assistance technique liée au commerce en faveur des pays les moins avancés",47000]
[47117,"NEPAD","New Partnership for Africa's Development","NEPAD","Nouveau Partenariat pour le développement de l’Afrique",47000]
[47118,"CREFIAF","Regional Organisation for the Strengthening of Supreme Audit Institutions of Francophone Sub-Saharan Countries","CREFIAF","Conseil Régional de Formation des Institutions Supérieures de Contrôle des Finances Publiques d’Afrique Francophone Subsaharienne",47000]
[47119,"OSS","Sahara and Sahel Observatory","OSS","Observatoire du Sahara et du Sahel",47000]
[47120,"SAARC","South Asian Association for Regional Cooperation ","SAARC","Association de l'Asie du Sud pour la coopération régionale",47000]
[47121,"UCLGA","United Cities and Local Governments of Africa","CGLUA","Cités et gouvernements locaux unis d’Afrique",47000]
[47122,"GAVI","Global Alliance for Vaccines and Immunization ","GAVI","Alliance mondiale pour la vaccination et l’immunisation",47000]
[47123,"GICHD","Geneva International Centre for Humanitarian Demining ","CIDHG","Centre International de Déminage Humanitaire Genève",47000]
[47124,"IACA","International Anti-Corruption Academy","IACA","International Anti-Corruption Academy",47000]
[47125,"ICGEB","International Centre for Genetic Engineering and Biotechnology","ICGEB","International Centre for Genetic Engineering and Biotechnology",47000]
[47127,"OLADE","Latin-American Energy Organisation","OLADE","Organisation latino-américaine de l'énergie",47000]
[47128,"NDF","Nordic Development Fund","NDF","Nordic Development Fund",47000]
[47129,"GEF-LDCF","Global Environment Facility - Least Developed Countries Fund","FEM - FPMA","FEM Fonds pour les pays les moins avancés",47000]
[47130,"GEF-SCCF","Global Environment Facility - Special Climate Change Fund","FEM - FSpCC","FEM Fonds spécial pour les changements climatiques",47000]
[47131,"OSCE","Organization for Security and Co-operation in Europe","OSCE","Organisation pour la sécurité et la coopération en Europe",47000]
[47132," ","Commonwealth Secretariat"," ","Commonwealth Secretariat",47000]
[47134,"CTF","Clean Technology Fund","FTP","Fonds pour les technologies propres",47000]
[47135,"SCF","Strategic Climate Fund","FSC","Fonds stratégique pour le climat",47000]
[47136,"GGGI","Global Green Growth Institute","GGGI","Institut mondial de la croissance verte",47000]
[47137,"ARC","African Risk Capacity Group","ARC","Mutuelle panafricaine de gestion des risques",47000]
[47138,"CoE","Council of Europe","CoE","Conseil de l’Europe",47000]
[47139,"WCO CCF","World Customs Organization Customs Co-operation Fund","OMD CCF","Organisation Mondiale des Douanes Fonds de coopération douanière",47000]
[47140,"OEI","Organisation of Ibero-American States for Education, Science and Culture","OEI","Organisation des états ibéro-américains pour l'éducation, la science et la culture (OEI)",47000]
[47141,"ATAF","African Tax Administration Forum","ATAF","Forum sur l’Administration Fiscale Africaine",47000]
[47142,"OFID","OPEC Fund for International Development","OFID","Le Fonds OPEP pour le développement international",47000]
[47143,"GCERF","Global Community Engagement and Resilience Fund","GCERF","Fonds mondial pour l’engagement de la communauté et la résilience",47000]
[47144,"IRENA","International Renewable Energy Agency","IRENA","Agence internationale pour les energies renouvelables",47000]
[47145,"CEF","Center of Excellence in Finance"," "," ",47000]
[47146,"IIB","International Investment Bank"," "," ",47000]
[47147,"IFFEd","International Finance Facility for Education","IFFEd","Facilité internationale de financement pour l'éducation",47000]
[47148,"WOAH","World Organisation for Animal Health","WOAH","Organisation mondiale de la santé animale",47000]
[47149,"ICMP","International Commission on Missing Persons","CIPD","Commission internationale pour les personnes disparues",47000]
[47150,"SEGIB","Secretaría General Iberoamericana","SEGIB","Secretaría General Iberoamericana",47000]
[47501,"GPE","Global Partnership for Education","PME","Partenariat Mondial pour l'Education",47000]
[47502,"GFDRR","Global Fund for Disaster Risk Reduction"," "," ",47000]
[47503,"GAFSP","Global Agriculture and Food Security Program"," "," ",47000]
[47504,"FCPF","Forest Carbon Partnership Facility "," "," ",47000]
[47100,"WAMU","West African Monetary Union ","UMOA","Union monétaire ouest-africaine",47000]
[47400," ","European Space Agency (ESA) programme 'Space in support of International Development Aid'"," "," ",47000]
[47701,"GBFF","Global Biodiversity Framework Fund","GBFF","Global Biodiversity Framework Fund",47000]
[47702,"Cali Fund","Cali Fund For the Fair and Equitable Sharing of Benefits from the use of Digital Sequence Information on Genetic Resources (DSI)","Cali Fund","Cali Fund For the Fair and Equitable Sharing of Benefits from the use of Digital Sequence Information on Genetic Resources (DSI)",47000]
[47703,"KBF","Kunming Biodiversity Fund","KBF","Kunming Biodiversity Fund",47000]
[47704,"SESRIC","SESRIC","SESRIC","SESRIC",47000]
[47705,"Interpol","Interpol","Interpol","Interpol",47000]
[51000," ","University, college or other teaching institution, research institute or think-tank"," ","Université, collège ou autre établissement d'enseignement, institut de recherche ou de réflexion",51000]
[21004,"CODESRIA","Council for the Development of Economic and Social Research in Africa ","CODESRIA","Conseil pour le développement de la recherche en sciences sociales en Afrique",51000]
[21009,"FARA","Forum for Agricultural Research in Africa ","FARA","Forum pour la recherche agricole en Afrique",51000]
[21021,"IIED","International Institute for Environment and Development ","IIED","Institut international pour l’environnement et le développement",51000]
[21039,"IISD","International Institute for Sustainable Development","IIDD","Institut international de développement durable",51000]
[47008,"AVRDC","World Vegetable Centre","AVRDC","Centre international de cultures maraîchères",51000]
[47017,"CIAT","International Centre for Tropical Agriculture ","CIAT","Centre international d'agriculture tropicale",51000]
[47018,"CIFOR","Centre for International Forestry Research ","CIFOR","Centre de recherche forestière internationale ",51000]
[47020,"CIMMYT","International Maize and Wheat Improvement Centre ","CIMMYT","Centre international d’amélioration du maïs et du blé ",51000]
[47021,"CIP","International Potato Centre ","CIP","Centre international de la pomme de terre",51000]
[47041,"FFTC","Food and Fertilizer Technology Centre ","FFTC","Centre des techniques de l'alimentation et des engrais",51000]
[47047,"IAI","International African Institute ","IIA","Institut international africain",51000]
[47051,"ICARDA","International Centre for Agricultural Research in Dry Areas ","ICARDA","Centre international de recherche agricole dans les zones arides",51000]
[47053,"ICDDR,B","International Centre for Diarrhoeal Disease Research, Bangladesh","ICDDR,B","International Centre for Diarrhoeal Disease Research, Bangladesh",51000]
[47054,"ICIPE","International Centre of Insect Physiology and Ecology ","ICIPE","Centre international sur la physiologie et l’écologie des insectes",51000]
[47055,"ICRA","International Centre for Development Oriented Research in Agriculture ","ICRA","Centre International pour la Recherche Agricole orientée vers le développement",51000]
[47056,"ICRAF","World AgroForestry Centre","ICRAF","Centre mondial de l’agroforesterie",51000]
[47057,"ICRISAT","International Crop Research for Semi-Arid Tropics ","ICRISAT","Institut international de recherche sur les cultures des zones tropicales semi-arides",51000]
[47062,"IITA","International Institute of Tropical Agriculture ","IITA","Institut international d’agriculture tropicale",51000]
[47063,"ILRI","International Livestock Research Institute ","ILRI","International Livestock Research Institute",51000]
[47069," ","Bioversity International"," ","Bioversity International",51000]
[47070,"IRRI","International Rice Research Institute ","IIRR","Institut international de recherche sur le riz",51000]
[47071,"ISTA","International Seed Testing Association ","ISTA","Association internationale d’essais de semences",51000]
[47075,"IWMI","International Water Management Institute ","IWMI","Institut international de gestion des ressources en eau",51000]
[47099,"USP","University of the South Pacific ","USP","Université du Pacifique Sud",51000]
[47101,"WARDA","Africa Rice Centre","ADRAO","Centre du riz pour l’Afrique",51000]
[47103,"WMU","World Maritime University ","UMM","Université maritime mondiale",51000]
[47104,"WorldFish Centre","WorldFish Centre","WorldFish Centre","Centre international pour l’aménagement des ressources bioaquatiques",51000]
[51001,"IFPRI","International Food Policy Research Institute","IFPRI","Institut International de Recherche sur les Politiques Alimentaires",51000]
[60000," ","Private Sector Institutions"," ","Institutions du secteur privé",60000]
[61000," ","Private sector in provider country"," ","Secteur privé du pays donneur",60000]
[61001," ","Banks (deposit taking corporations)"," ","Banques (institutions de dépôts)",61000]
[61003," ","Investment funds and other collective investment institutions"," ","Fonds d’investissements et autres organismes de placement collectifs",61000]
[61004," ","Holding companies, trusts and Special Purpose Vehicles"," ","Sociétés holding, fonds fiduciaires et structures de titrisation",61000]
[61005," ","Insurance Corporations"," ","Sociétés d’assurance",61000]
[61006," ","Pension Funds"," ","Fonds de pension",61000]
[61007," ","Other financial corporations"," ","Autres sociétés financières",61000]
[61008," ","Exporters"," ","Exportateurs",61000]
[61009," ","Other non-financial corporations"," ","Autres sociétés non financières",61000]
[61010," ","Retail investors"," ","Investisseurs individuels",61000]
[62000," ","Private sector in recipient country"," ","Secteur privé du pays bénéficiaire",60000]
[62001," ","Banks (deposit taking corporations except Micro Finance Institutions)"," ","Banques (institutions de dépôts hors institutions de microfinancement)",62000]
[62002," ","Micro Finance Institutions (deposit and non-deposit)"," ","Institutions de microfinancement (collectant ou pas des dépôts)",62000]
[62003," ","Investment funds and other collective investment institutions"," ","Fonds d’investissements et autres organismes de placement collectifs",62000]
[62004," ","Holding companies, trusts and Special Purpose Vehicles"," ","Sociétés holding, fonds fiduciaires et structures de titrisation",62000]
[62005," ","Insurance Corporations"," ","Sociétés d’assurance",62000]
[62006," ","Pension Funds"," ","Fonds de pension",62000]
[62007," ","Other financial corporations"," ","Autres sociétés financières",62000]
[62008," ","Importers/Exporters"," ","Importateurs / Exportateurs",62000]
[62009," ","Other non-financial corporations"," ","Autres sociétés non financières",62000]
[62010," ","Retail investors"," ","Investisseurs individuels",62000]
[63000," ","Private sector in third country"," ","Secteur privé d'un pays tiers",60000]
[63001," ","Banks (deposit taking corporations except Micro Finance Institutions)"," ","Banques (institutions de dépôts hors institutions de microfinancement)",63000]
[63002," ","Micro Finance Institutions (deposit and non-deposit)"," ","Institutions de microfinancement (collectant ou pas des dépôts)",63000]
[63003," ","Investment funds and other collective investment institutions"," ","Fonds d’investissements et autres organismes de placement collectifs",63000]
[63004," ","Holding companies, trusts and Special Purpose Vehicles"," ","Sociétés holding, fonds fiduciaires et structures de titrisation",63000]
[63005," ","Insurance Corporations"," ","Sociétés d’assurance",63000]
[63006," ","Pension Funds"," ","Fonds de pension",63000]
[63007," ","Other financial corporations"," ","Autres sociétés financières",63000]
[63008," ","Exporters"," ","Exportateurs",63000]
[63009," ","Other non-financial corporations"," ","Autres sociétés non financières",63000]
[63010," ","Retail investors"," ","Investisseurs individuels",63000]
[90000," ","Other"," ","Autre",90000]

{"sheet":"examples","index":11,"n_rows":14,"n_cols":31,"rows_kept":14,"cut":false,"hidden":false,"merged":[[0,1,0,5],[0,6,0,18],[0,19,0,23],[4,30,5,30]]}
[null,"A Identification data",null,null,null,null,"B. Basic data",null,null,null,null,null,null,null,null,null,null,null,null,"C. Volume data",null,null,null,null,"For in-kind technical co-operation","For loans only",null,"For mobilisation only"]
["Examples are all fictitious, and provided for illustration purposes only.","1.Year","2.Provider","3.Agency","4.Provider project number  ","5. TOSSD ID Number","6.TOSSD recipient","7.Project title","8.Description","9. External link ","10.SDG focus\n(multiple codes separated by \";\")","11.Sector \n(multiple codes and associated percentages, separated by \"|\")","12.Channel","13. Channel name (free text)","14.Modality","15.Financial instrument","16. Financing arrangement","17. Framework of collaboration","18. TOSSD pillar","19.   Currency","20.   Amount committed (thousand)","21.   Amount disbursed (thousand)","22.   Reflows to the provider (thousand)","23.   Amount mobilised (thousand)","24. Salary cost (thousand)","25. Concessionality","26.  Maturity (in months)","27.   Leveraging mechanism","28. Origin of the funds mobilised","29. SSC-specific information","Notes"]
["Example of a grant - infrastructure",2019,4,3,"BEN003",2019000056,236,"Construction of a road between Cotonou and Ouidah, 40 km.",null,null,"11.2;11.3",21020,60000,"Compagnie BTP","C01",110,null,null,1,"EUR",100000,100000]
["Example of a grant - capacity building",2019,6,null,null,2019000125,655,"Memorandum of understanding on co-operation in the field of climate change vulnerability, risk assessment, adaptation and mitigation","Objective: The purpose of this Memorandum of Understanding is to strengthen and coordinate the efforts to combat global climate change and address its adverse effects, to support mechanisms for regional climate change vulnerability and risk assessment, to promote clean and efficient energy, to stimulate and disseminate the economic and technological transformation to low emission development in ensuring energy security and creating adaptation actions and opportunities to protect the environment and natural resources.\n\nAreas of cooperation\nThe Signatories will cooperate, in particular, in the following areas of common interest:\na) collection, analysis, and dissemination of meteorological and sea-level data relevant to the observation of climate change and the measurement of its impact on the potentially vulnerable sectors of the region’s economies, such as: agriculture, health and tourism;\nb) identification and communication of the Intended Nationally Determined Contributions;\nc) assessment and support of the Intended Nationally Determined Contributions;\nd) enhancement of capacities for the implementation of Mechanisms under the UNFCCC and its related instruments;\ne) elaboration of regional policies and special programs for coastal zone management, disaster management, impact assessment and community level mitigation and adaptation measures;\nf) stimulation and disseminate the economic and technological transformation to low emission development in ensuring energy security and creating adaptation actions and opportunities;\ng) promotion and development of the use of renewable energies, in order to achieve the target established by the Government of Maldives;\nh) water treatment, including water desalinization;\ni) waste management;\nj) development of public education and awareness campaigns on mitigation and adaptation to global climate change;\nk) resources sharing, technical co-operation and information exchange with other global climate change initiatives, in particular in Small Island Developing States.\nl) development of capacities for regional research activities, including impact and adaptation modelling.\n","https://www.google.com/search?q=Memorandum+of+Understanding+with+Maldives+italy&rlz=1C1GCEA_enFR796FR796&oq=memorandum+o&aqs=chrome.0.69i59l2j0l2j69i57j0.5783j1j7&sourceid=chrome&ie=UTF-8","13.1;7.a",41010,12000,null,"C01",110,null,null,1,"EUR",700,300]
["Example of triangular co-operation - Part 1",2019,5,null,"TR012019",2019000001,454,"Knowledge sharing on public finance management - climate","Triangular co-operation whereby Germany financially supports the collaboration between Costa Rica and Peru (EUR 100 000) and Costa Rica shares knowledge and expertise with Peru on the design of budget and public investment considering Climate Change. Costa Rica will provide several experts at its own expense for three months (total salary cost = CRC 2 million) to exchange knowledge on the system of Payments for Environmental Services and on Costa Rican Program on carbon neutrality.",null,13.2,"41010:50|15111:50",12000,null,"C01",110,null,"FC02",1,"EUR",100,100,null,null,null,null,null,null,null,null,"Both Germany and Costa Rica report their respective contribution to this triangular co-operation project. Germany reports a financial contribution, Costa Rica reports the in-kind technical co-operation experts and fills the \"salary cost\" item. Given the differences in salary levels of public officials across countries, the value of in-kind technical co-operation will be calculated by applying the purchasing power parity (PPP) conversion factor for private consumption to the salary costs. (See the Reporting Instructions.) Please indicate the salary without applying the PPP factor, the Secretariat will apply the factor."]
["Example of triangular co-operation - Part 2",2019,336,null,"TR012019",2019001244,454,"Knowledge sharing on public finance management - climate","Triangular co-operation whereby Germany financially supports the collaboration between Costa Rica and Peru (EUR 100 000) and Costa Rica shares knowledge and expertise with Peru on the design of budget and public investment considering Climate Change. Costa Rica will provide several experts at its own expense for three months (total salary cost = CRC 2 million) to exchange knowledge on the system of Payments for Environmental Services and on Costa Rican Program on carbon neutrality.",null,13.2,"41010:50|15111:50",12000,null,"D01",2100,null,"FC01; FC02",1,"CRC",2000,2000,null,null,2000]
["Example of a loan",2019,742,null,null,2019003677,142,"Supply of trains for Greater Cairo Metro Al Thawra Line 3","Loan with an interest rate of 1.5%, grace period of 5 years and maturity of 30 years (annuity with two repayments per annum).",null,"11.2;11.3","21030:30|43032:70",12000,"Min Fin Egypt","C01",421,null,null,1,"USD",0,200000,null,null,null,1,360,null,null,null,"The loan is concessional. The grant element calculated using the IMF calculator available at this link  https://www.imf.org/external/np/pdr/conc/calculator/ is 39%, which is above the 35% threshold set by the IMF and the WB. The maturity is expressed in number of months."]
["Example of a guarantee and reporting of amount mobilised from the private sector",2019,10,1,"G12j",2019110001,235,"Credit Guarantee","In 2016, the Swedish International Development Authority (Sida) and USAID provided a partial credit guarantee to FINCA Bank to cover a total amount EUR 250 000. The risk of the facility is divided equally between Sida (40 percent) and USAID (40 percent) while the residual risk (20 percent) is carried by FINCA Bank. \n\nThe facility focuses on lending to SMEs in agriculture and renewable energy in North and South Kivu, Democratic Republic of the Congo, covering credit risk up to 50 percent of the loan amount for the loans placed under the guarantee. \nIn 2016, the Swedish International Development Authority (Sida) and USAID provided a partial credit guarantee to FINCA Bank to cover a total amount EUR 250 000. The risk of the facility is divided equally between Sida (40 percent) and USAID (40 percent) while the residual risk (20 percent) is carried by FINCA Bank. \n\nThe facility focuses on lending to SMEs in agriculture and renewable energy in North and South Kivu, Democratic Republic of the Congo, covering credit risk up to 50 percent of the loan amount for the loans placed under the guarantee. \nIn 2016, the Swedish International Development Authority (Sida) and USAID provided a partial credit guarantee to FINCA Bank to cover a total amount EUR 250 000. The risk of the facility is divided equally between Sida (40 percent) and USAID (40 percent) while the residual risk (20 percent) is carried by FINCA Bank. \n\nThe facility focuses on lending to SMEs in agriculture and renewable energy in North and South Kivu, Democratic Republic of the Congo, covering credit risk up to 50 percent of the loan amount for the loans placed under the guarantee. \n",null,"2.3;2.a;7.2","31120:50|23210:50",60000,"FINCA Bank ","C01",1100,"FA01",null,1,"EUR",0,0,null,125,null,null,null,"6-Guarantee/insurance","2-recipient country",null,"There is no amount to report as \"committed\" or \"disbursed\" as a guarantee does not involve any flow. 100% of the face value of the amount guaranteed is reportable as amount mobilised from the private sector; this amount is shared between USAID and Sida who each report USD 125 000. See Annex F of the Reporting Instructions."]
["Example of islamic finance",2019,976,null,"IC015LK",2019000001,247,"Sukuk for infrastructure",null,null,9.1,43010,null,null,"C01",424,"FA02",null,1,"USD",0,2000,null,null,null,null,null,null,null,null,"This USD 2 million sukuk is classified as \"asset-backed security\". See the taxonomy \"financial instruments\" in the TOSSD code list file."]
["Example of Pillar II",2019,"UNEP",null,"GTN4555Clean",2019777770,998,"Clean seas campaign","The Clean Seas campaign, launched by UN Environment in 2017, aims to eliminate major sources of marine litter by 2022. The campaign, which focuses on single-use plastics and micro-plastics in cosmetics, urges governments to pass plastic reduction policies, pushes industry to minimize plastic packaging and calls on consumers to change their habits. UNEP develops global norms for the purpose of this campaign.","https://www.cleanseas.org/ ",14.1,41081,null,null,"C01",2100,null,null,2,"USD",10,10,null,null,null,null,null,null,null,null,"The activity reported does not involve cross-border flows to TOSSD eligible countries. The project can be classified as Pillar II, as the campaign supports sustainable development and a direct contribution to SDG target \"14.1. By 2025, prevent and significantly reduce marine pollution of all kinds, in particular from land-based activities, including marine debris and nutrient pollution\" can be demonstrated. Also, the activity can be considered as providing substantial benefits to TOSSD-eligible countries and their populations.\n"]
["Example of SSC activity: scholarship",2021,434,1,"BECAS EC 003",2021000045,440,"Becas a estudiantes de medicina ecuatorianos","Becas para realizar intercambio de un semestre para estudiantes de medicina de pregrado provenientes, que se encuentren cursando al menos la mitad de su carrera, con calificación académica sobre 5.0 de promedio.\nLa beca cubre el financiamiento de pasajes, estadía, manutención y seguro médico. El año 2020 se otorgaron a Ecuador 11 becas",null,"4.b; 3.c",12181,11001,"Ministerio de educación Chileno","E01",110,null,"FC01",1,"USD",890,30,null,null,null,null,null,null,null,null,"The activity can be included in the pilot testing of SSC in the context of SDG indicator 17.3.1.No further adjustments are needed"]
["Example of a SSC activity: in kind technical co-operation - Part I",2021,431,1,"COOP 203","2021000023a",454,"Support for strengthening the Peruvian cotton sector by improving the competitiveness of family agriculture production systems","Contribute to the strengthening of the technical and institutional capacities of national and regional governmental institutions, to improve and more effectively articulate the public policies on the competitiveness of small cotton production systems.",null,"8.3;10.4",111,11003,"Empresa Brazileira de Pesquisa Agropecuária","D011",2100,null,"FC01",1,"BRL",389,389,null,null,389,null,null,null,null,null,"The activity can be included in the pilot testing of SSC in the context of SDG indicator 17.3.1. Costs are disaggreaged as per the SSC conceptual framework into experts costs, travel expenditures and materials."]
["Example of a SSC activity: in kind technical co-operation - Part II",2021,431,1,"COOP 203","2021000023b",454,"Support for strengthening the Peruvian cotton sector by improving the competitiveness of family agriculture production systems","Contribute to the strengthening of the technical and institutional capacities of national and regional governmental institutions, to improve and more effectively articulate the public policies on the competitiveness of small cotton production systems.",null,"8.3;10.4",111,11003,"Empresa Brazileira de Pesquisa Agropecuária","D012",2100,null,"FC01",1,"BRL",978,978,null,null,null,null,null,null,null,null,"The activity can be included in the pilot testing of SSC in the context of SDG indicator 17.3.1. Costs are disaggreaged as per the SSC conceptual framework into experts costs, travel expenditures and materials."]
["Example of a SSC activity: in kind technical co-operation - Part III",2021,431,1,"COOP 203","2021000023c",454,"Support for strengthening the Peruvian cotton sector by improving the competitiveness of family agriculture production systems","Contribute to the strengthening of the technical and institutional capacities of national and regional governmental institutions, to improve and more effectively articulate the public policies on the competitiveness of small cotton production systems.",null,"8.3;10.4",111,11003,"Empresa Brazileira de Pesquisa Agropecuária","D013",2100,null,"FC01",1,"BRL",10,10,null,null,null,null,null,null,null,null,"The activity can be included in the pilot testing of SSC in the context of SDG indicator 17.3.1. Costs are disaggreaged as per the SSC conceptual framework into experts costs, travel expenditures and materials."]

{"sheet":"MOB_validation","index":12,"n_rows":11,"n_cols":5,"rows_kept":11,"cut":false,"hidden":true,"merged":[]}
["Leveraging mechanism and role/position","Origin of the funds mobilised","Project finance SPV flag \n(1=Yes)","Type of arranger","Methodology applied for calculation in field 23"]
["1=Syndicated loan, arranger","1=Provider country",1,"1=Official institution","OECD"]
["2=Syndicated loan, participant","2=Recipient country ",null,"2=Private institution","MDB"]
["3=Common shares in flat collective investment vehicle","3=Third high income/OECD country"]
["4=Shares in the riskiest tranche of structured collective investment vehicle, first-loss shares and others (e.g. lock-up shares)","4=Other third country"]
["5=Shares in the mezzanine/senior tranche of structured CIV","5=Other/multiple origins "]
["6=Guarantee/insurance "]
["7=Direct investment in companies/SPVs, equity"]
["8=Direct investment in companies/SPVs, mezzanine/senior debt"]
["9=Credit lines"]
["10=Simple co-financing arrangements"]